{"text_format":"1","workbook":"xlsx","n_sheets":8,"sheets":["Original_V06","Fehlercodes_fuer_formel","Fehlergruppe","Fehlercode_fuer_formel","Fehlercodes","Codes d'erreur","Codici di errore","Fehleraktivitäten"],"not_rendered":{"charts":0,"images":6,"macros":1,"external_links":1,"defined_names":17,"comments":1,"pivot_tables":0},"unopened":[],"bounds":{"document_bytes":16777216,"sheet_cells":100000,"rows_first":2000,"rows_last":500,"rows_between":2000,"halvings":0,"cell_chars":16384,"cell_head_chars":4096},"cells_cut":0,"cells_raw":0,"read":"whole","date_system":"1900"}

{"sheet":"Original_V06","index":0,"n_rows":64,"n_cols":12,"rows_kept":64,"cut":false,"hidden":false,"merged":[[7,1,7,2],[10,4,10,6],[12,3,12,8],[13,1,13,8],[25,2,25,3],[24,2,24,3],[25,0,25,1],[15,0,15,12],[21,0,21,12],[8,7,8,12],[12,1,12,2],[10,1,10,2],[8,1,8,2],[11,1,11,2],[41,7,41,9],[25,11,25,12],[25,9,25,10],[25,7,25,8],[25,5,25,6],[41,10,41,12],[35,10,35,12],[36,10,36,12],[37,10,37,12],[41,2,41,5],[28,3,28,4],[30,3,30,4],[39,7,39,9],[28,5,28,12],[30,5,30,12],[31,5,31,12],[54,7,54,12],[42,1,42,5],[46,0,48,4],[45,10,45,12],[46,10,46,12],[47,10,47,12],[47,7,47,9],[46,7,46,9],[45,7,45,9],[53,2,53,6],[53,7,53,8],[49,5,49,7],[42,7,42,9],[44,10,44,12],[42,10,42,12],[43,10,43,12],[5,8,5,12],[31,3,31,4],[38,10,38,12],[40,7,40,9],[40,10,40,12],[35,2,35,5],[36,2,36,5],[37,2,37,5],[38,2,38,5],[39,2,39,5],[40,2,40,5],[33,3,33,4],[39,10,39,12],[32,3,32,4],[6,1,6,2],[24,0,24,1],[32,5,32,12],[33,5,33,12],[38,7,38,9],[35,7,35,9],[36,7,36,9],[37,7,37,9],[3,1,3,2],[29,3,29,4],[29,5,29,12],[3,7,3,12],[3,5,3,6],[27,5,27,12],[18,0,18,12],[23,5,24,6],[23,7,24,8],[23,9,24,10],[23,11,24,12],[12,9,12,12],[13,9,13,12],[10,7,10,12],[27,3,27,4],[5,3,5,6]]}
[]
["Pflicht- Felder       "]
[]
["Nr.",null,null,null,null,"Datum"]
[]
["Servicestelle",null,null,"Auftrag",null,null,null,"SA / "]
["Name"]
["PLZ Ort "]
["MWST",null,null,null,null,null,"Code:"]
[]
["Marke",null,null,null,"Modell"]
["Serien-Nr"]
["Kaufort",null,null,"Kaufdatum"]
[null,"Garantieverlängerung"]
["Art des Defektes"]
[]
[]
["Standortadresse (genaue Adresse)"]
[]
[]
["Eigentümer (genaue Adresse)"]
[]
[]
[null,null,null,null,null,"Fehlergruppe",null,"Fehlerart ",null,"Fehlerort",null,"Tätigkeit"]
["Arbeitsauftrag vom:"]
["Ausgeführt am:"]
[]
["Datum","Art der Arbeit","Std.                    ","Ansatz ",null,"Vergütung"]
[null,null,null,null,null,{"$f":"C29*D29","v":0}]
[null,null,null,null,null,{"$f":"C30*D30","v":0}]
[null,null,null,null,null,{"$f":"C31*D31","v":0}]
[null,null,null,null,null,{"$f":"C32*D32","v":0}]
[null,null,null,null,null,{"$f":"C33*D33","v":0}]
["Reisepauschale (einmalig)",null,null,null,null,{"$f":"D34","v":0}]
[]
["Artikel-Nummer","Bezeichnung","Rechnungsnummer",null,null,null,"Stk.","Nettopreis pro Stk.",null,null,"Vergütung"]
[null,null,null,null,null,null,null,null,null,null,{"$f":"H37*G37","v":0}]
[null,null,null,null,null,null,null,null,null,null,{"$f":"+H38*G38","v":0}]
[null,null,null,null,null,null,null,null,null,null,0]
[null,null,null,null,null,null,null,null,null,null,0]
[null,null,null,null,null,null,null,null,null,null,0]
[null,null,null,null,null,null,null,null,null,null,0]
[null,"Porti",null,null,null,null,null,null,null,null,0]
[null,null,null,null,null,null,null,null,null,null,{"$f":"SUM(K37:K43)","v":0}]
[]
[null,null,null,null,null,null,null,"Subtotal",null,null,{"$f":"F29+F30+F31+F32+F33+F34+K37+K38+K39+K40+K41+K42+Text8","v":0}]
["Der Garantieantrag muss innert 30 Tage nach Ausführdatum eingesandt werden. Spätestens nach 3 Monaten verfällt der Anspruch.                                                                         ",null,null,null,null,null,null,"MWST ",null,null,{"$f":"ROUND(20*(K46*8.1%),0)/20","v":0}]
[null,null,null,null,null,null,null,"Total",null,null,{"$f":"SUM(K46:K47)","v":0}]
[]
["FORS AG/SA, Service/Garantie, Schaftenholzweg 8, 2557 Studen BE"]
[]
[]
[]
["Wird von FORS ausgefüllt ",null,null,null,null,null,null,"Interne Nr.:"]
[]
[]
["Datum:",null,"Grund"]
["Konto 4300/1/2/3/4/",{"$f":"ROUND(20*((F29+F31)*108%),0)/20","v":0}]
["Konto 4305",{"$f":"ROUND(20*((SUM(K37:K42))*108%),0)/20","v":0}]
["Konto 4310",{"$f":"ROUND(20*(F32*108%),0)/20","v":0}]
["Konto 4311",{"$f":"ROUND(20*(F33*108%),0)/20","v":0}]
["Konto 4312",{"$f":"ROUND(20*(F34*108%),0)/20","v":0}]
["Konto 4313",{"$f":"ROUND(20*((G43*H43)*108%),0)/20","v":0}]
["Visum:"]

{"sheet":"Fehlercodes_fuer_formel","index":1,"n_rows":377,"n_cols":14,"rows_kept":377,"cut":false,"hidden":true,"merged":[[389,1,389,6],[3,0,9,0],[75,0,83,0],[141,0,171,0],[298,0,299,0]]}
["Kältekreislauf","Loetverbindung undicht",{"$f":"'[1]005'!B10","v":"001"},{"$f":"C1&\" \"&B1","v":"001 Loetverbindung undicht"},"Kapillare",{"$f":"'[1]005'!F12","v":"002"},{"$f":"F1&\" \"&E1","v":"002 Kapillare"}]
[5,"Knick",{"$f":"'[1]005'!B9","v":"012"},"012 Knick","Kompressor-Fuellstutzen (Verbindung)",{"$f":"'[1]005'!F15","v":"003"},{"$f":"F2&\" \"&E2","v":"003 Kompressor-Fuellstutzen (Verbindung)"}]
[null,"schwergaengig",{"$f":"'[1]005'!B14","v":"023"},"023 schwergaengig","Kompressor-Saugrohr (Verbindung)",{"$f":"'[1]005'!F17","v":"005"},{"$f":"F3&\" \"&E3","v":"005 Kompressor-Saugrohr (Verbindung)"}]
["(Leckage/ Verstopfung/ Füllmenge)","verstopft",{"$f":"'[1]005'!B15","v":"028"},"028 verstopft","Kompressor-Verfluessiger (Verbindung)",{"$f":"'[1]005'!F18","v":"007"},"007 Kompressor-Verfluessiger (Verbindung)"]
[null,"blockiert / klemmt",{"$f":"'[1]005'!B6","v":"058"},"058 blockiert / klemmt","Ventil Kaeltekreislauf",{"$f":"'[1]005'!F29","v":"009"},"009 Ventil Kaeltekreislauf"]
[null,"keine Leistung",{"$f":"'[1]005'!B8","v":"060"},"060 keine Leistung","Rahmenheizung",{"$f":"'[1]005'!F21","v":"011"},"011 Rahmenheizung"]
[null,"Lokringverbindung undicht",{"$f":"'[1]005'!B11","v":"291"},"291 Lokringverbindung undicht","Rahmenheizung-Verfluessiger (Verbindung)",{"$f":"'[1]005'!F22","v":"012"},"012 Rahmenheizung-Verfluessiger (Verbindung)"]
[null,"Material/Rohr undicht",{"$f":"'[1]005'!B13","v":"292"},"292 Material/Rohr undicht","Saugrohr-Kapillare Eingang (Verbindung)",{"$f":"'[1]005'!F24","v":"013"},"013 Saugrohr-Kapillare Eingang (Verbindung)"]
[null,"Lötstelle zugelötet",{"$f":"'[1]005'!B12","v":"293"},"293 Lötstelle zugelötet","Saugrohr-Verdampfer (Verbindung)",{"$f":"'[1]005'!F25","v":"014"},"014 Saugrohr-Verdampfer (Verbindung)"]
[null,"Bereifung der Saugleitung",{"$f":"'[1]005'!B5","v":"409"},"409 Bereifung der Saugleitung","Trockner",{"$f":"'[1]005'!F26","v":"015"},"015 Trockner"]
[null,"Fehlerart nicht zuordenbar",{"$f":"'[1]005'!B7","v":"999"},"999 Fehlerart nicht zuordenbar","Trockner-Kapillare (Verbindung)",{"$f":"'[1]005'!F27","v":"016"},"016 Trockner-Kapillare (Verbindung)"]
[null,null,null,null,"Verdampfer Gefrierteil",{"$f":"'[1]005'!F30","v":"017"},"017 Verdampfer Gefrierteil"]
[null,null,null,null,"Verdampfer Kuehlteil",{"$f":"'[1]005'!F31","v":"018"},"018 Verdampfer Kuehlteil"]
[null,null,null,null,"Verdampfer-Einspritzstelle (Verbindung)",{"$f":"'[1]005'!F33","v":"019"},"019 Verdampfer-Einspritzstelle (Verbindung)"]
[null,null,null,null,"Verfluessiger",{"$f":"'[1]005'!F35","v":"020"},"020 Verfluessiger"]
[null,null,null,null,"Verfluessiger-Trockner (Verbindung)",{"$f":"'[1]005'!F36","v":"021"},"021 Verfluessiger-Trockner (Verbindung)"]
[null,null,null,null,"Kompressor",{"$f":"'[1]005'!F14","v":"063"},"063 Kompressor"]
[null,null,null,null,"Wärmetauscher (Wasserführend)",{"$f":"'[1]005'!F37","v":"395"},"395 Wärmetauscher (Wasserführend)"]
[null,null,null,null,"Verdampfer Kuehlteil-Verdampfermodul Gefrierteil (Verbindung)",{"$f":"'[1]005'!F32","v":"412"},"412 Verdampfer Kuehlteil-Verdampfermodul Gefrierteil (Verbindung)"]
[null,null,null,null,"Verdampfermodul-Saugleitung (Verbindung)",{"$f":"'[1]005'!F34","v":"413"},"413 Verdampfermodul-Saugleitung (Verbindung)"]
[null,null,null,null,"Heizung Verdunstungsschale - Kompressor (Verbindung)",{"$f":"'[1]005'!F10","v":"414"},"414 Heizung Verdunstungsschale - Kompressor (Verbindung)"]
[null,null,null,null,"Heizung Verdunstungsschale - Verfluessiger (Verbindung)",{"$f":"'[1]005'!F11","v":"415"},"415 Heizung Verdunstungsschale - Verfluessiger (Verbindung)"]
[null,null,null,null,"Heizung Verdampferwanne",{"$f":"'[1]005'!F9","v":"416"},"416 Heizung Verdampferwanne"]
[null,null,null,null,"Abzweigung - Saug-/ Druckleitung (Verbindung)",{"$f":"'[1]005'!F5","v":"518"},"518 Abzweigung - Saug-/ Druckleitung (Verbindung)"]
[null,null,null,null,"Kuehlkassette",{"$f":"'[1]005'!F19","v":"525"},"525 Kuehlkassette"]
[null,null,null,null,"Sammler",{"$f":"'[1]005'!F23","v":"533"},"533 Sammler"]
[null,null,null,null,"Expansionsventil",{"$f":"'[1]005'!F7","v":"675"},"675 Expansionsventil"]
[null,null,null,null,"Ölabscheider",{"$f":"'[1]005'!F20","v":"676"},"676 Ölabscheider"]
[null,null,null,null,"Ventil für externe Kühlung (Water loop, Wasserkühlung, ..)",{"$f":"'[1]005'!F28","v":"677"},"677 Ventil für externe Kühlung (Water loop, Wasserkühlung, ..)"]
[null,null,null,null,"Druckschalter",{"$f":"'[1]005'!F6","v":"678"},"678 Druckschalter"]
[null,null,null,null,"Kaskade",{"$f":"'[1]005'!F13","v":"679"},"679 Kaskade"]
[null,null,null,null,"Fehlerort nicht zuordenbar",{"$f":"'[1]005'!F8","v":"999"},"999 Fehlerort nicht zuordenbar"]
["Elektrik","ausser Toleranz (Fuehler etc.)",{"$f":"'[1]040'!B5","v":"031"},{"$f":"C33&\" \"&B33","v":"031 ausser Toleranz (Fuehler etc.)"},"Ventil Kaeltekreislauf",{"$f":"'[1]040'!F41","v":"009"},"009 Ventil Kaeltekreislauf"]
[40,"elektrische Unterbrechung",{"$f":"'[1]040'!B6","v":"032"},"032 elektrische Unterbrechung","Beleuchtung",{"$f":"'[1]040'!F7","v":"059"},"059 Beleuchtung"]
[null,"falsche Anzeige",{"$f":"'[1]040'!B7","v":"033"},"033 falsche Anzeige","Heizung",{"$f":"'[1]040'!F15","v":"060"},"060 Heizung"]
[null,"Kurzschluss",{"$f":"'[1]040'!B9","v":"034"},"034 Kurzschluss","Isolationsplatte",{"$f":"'[1]040'!F18","v":"061"},"061 Isolationsplatte"]
[null,"Leitungen beschaedigt",{"$f":"'[1]040'!B10","v":"036"},"036 Leitungen beschaedigt","Kabelstrang/ Leitung",{"$f":"'[1]040'!F19","v":"062"},"062 Kabelstrang/ Leitung"]
[null,"regelt falsch",{"$f":"'[1]040'!B12","v":"039"},"039 regelt falsch","Kompressor",{"$f":"'[1]040'!F20","v":"063"},"063 Kompressor"]
[null,"verschmort",{"$f":"'[1]040'!B14","v":"040"},"040 verschmort","Kompressor-Anlassvorrichtung",{"$f":"'[1]040'!F21","v":"064"},"064 Kompressor-Anlassvorrichtung"]
[null,"Wackelkontakt",{"$f":"'[1]040'!B15","v":"041"},"041 Wackelkontakt","Kompressor-Motorschutzschalter",{"$f":"'[1]040'!F22","v":"065"},"065 Kompressor-Motorschutzschalter"]
[null,"schaltet nicht",{"$f":"'[1]040'!B13","v":"202"},"202 schaltet nicht","Kondensator",{"$f":"'[1]040'!F23","v":"066"},"066 Kondensator"]
[null,"Leitungen Verdrahtungsfehler",{"$f":"'[1]040'!B11","v":"297"},"297 Leitungen Verdrahtungsfehler","Kontrollleuchten",{"$f":"'[1]040'!F24","v":"067"},"067 Kontrollleuchten"]
[null,"Fehlerart nicht zuordenbar",{"$f":"'[1]040'!B8","v":"999"},"999 Fehlerart nicht zuordenbar","Reedkontakt (Tuererkennung, ...)",{"$f":"'[1]040'!F29","v":"068"},"068 Reedkontakt (Tuererkennung, ...)"]
[null,null,null,null,"Stecker/ Schraubverbindung",{"$f":"'[1]040'!F35","v":"071"},"071 Stecker/ Schraubverbindung"]
[null,null,null,null,"Taster/ Schalter",{"$f":"'[1]040'!F36","v":"072"},"072 Taster/ Schalter"]
[null,null,null,null,"Temperaturfuehler",{"$f":"'[1]040'!F37","v":"073"},"073 Temperaturfuehler"]
[null,null,null,null,"Regelthermostat",{"$f":"'[1]040'!F30","v":"074"},"074 Regelthermostat"]
[null,null,null,null,"Verteilerleiste",{"$f":"'[1]040'!F46","v":"075"},"075 Verteilerleiste"]
[null,null,null,null,"Thermometer",{"$f":"'[1]040'!F38","v":"085"},"085 Thermometer"]
[null,null,null,null,"Batterie/ Akku",{"$f":"'[1]040'!F5","v":"103"},"103 Batterie/ Akku"]
[null,null,null,null,"Ventil Wasserzulauf",{"$f":"'[1]040'!F42","v":"252"},"252 Ventil Wasserzulauf"]
[null,null,null,null,"Eiswuerfelbereiter",{"$f":"'[1]040'!F11","v":"265"},"265 Eiswuerfelbereiter"]
[null,null,null,null,"Druckausgleichsventil",{"$f":"'[1]040'!F9","v":"274"},"274 Druckausgleichsventil"]
[null,null,null,null,"Sicherheitstemperaturbegrenzer",{"$f":"'[1]040'!F32","v":"277"},"277 Sicherheitstemperaturbegrenzer"]
[null,null,null,null,"Luftklappe",{"$f":"'[1]040'!F26","v":"439"},"439 Luftklappe"]
[null,null,null,null,"Pumpe Wassertank",{"$f":"'[1]040'!F28","v":"440"},"440 Pumpe Wassertank"]
[null,null,null,null,"Tuerheizung",{"$f":"'[1]040'!F39","v":"467"},"467 Tuerheizung"]
[null,null,null,null,"Feuchtesensor",{"$f":"'[1]040'!F14","v":"468"},"468 Feuchtesensor"]
[null,null,null,null,"Potentialfreier Kontakt",{"$f":"'[1]040'!F27","v":"469"},"469 Potentialfreier Kontakt"]
[null,null,null,null,"Sicherheitsthermostat",{"$f":"'[1]040'!F33","v":"517"},"517 Sicherheitsthermostat"]
[null,null,null,null,"Ventilator - Verfluessiger",{"$f":"'[1]040'!F45","v":"522"},"522 Ventilator - Verfluessiger"]
[null,null,null,null,"Ventilator - GT",{"$f":"'[1]040'!F43","v":"523"},"523 Ventilator - GT"]
[null,null,null,null,"Ventilator - KT/ Biofresh",{"$f":"'[1]040'!F44","v":"524"},"524 Ventilator - KT/ Biofresh"]
[null,null,null,null,"Kuehlkassette",{"$f":"'[1]040'!F25","v":"525"},{"$f":"F64&\" \"&E64","v":"525 Kuehlkassette"}]
[null,null,null,null,"Fernschloss",{"$f":"'[1]040'!F13","v":"527"},"527 Fernschloss"]
[null,null,null,null,"Batterielademodul",{"$f":"'[1]040'!F6","v":"598"},"598 Batterielademodul"]
[null,null,null,null,"Crushmodul",{"$f":"'[1]040'!F8","v":"599"},"599 Crushmodul"]
[null,null,null,null,"Türöffnungsmodul",{"$f":"'[1]040'!F40","v":"609"},"609 Türöffnungsmodul"]
[null,null,null,null,"Druckschalter",{"$f":"'[1]040'!F10","v":"678"},"678 Druckschalter"]
[null,null,null,null,"Sicherung",{"$f":"'[1]040'!F34","v":"680"},"680 Sicherung"]
[null,null,null,null,"Helligkeitssensor",{"$f":"'[1]040'!F16","v":"682"},"682 Helligkeitssensor"]
[null,null,null,null,"Humidifier (Hydrobreeze)",{"$f":"'[1]040'!F17","v":"683"},"683 Humidifier (Hydrobreeze)"]
["Elektronik","Kurzschluss",{"$f":"'[1]045'!B12","v":"034"},{"$f":"C73&\" \"&B73","v":"034 Kurzschluss"},"Taster/ Schalter",{"$f":"'[1]045'!F19","v":"072"},"072 Taster/ Schalter"]
[45,"regelt falsch",{"$f":"'[1]045'!B16","v":"039"},"039 regelt falsch","Platinenstecker",{"$f":"'[1]045'!F16","v":"082"},"082 Platinenstecker"]
[null,"verschmort",{"$f":"'[1]045'!B24","v":"040"},"040 verschmort","Elektronikplatine",{"$f":"'[1]045'!F8","v":"172"},"172 Elektronikplatine"]
["(Fehler an elektronischen Baugruppen)","Wackelkontakt",{"$f":"'[1]045'!B25","v":"041"},"041 Wackelkontakt","Inverterelektronik (VCC)",{"$f":"'[1]045'!F11","v":"260"},"260 Inverterelektronik (VCC)"]
[null,"Beleuchtung wird nicht / teilweise / unzureichend angesteuert",{"$f":"'[1]045'!B5","v":"042"},"042 Beleuchtung wird nicht / teilweise / unzureichend angesteuert","Elektronik Eiswuerfelbereiter",{"$f":"'[1]045'!F7","v":"264"},"264 Elektronik Eiswuerfelbereiter"]
[null,"fehlerhafte Anzeige / Display",{"$f":"'[1]045'!B7","v":"043"},"043 fehlerhafte Anzeige / Display","Verbindungsmodul",{"$f":"'[1]045'!F21","v":"441"},"441 Verbindungsmodul"]
[null,"Fehlfunktion allgemein",{"$f":"'[1]045'!B8","v":"044"},"044 Fehlfunktion allgemein","Netzteil LED-Beleuchtung / Trafo",{"$f":"'[1]045'!F14","v":"442"},"442 Netzteil LED-Beleuchtung / Trafo"]
[null,"Heizung wird nicht angesteuert",{"$f":"'[1]045'!B9","v":"045"},"045 Heizung wird nicht angesteuert","Temperaturwaechter",{"$f":"'[1]045'!F20","v":"516"},"516 Temperaturwaechter"]
[null,"Kompressor wird nicht angesteuert",{"$f":"'[1]045'!B10","v":"046"},"046 Kompressor wird nicht angesteuert","Dimmer",{"$f":"'[1]045'!F6","v":"519"},"519 Dimmer"]
[null,"Kontrollleuchte defekt",{"$f":"'[1]045'!B11","v":"047"},"047 Kontrollleuchte defekt","Netzanschlussplatine",{"$f":"'[1]045'!F12","v":"606"},"606 Netzanschlussplatine"]
[null,"Magnetventil wird nicht angesteuert",{"$f":"'[1]045'!B14","v":"048"},"048 Magnetventil wird nicht angesteuert","Bedienteil, -oberflaeche (User Interface)",{"$f":"'[1]045'!F5","v":"612"},"612 Bedienteil, -oberflaeche (User Interface)"]
[null,"Taster oder Schalter defekt",{"$f":"'[1]045'!B18","v":"049"},"049 Taster oder Schalter defekt","RS485-Modul",{"$f":"'[1]045'!F17","v":"681"},"681 RS485-Modul"]
[null,"Temperaturschwankungen",{"$f":"'[1]045'!B19","v":"050"},"050 Temperaturschwankungen","Netzfilter",{"$f":"'[1]045'!F13","v":"684"},"684 Netzfilter"]
[null,"Tonwarner ohne Funktion",{"$f":"'[1]045'!B20","v":"051"},"051 Tonwarner ohne Funktion","NFC, RFID Chip",{"$f":"'[1]045'!F15","v":"685"},"685 NFC, RFID Chip"]
[null,"unberechtigter Temperaturalarm",{"$f":"'[1]045'!B21","v":"054"},"054 unberechtigter Temperaturalarm","Smartsensoren",{"$f":"'[1]045'!F18","v":"686"},"686 Smartsensoren"]
[null,"Unterbrechung (Haarriss, Loetstelle usw.)",{"$f":"'[1]045'!B22","v":"055"},"055 Unterbrechung (Haarriss, Loetstelle usw.)","Halbleiterrelais",{"$f":"'[1]045'!F10","v":"698"},"698 Halbleiterrelais"]
[null,"Ventilator wird nicht angesteuert",{"$f":"'[1]045'!B23","v":"056"},"056 Ventilator wird nicht angesteuert","Fehlerort nicht zuordenbar",{"$f":"'[1]045'!F9","v":"999"},"999 Fehlerort nicht zuordenbar"]
[null,"Pumpe Wassertank wird nicht angesteuert",{"$f":"'[1]045'!B15","v":"298"},"298 Pumpe Wassertank wird nicht angesteuert"]
[null,"Luftklappe wird nicht angesteuert",{"$f":"'[1]045'!B13","v":"299"},"299 Luftklappe wird nicht angesteuert"]
[null,"Softwarefehler (BUG)",{"$f":"'[1]045'!B17","v":"588"},"588 Softwarefehler (BUG)"]
[null,"Fehlerart nicht zuordenbar",{"$f":"'[1]045'!B6","v":"999"},"999 Fehlerart nicht zuordenbar"]
["Mechanik","Bruch",{"$f":"'[1]050'!B7","v":"010"},"010 Bruch","Fuss/ Rolle",{"$f":"'[1]050'!F11","v":"028"},{"$f":"F94&\" \"&E94","v":"028 Fuss/ Rolle"}]
[50,"schwergaengig",{"$f":"'[1]050'!B10","v":"023"},"023 schwergaengig","Griff",{"$f":"'[1]050'!F13","v":"030"},"030 Griff"]
[null,"Verbogen/Verzogen",{"$f":"'[1]050'!B11","v":"025"},"025 Verbogen/Verzogen","Taster/ Schalter",{"$f":"'[1]050'!F19","v":"072"},"072 Taster/ Schalter"]
[null,"verstellt/versetzt",{"$f":"'[1]050'!B12","v":"027"},"027 verstellt/versetzt","Schloss",{"$f":"'[1]050'!F18","v":"084"},"084 Schloss"]
[null,"falsche Anzeige",{"$f":"'[1]050'!B8","v":"033"},"033 falsche Anzeige","Thermometer",{"$f":"'[1]050'!F20","v":"085"},"085 Thermometer"]
[null,"abgenutzt",{"$f":"'[1]050'!B5","v":"057"},"057 abgenutzt","Auszug-/ Teleskopschiene",{"$f":"'[1]050'!F6","v":"259"},"259 Auszug-/ Teleskopschiene"]
[null,"blockiert / klemmt",{"$f":"'[1]050'!B6","v":"058"},"058 blockiert / klemmt","Eiswuerfelbereiter",{"$f":"'[1]050'!F8","v":"265"},"265 Eiswuerfelbereiter"]
[null,"Fehlerart nicht zuordenbar",{"$f":"'[1]050'!B9","v":"999"},"999 Fehlerart nicht zuordenbar","Schliessdaempfung",{"$f":"'[1]050'!F17","v":"408"},"408 Schliessdaempfung"]
[null,null,null,null,"Scharnier/ Tuerlagerung",{"$f":"'[1]050'!F16","v":"418"},"418 Scharnier/ Tuerlagerung"]
[null,null,null,null,"Ausgabeeinheit Eis/ Wasser",{"$f":"'[1]050'!F5","v":"432"},"432 Ausgabeeinheit Eis/ Wasser"]
[null,null,null,null,"Luftklappe",{"$f":"'[1]050'!F15","v":"439"},"439 Luftklappe"]
[null,null,null,null,"Ventilator - Verfluessiger",{"$f":"'[1]050'!F24","v":"522"},"522 Ventilator - Verfluessiger"]
[null,null,null,null,"Ventilator - GT",{"$f":"'[1]050'!F22","v":"523"},"523 Ventilator - GT"]
[null,null,null,null,"Ventilator - KT/ Biofresh",{"$f":"'[1]050'!F23","v":"524"},"524 Ventilator - KT/ Biofresh"]
[null,null,null,null,"Fernschloss",{"$f":"'[1]050'!F10","v":"527"},"527 Fernschloss"]
[null,null,null,null,"Crushmodul",{"$f":"'[1]050'!F7","v":"599"},"599 Crushmodul"]
[null,null,null,null,"Fusspedaloeffner",{"$f":"'[1]050'!F12","v":"600"},"600 Fusspedaloeffner"]
[null,null,null,null,"Humidifier (Hydrobreeze)",{"$f":"'[1]050'!F14","v":"683"},"683 Humidifier (Hydrobreeze)"]
[null,null,null,null,"Fehlerort nicht zuordenbar",{"$f":"'[1]050'!F9","v":"999"},"999 Fehlerort nicht zuordenbar"]
["Geräusch","Knackgeraeusch",{"$f":"'[1]060'!B8","v":"064"},{"$f":"C113&\" \"&B113","v":"064 Knackgeraeusch"},"Kapillare",{"$f":"'[1]060'!F12","v":"002"},"002 Kapillare"]
[60,"Knarr-/ Quietschgeräusch",{"$f":"'[1]060'!B9","v":"065"},"065 Knarr-/ Quietschgeräusch","Ventil Kaeltekreislauf",{"$f":"'[1]060'!F23","v":"009"},"009 Ventil Kaeltekreislauf"]
[null,"Laufgeraeusch",{"$f":"'[1]060'!B10","v":"066"},"066 Laufgeraeusch","Verdampfer Gefrierteil",{"$f":"'[1]060'!F28","v":"017"},"017 Verdampfer Gefrierteil"]
[null,"Vibrationsgeraeusch",{"$f":"'[1]060'!B13","v":"069"},"069 Vibrationsgeraeusch","Verdampfer Kuehlteil",{"$f":"'[1]060'!F29","v":"018"},"018 Verdampfer Kuehlteil"]
[null,"Klappergeräusch/Klopfgeräusch",{"$f":"'[1]060'!B7","v":"089"},"089 Klappergeräusch/Klopfgeräusch","Verfluessiger",{"$f":"'[1]060'!F30","v":"020"},"020 Verfluessiger"]
[null,"Schaltgeraeusch",{"$f":"'[1]060'!B11","v":"203"},"203 Schaltgeraeusch","Tauwasserschale",{"$f":"'[1]060'!F20","v":"052"},"052 Tauwasserschale"]
[null,"Strömungs-/Einspritzgeräusch",{"$f":"'[1]060'!B12","v":"300"},"300 Strömungs-/Einspritzgeräusch","Kompressor",{"$f":"'[1]060'!F13","v":"063"},"063 Kompressor"]
[null,"Gluckern",{"$f":"'[1]060'!B6","v":"687"},"687 Gluckern","Regelthermostat",{"$f":"'[1]060'!F15","v":"074"},"074 Regelthermostat"]
[null,"Fehlerart nicht zuordenbar",{"$f":"'[1]060'!B5","v":"999"},"999 Fehlerart nicht zuordenbar","Rohre",{"$f":"'[1]060'!F16","v":"087"},"087 Rohre"]
[null,null,null,null,"Ventil Wasserzulauf",{"$f":"'[1]060'!F24","v":"252"},"252 Ventil Wasserzulauf"]
[null,null,null,null,"Inverterelektronik (VCC)",{"$f":"'[1]060'!F11","v":"260"},"260 Inverterelektronik (VCC)"]
[null,null,null,null,"Eiswuerfelbereiter",{"$f":"'[1]060'!F9","v":"265"},"265 Eiswuerfelbereiter"]
[null,null,null,null,"Trennplatte vertikal",{"$f":"'[1]060'!F21","v":"266"},"266 Trennplatte vertikal"]
[null,null,null,null,"Druckausgleichsventil",{"$f":"'[1]060'!F8","v":"274"},"274 Druckausgleichsventil"]
[null,null,null,null,"Schliessdaempfung",{"$f":"'[1]060'!F18","v":"408"},"408 Schliessdaempfung"]
[null,null,null,null,"Scharnier/ Tuerlagerung",{"$f":"'[1]060'!F17","v":"418"},"418 Scharnier/ Tuerlagerung"]
[null,null,null,null,"Ventilator - Verfluessiger",{"$f":"'[1]060'!F27","v":"522"},"522 Ventilator - Verfluessiger"]
[null,null,null,null,"Ventilator - GT",{"$f":"'[1]060'!F25","v":"523"},"523 Ventilator - GT"]
[null,null,null,null,"Ventilator - KT/ Biofresh",{"$f":"'[1]060'!F26","v":"524"},"524 Ventilator - KT/ Biofresh"]
[null,null,null,null,"Kuehlkassette",{"$f":"'[1]060'!F14","v":"525"},"525 Kuehlkassette"]
[null,null,null,null,"Abdeckung Verdampfer",{"$f":"'[1]060'!F5","v":"528"},"528 Abdeckung Verdampfer"]
[null,null,null,null,"Absorber",{"$f":"'[1]060'!F6","v":"596"},"596 Absorber",null,null,null,null,null,"Syphon",{"$f":"'[1]060'!M65","v":{"$error":"#REF!"}}]
[null,null,null,null,"Crushmodul",{"$f":"'[1]060'!F7","v":"599"},"599 Crushmodul"]
[null,null,null,null,"Türöffnungsmodul",{"$f":"'[1]060'!F22","v":"609"},"609 Türöffnungsmodul"]
[null,null,null,null,"Syphon",688,"688 Syphon"]
[null,null,null,null,"Fehlerort nicht zuordenbar",{"$f":"'[1]060'!F10","v":"999"},{"$f":"F138&\" \"&E138","v":"999 Fehlerort nicht zuordenbar"}]
["Oberflächen","Kratzer",{"$f":"'[1]065'!B13","v":"013"},{"$f":"C139&\" \"&B139","v":"013 Kratzer"},"Verdampfer Kuehlteil",{"$f":"'[1]065'!F37","v":"018"},"018 Verdampfer Kuehlteil"]
[65,"Zu viel Lack",{"$f":"'[1]065'!B16","v":"030"},"030 Zu viel Lack","Deckel (Truhe) / Schiebedeckel",{"$f":"'[1]065'!F9","v":"026"},"026 Deckel (Truhe) / Schiebedeckel"]
[null,"Abdruck",{"$f":"'[1]065'!B5","v":"070"},"070 Abdruck","Griff",{"$f":"'[1]065'!F16","v":"030"},"030 Griff"]
["(Gerät oder Einzelteile/ Innen oder außen - \nkein Transport-schaden erkennbar!)","Korrosion",{"$f":"'[1]065'!B12","v":"071"},"071 Korrosion","Rueckseite",{"$f":"'[1]065'!F25","v":"034"},"034 Rueckseite"]
[null,"zu wenig Lack",{"$f":"'[1]065'!B17","v":"072"},"072 zu wenig Lack","Seitenwand allgemein",{"$f":"'[1]065'!F27","v":"036"},"036 Seitenwand allgemein"]
[null,"blaettert ab",{"$f":"'[1]065'!B7","v":"087"},"087 blaettert ab","Geraetedecke/ Tischplatte",{"$f":"'[1]065'!F15","v":"040"},"040 Geraetedecke/ Tischplatte"]
[null,"Wölbung/Beule",{"$f":"'[1]065'!B15","v":"088"},"088 Wölbung/Beule","Truhenabdeckrahmen",{"$f":"'[1]065'!F32","v":"041"},"041 Truhenabdeckrahmen"]
[null,"Farbabweichung",{"$f":"'[1]065'!B8","v":"165"},"165 Farbabweichung","Tuer Gefrierteil",{"$f":"'[1]065'!F33","v":"042"},"042 Tuer Gefrierteil"]
[null,"Schliffbild Edelstahl",{"$f":"'[1]065'!B14","v":"301"},"301 Schliffbild Edelstahl","Tuer Kuehlteil",{"$f":"'[1]065'!F34","v":"043"},"043 Tuer Kuehlteil"]
[null,"Flecken",{"$f":"'[1]065'!B10","v":"302"},"302 Flecken","Thermostat-/ Lichtschaltergehaeuse",{"$f":"'[1]065'!F29","v":"053"},"053 Thermostat-/ Lichtschaltergehaeuse"]
[null,"Folienrueckstaende",{"$f":"'[1]065'!B11","v":"303"},"303 Folienrueckstaende","Beleuchtung",{"$f":"'[1]065'!F7","v":"059"},"059 Beleuchtung"]
[null,"abgeloest",{"$f":"'[1]065'!B6","v":"405"},"405 abgeloest","Querverbindung",{"$f":"'[1]065'!F24","v":"099"},"099 Querverbindung"]
[null,"Fehlerart nicht zuordenbar",{"$f":"'[1]065'!B9","v":"999"},"999 Fehlerart nicht zuordenbar","Schublade",{"$f":"'[1]065'!F26","v":"102"},"102 Schublade"]
[null,null,null,null,"Dichtung Tuer Sterne-Fach",{"$f":"'[1]065'!F12","v":"159"},"159 Dichtung Tuer Sterne-Fach"]
[null,null,null,null,"Trennplatte vertikal",{"$f":"'[1]065'!F31","v":"266"},"266 Trennplatte vertikal"]
[null,null,null,null,"Kompressortraeger",{"$f":"'[1]065'!F23","v":"309"},"309 Kompressortraeger"]
[null,null,null,null,"Draht-/ Holzrost",{"$f":"'[1]065'!F13","v":"336"},"336 Draht-/ Holzrost"]
[null,null,null,null,"Innenbehälter Gefrierteil",{"$f":"'[1]065'!F17","v":"364"},"364 Innenbehälter Gefrierteil"]
[null,null,null,null,"Innentür Gefrierteil",{"$f":"'[1]065'!F20","v":"374"},"374 Innentür Gefrierteil"]
[null,null,null,null,"Bedienoberflaeche",{"$f":"'[1]065'!F6","v":"419"},"419 Bedienoberflaeche"]
[null,null,null,null,"Trennplatte Horizontal/ Zwischensteg",{"$f":"'[1]065'!F30","v":"438"},{"$f":"F159&\" \"&E159","v":"438 Trennplatte Horizontal/ Zwischensteg"}]
[null,null,null,null,"Abdeckung Verdampfer",{"$f":"'[1]065'!F5","v":"528"},"528 Abdeckung Verdampfer"]
[null,null,null,null,"Branding (Aufkleber, Logo, …)",{"$f":"'[1]065'!F8","v":"530"},"530 Branding (Aufkleber, Logo, …)"]
[null,null,null,null,"Dichtung Tuer Gefrierteil",{"$f":"'[1]065'!F10","v":"531"},"531 Dichtung Tuer Gefrierteil"]
[null,null,null,null,"Dichtung Tuer Kuehlteil",{"$f":"'[1]065'!F11","v":"532"},"532 Dichtung Tuer Kuehlteil"]
[null,null,null,null,"Wildgehaenge",{"$f":"'[1]065'!F38","v":"611"},"611 Wildgehaenge"]
[null,null,null,null,"Seitenwand allgemein Dekorstreifen",{"$f":"'[1]065'!F28","v":"689"},"689 Seitenwand allgemein Dekorstreifen"]
[null,null,null,null,"Tür Gefrierteil Dekorstreifen",{"$f":"'[1]065'!F35","v":"690"},"690 Tür Gefrierteil Dekorstreifen"]
[null,null,null,null,"Tür Kühlteil Dekorstreifen",{"$f":"'[1]065'!F36","v":"691"},"691 Tür Kühlteil Dekorstreifen"]
[null,null,null,null,"Innenbehälter Kühlteil Edelstahlverkleidung",{"$f":"'[1]065'!F19","v":"699"},"699 Innenbehälter Kühlteil Edelstahlverkleidung"]
[null,null,null,null,"Innentür Kühlteil Edelstahlverkleidung",{"$f":"'[1]065'!F22","v":"700"},"700 Innentür Kühlteil Edelstahlverkleidung"]
[null,null,null,null,"Innenbehälter Kühlteil",{"$f":"'[1]065'!F18","v":"701"},"701 Innenbehälter Kühlteil"]
[null,null,null,null,"Innentür Kühlteil",{"$f":"'[1]065'!F21","v":"702"},"702 Innentür Kühlteil"]
[null,null,null,null,"Fehlerort nicht zuordenbar",{"$f":"'[1]065'!F14","v":"999"},"999 Fehlerort nicht zuordenbar"]
["Transport-","Bruch",{"$f":"'[1]025'!B5","v":"010"},{"$f":"C173&\" \"&B173","v":"010 Bruch"},"Verfluessiger",{"$f":"'[1]025'!F43","v":"020"},"020 Verfluessiger"]
["schaden","Delle",{"$f":"'[1]025'!B6","v":"011"},"011 Delle","Fuss/ Rolle",{"$f":"'[1]025'!F18","v":"028"},"028 Fuss/ Rolle"]
["Verpackung","Knick",{"$f":"'[1]025'!B7","v":"012"},"012 Knick","Glasplatten, Absteller usw.",{"$f":"'[1]025'!F20","v":"029"},"029 Glasplatten, Absteller usw."]
["beschädigt","Kratzer",{"$f":"'[1]025'!B8","v":"013"},"013 Kratzer","Griff",{"$f":"'[1]025'!F21","v":"030"},"030 Griff"]
[25,"lose",{"$f":"'[1]025'!B9","v":"014"},"014 lose","Kompressorlagerung",{"$f":"'[1]025'!F27","v":"033"},"033 Kompressorlagerung"]
[null,"Riss",{"$f":"'[1]025'!B10","v":"015"},"015 Riss","Rueckseite",{"$f":"'[1]025'!F30","v":"034"},"034 Rueckseite"]
["Transport-","Scheuerstelle",{"$f":"'[1]025'!B11","v":"016"},"016 Scheuerstelle","Sockelblende",{"$f":"'[1]025'!F38","v":"038"},"038 Sockelblende"]
["schaden","Stauchung",{"$f":"'[1]025'!B12","v":"017"},"017 Stauchung","Teile der Innenausstattung",{"$f":"'[1]025'!F39","v":"039"},"039 Teile der Innenausstattung"]
["Verpackung",null,null,null,"Geraetedecke/ Tischplatte",{"$f":"'[1]025'!F19","v":"040"},"040 Geraetedecke/ Tischplatte"]
["nicht mehr",null,null,null,"Truhenabdeckrahmen",{"$f":"'[1]025'!F40","v":"041"},"041 Truhenabdeckrahmen"]
["vorhanden",null,null,null,"Beleuchtung",{"$f":"'[1]025'!F9","v":"059"},"059 Beleuchtung"]
[26,null,null,null,"Querverbindung",{"$f":"'[1]025'!F29","v":"099"},"099 Querverbindung"]
[null,null,null,null,"Kompressortraeger",{"$f":"'[1]025'!F28","v":"309"},"309 Kompressortraeger"]
["Schadensur-",null,null,null,"Innenbehälter Gefrierteil",{"$f":"'[1]025'!F22","v":"364"},"364 Innenbehälter Gefrierteil"]
["sache unklar",null,null,null,"Innentür Gefrierteil",{"$f":"'[1]025'!F24","v":"374"},"374 Innentür Gefrierteil"]
["Verpackung",null,null,null,"Seitenwand rechts, Oben",{"$f":"'[1]025'!F36","v":"378"},"378 Seitenwand rechts, Oben"]
["nicht",null,null,null,"Seitenwand rechts, Mitte",{"$f":"'[1]025'!F35","v":"379"},"379 Seitenwand rechts, Mitte"]
[null,null,null,null,"Seitenwand rechts, Unten",{"$f":"'[1]025'!F37","v":"380"},"380 Seitenwand rechts, Unten"]
["beschädigt",null,null,null,"Seitenwand links, Oben",{"$f":"'[1]025'!F33","v":"381"},"381 Seitenwand links, Oben"]
[null,null,null,null,"Seitenwand links, Mitte",{"$f":"'[1]025'!F32","v":"382"},"382 Seitenwand links, Mitte"]
[null,null,null,null,"Seitenwand links, Unten",{"$f":"'[1]025'!F34","v":"383"},"383 Seitenwand links, Unten"]
[null,null,null,null,"Scharnier/ Tuerlagerung",{"$f":"'[1]025'!F31","v":"418"},"418 Scharnier/ Tuerlagerung"]
[null,null,null,null,"Bedienoberflaeche",{"$f":"'[1]025'!F8","v":"419"},"419 Bedienoberflaeche"]
[null,null,null,null,"Aussentuer, Oben",{"$f":"'[1]025'!F6","v":"420"},"420 Aussentuer, Oben"]
[null,null,null,null,"Aussentuer, Mitte",{"$f":"'[1]025'!F5","v":"421"},"421 Aussentuer, Mitte"]
[null,null,null,null,"Aussentuer, Unten",{"$f":"'[1]025'!F7","v":"422"},"422 Aussentuer, Unten"]
[null,null,null,null,"untere Aussentuer, Oben",{"$f":"'[1]025'!F41","v":"423"},"423 untere Aussentuer, Oben"]
[null,null,null,null,"untere Aussentuer, Unten",{"$f":"'[1]025'!F42","v":"424"},"424 untere Aussentuer, Unten"]
[null,null,null,null,"Front Links (Truhe)",{"$f":"'[1]025'!F15","v":"425"},"425 Front Links (Truhe)"]
[null,null,null,null,"Front Mitte (Truhe)",{"$f":"'[1]025'!F16","v":"426"},"426 Front Mitte (Truhe)"]
[null,null,null,null,"Front Rechts (Truhe)",{"$f":"'[1]025'!F17","v":"427"},"427 Front Rechts (Truhe)"]
[null,null,null,null,"Deckel (Truhe) Links ",{"$f":"'[1]025'!F11","v":"428"},"428 Deckel (Truhe) Links "]
[null,null,null,null,"Deckel (Truhe) Mitte",{"$f":"'[1]025'!F12","v":"429"},"429 Deckel (Truhe) Mitte"]
[null,null,null,null,"Deckel (Truhe) Rechts",{"$f":"'[1]025'!F13","v":"430"},"430 Deckel (Truhe) Rechts"]
[null,null,null,null,"Branding (Aufkleber, Logo, …)",{"$f":"'[1]025'!F10","v":"530"},"530 Branding (Aufkleber, Logo, …)"]
[null,null,null,null,"Kompartimenttür",{"$f":"'[1]025'!F26","v":"692"},"692 Kompartimenttür"]
[null,null,null,null,"Innenbehälter Kühlteil",{"$f":"'[1]025'!F23","v":"701"},"701 Innenbehälter Kühlteil"]
[null,null,null,null,"Innentür Kühlteil",{"$f":"'[1]025'!F25","v":"702"},"702 Innentür Kühlteil"]
[null,null,null,null,"Fehlerort nicht zuordenbar",{"$f":"'[1]025'!F14","v":"999"},"999 Fehlerort nicht zuordenbar"]
["Produkt-","undicht",{"$f":"'[1]030'!B21","v":"002"},{"$f":"C212&\" \"&B212","v":"002 undicht"},"Verdampfer Gefrierteil",{"$f":"'[1]030'!F80","v":"017"},"017 Verdampfer Gefrierteil"]
["mangel","Bruch",{"$f":"'[1]030'!B6","v":"010"},"010 Bruch","Verdampfer Kuehlteil",{"$f":"'[1]030'!F81","v":"018"},"018 Verdampfer Kuehlteil"]
[30,"Knick",{"$f":"'[1]030'!B12","v":"012"},"012 Knick","Verfluessiger",{"$f":"'[1]030'!F83","v":"020"},"020 Verfluessiger"]
[null,"lose",{"$f":"'[1]030'!B15","v":"014"},"014 lose","Deckel (Truhe) / Schiebedeckel",{"$f":"'[1]030'!F17","v":"026"},"026 Deckel (Truhe) / Schiebedeckel"]
[null,"Riss",{"$f":"'[1]030'!B16","v":"015"},"015 Riss","Griff",{"$f":"'[1]030'!F31","v":"030"},"030 Griff"]
["(kein ","fehlt",{"$f":"'[1]030'!B9","v":"018"},"018 fehlt","Rueckseite",{"$f":"'[1]030'!F53","v":"034"},"034 Rueckseite"]
["Transport-","Kondenswasser",{"$f":"'[1]030'!B13","v":"019"},"019 Kondenswasser","Seitenwand allgemein",{"$f":"'[1]030'!F59","v":"036"},"036 Seitenwand allgemein"]
["schaden","laeuft ueber",{"$f":"'[1]030'!B14","v":"020"},"020 laeuft ueber","Teile der Innenausstattung",{"$f":"'[1]030'!F64","v":"039"},"039 Teile der Innenausstattung"]
["erkennbar)","schief",{"$f":"'[1]030'!B18","v":"022"},"022 schief","Geraetedecke/ Tischplatte",{"$f":"'[1]030'!F30","v":"040"},"040 Geraetedecke/ Tischplatte"]
[null,"schwergaengig",{"$f":"'[1]030'!B19","v":"023"},"023 schwergaengig","Truhenabdeckrahmen",{"$f":"'[1]030'!F69","v":"041"},"041 Truhenabdeckrahmen"]
[null,"Vereisung",{"$f":"'[1]030'!B23","v":"024"},"024 Vereisung","Tuer Gefrierteil",{"$f":"'[1]030'!F70","v":"042"},"042 Tuer Gefrierteil"]
[null,"Verbogen/Verzogen",{"$f":"'[1]030'!B22","v":"025"},"025 Verbogen/Verzogen","Tuer Kuehlteil",{"$f":"'[1]030'!F71","v":"043"},{"$f":"F223&\" \"&E223","v":"043 Tuer Kuehlteil"}]
[null,"verstellt/versetzt",{"$f":"'[1]030'!B25","v":"027"},"027 verstellt/versetzt","Gehaeusedurchfuehrung",{"$f":"'[1]030'!F29","v":"047"},"047 Gehaeusedurchfuehrung"]
[null,"verstopft",{"$f":"'[1]030'!B26","v":"028"},"028 verstopft","Lichtschalter",{"$f":"'[1]030'!F46","v":"049"},"049 Lichtschalter"]
[null,"zu stark angezogen",{"$f":"'[1]030'!B28","v":"029"},"029 zu stark angezogen","Regelknopf",{"$f":"'[1]030'!F51","v":"050"},"050 Regelknopf"]
[null,"blockiert / klemmt",{"$f":"'[1]030'!B5","v":"058"},"058 blockiert / klemmt","Tauwasserablauf",{"$f":"'[1]030'!F60","v":"051"},"051 Tauwasserablauf"]
[null,"Teil falsch",{"$f":"'[1]030'!B20","v":"079"},"079 Teil falsch","Tauwasserschale",{"$f":"'[1]030'!F62","v":"052"},"052 Tauwasserschale"]
[null,"Geruch",{"$f":"'[1]030'!B10","v":"083"},"083 Geruch","Thermostat-/ Lichtschaltergehaeuse",{"$f":"'[1]030'!F66","v":"053"},"053 Thermostat-/ Lichtschaltergehaeuse"]
[null,"falsch montiert",{"$f":"'[1]030'!B7","v":"091"},"091 falsch montiert","Tuer Sterne-Fach",{"$f":"'[1]030'!F72","v":"056"},"056 Tuer Sterne-Fach"]
[null,"Schaumaustritt",{"$f":"'[1]030'!B17","v":"103"},"103 Schaumaustritt","Heizung",{"$f":"'[1]030'!F34","v":"060"},"060 Heizung"]
[null,"Verschmutzt",{"$f":"'[1]030'!B24","v":"148"},"148 Verschmutzt","Temperaturfuehler",{"$f":"'[1]030'!F65","v":"073"},"073 Temperaturfuehler"]
[null,"walkt",{"$f":"'[1]030'!B27","v":"204"},"204 walkt","Dekorrahmen",{"$f":"'[1]030'!F19","v":"094"},"094 Dekorrahmen"]
[null,"Isolationsfehler",{"$f":"'[1]030'!B11","v":"296"},"296 Isolationsfehler","Tauwasserverschluss-Stopfen GT",{"$f":"'[1]030'!F63","v":"096"},"096 Tauwasserverschluss-Stopfen GT"]
[null,"Fehlerart nicht zuordenbar",{"$f":"'[1]030'!B8","v":"999"},"999 Fehlerart nicht zuordenbar","Tuerkoppelungssatz",{"$f":"'[1]030'!F73","v":"097"},"097 Tuerkoppelungssatz"]
[null,null,null,null,"Querverbindung",{"$f":"'[1]030'!F50","v":"099"},"099 Querverbindung"]
[null,null,null,null,"Schublade",{"$f":"'[1]030'!F58","v":"102"},"102 Schublade"]
[null,null,null,null,"Schaltnocken/ Tuermagnet",{"$f":"'[1]030'!F54","v":"104"},"104 Schaltnocken/ Tuermagnet"]
[null,null,null,null,"Abdeckung",{"$f":"'[1]030'!F5","v":"105"},"105 Abdeckung"]
[null,null,null,null,"Dichtung Tuer Sterne-Fach",{"$f":"'[1]030'!F22","v":"159"},"159 Dichtung Tuer Sterne-Fach"]
[null,null,null,null,"Beipack",{"$f":"'[1]030'!F11","v":"232"},"232 Beipack"]
[null,null,null,null,"Ventil Wasserzulauf",{"$f":"'[1]030'!F75","v":"252"},"252 Ventil Wasserzulauf"]
[null,null,null,null,"Verdampferwanne",{"$f":"'[1]030'!F82","v":"257"},"257 Verdampferwanne"]
[null,null,null,null,"Auszug-/ Teleskopschiene",{"$f":"'[1]030'!F9","v":"259"},"259 Auszug-/ Teleskopschiene"]
[null,null,null,null,"Eiswuerfelbereiter",{"$f":"'[1]030'!F25","v":"265"},"265 Eiswuerfelbereiter"]
[null,null,null,null,"Trennplatte vertikal",{"$f":"'[1]030'!F68","v":"266"},"266 Trennplatte vertikal"]
[null,null,null,null,"Kaelteakku",{"$f":"'[1]030'!F42","v":"272"},"272 Kaelteakku"]
[null,null,null,null,"Verbindungsbausatz SBS",{"$f":"'[1]030'!F79","v":"273"},"273 Verbindungsbausatz SBS"]
[null,null,null,null,"Druckausgleichsventil",{"$f":"'[1]030'!F24","v":"274"},"274 Druckausgleichsventil"]
[null,null,null,null,"Wasserschlauch",{"$f":"'[1]030'!F86","v":"275"},"275 Wasserschlauch"]
[null,null,null,null,"Tauwasserablaufventil",{"$f":"'[1]030'!F61","v":"276"},"276 Tauwasserablaufventil"]
[null,null,null,null,"Eiswuerfelschale",{"$f":"'[1]030'!F26","v":"295"},"295 Eiswuerfelschale"]
[null,null,null,null,"Kompressortraeger",{"$f":"'[1]030'!F44","v":"309"},"309 Kompressortraeger"]
[null,null,null,null,"Draht-/ Holzrost",{"$f":"'[1]030'!F23","v":"336"},"336 Draht-/ Holzrost"]
[null,null,null,null,"Innenbehälter Gefrierteil",{"$f":"'[1]030'!F36","v":"364"},"364 Innenbehälter Gefrierteil"]
[null,null,null,null,"Innentür Gefrierteil",{"$f":"'[1]030'!F39","v":"374"},"374 Innentür Gefrierteil"]
[null,null,null,null,"Schliessdaempfung",{"$f":"'[1]030'!F56","v":"408"},"408 Schliessdaempfung"]
[null,null,null,null,"Scharnier/ Tuerlagerung",{"$f":"'[1]030'!F55","v":"418"},"418 Scharnier/ Tuerlagerung"]
[null,null,null,null,"Bedienoberflaeche",{"$f":"'[1]030'!F10","v":"419"},"419 Bedienoberflaeche"]
[null,null,null,null,"Halter fuer Auszug-/ Teleskopschiene",{"$f":"'[1]030'!F33","v":"431"},"431 Halter fuer Auszug-/ Teleskopschiene"]
[null,null,null,null,"Ausgabeeinheit Eis/ Wasser",{"$f":"'[1]030'!F8","v":"432"},"432 Ausgabeeinheit Eis/ Wasser"]
[null,null,null,null,"Deckel Elektronikeinschub",{"$f":"'[1]030'!F18","v":"434"},"434 Deckel Elektronikeinschub"]
[null,null,null,null,"Wassertank",{"$f":"'[1]030'!F87","v":"436"},"436 Wassertank"]
[null,null,null,null,"Rollenplatte",{"$f":"'[1]030'!F52","v":"437"},"437 Rollenplatte"]
[null,null,null,null,"Trennplatte Horizontal/ Zwischensteg",{"$f":"'[1]030'!F67","v":"438"},"438 Trennplatte Horizontal/ Zwischensteg"]
[null,null,null,null,"Wasserfilter",{"$f":"'[1]030'!F85","v":"471"},"471 Wasserfilter"]
[null,null,null,null,"Schliessmechanismus",{"$f":"'[1]030'!F57","v":"472"},"472 Schliessmechanismus"]
[null,null,null,null,"Luftfuehrung",{"$f":"'[1]030'!F48","v":"520"},"520 Luftfuehrung"]
[null,null,null,null,"Wasserzulauf (Eiswuerfelbereiter)",{"$f":"'[1]030'!F88","v":"521"},"521 Wasserzulauf (Eiswuerfelbereiter)"]
[null,null,null,null,"Ventilator - Verfluessiger",{"$f":"'[1]030'!F78","v":"522"},"522 Ventilator - Verfluessiger"]
[null,null,null,null,"Ventilator - GT",{"$f":"'[1]030'!F76","v":"523"},"523 Ventilator - GT"]
[null,null,null,null,"Ventilator - KT/ Biofresh",{"$f":"'[1]030'!F77","v":"524"},"524 Ventilator - KT/ Biofresh"]
[null,null,null,null,"Kuehlkassette",{"$f":"'[1]030'!F45","v":"525"},"525 Kuehlkassette"]
[null,null,null,null,"Griffbefestigung (Nietmutter, …)",{"$f":"'[1]030'!F32","v":"526"},"526 Griffbefestigung (Nietmutter, …)"]
[null,null,null,null,"Abdeckung Verdampfer",{"$f":"'[1]030'!F6","v":"528"},"528 Abdeckung Verdampfer"]
[null,null,null,null,"Wandabstandhalter",{"$f":"'[1]030'!F84","v":"529"},"529 Wandabstandhalter"]
[null,null,null,null,"Branding (Aufkleber, Logo, …)",{"$f":"'[1]030'!F13","v":"530"},"530 Branding (Aufkleber, Logo, …)"]
[null,null,null,null,"Dichtung Tuer Gefrierteil",{"$f":"'[1]030'!F20","v":"531"},"531 Dichtung Tuer Gefrierteil"]
[null,null,null,null,"Dichtung Tuer Kuehlteil",{"$f":"'[1]030'!F21","v":"532"},"532 Dichtung Tuer Kuehlteil"]
[null,null,null,null,"Absorber",{"$f":"'[1]030'!F7","v":"596"},"596 Absorber"]
[null,null,null,null,"Crushmodul",{"$f":"'[1]030'!F15","v":"599"},"599 Crushmodul"]
[null,null,null,null,"Fusspedaloeffner",{"$f":"'[1]030'!F28","v":"600"},"600 Fusspedaloeffner"]
[null,null,null,null,"Luftfilter",{"$f":"'[1]030'!F47","v":"604"},"604 Luftfilter"]
[null,null,null,null,"Profilleiste (Price-tag, Scannerschiene,..)",{"$f":"'[1]030'!F49","v":"607"},"607 Profilleiste (Price-tag, Scannerschiene,..)"]
[null,null,null,null,"Türöffnungsmodul",{"$f":"'[1]030'!F74","v":"609"},"609 Türöffnungsmodul"]
[null,null,null,null,"Wildgehaenge",{"$f":"'[1]030'!F89","v":"611"},"611 Wildgehaenge"]
[null,null,null,null,"Blende Bedienteil, -oberflaeche (User Interface) ",{"$f":"'[1]030'!F12","v":"613"},{"$f":"F287&\" \"&E287","v":"613 Blende Bedienteil, -oberflaeche (User Interface) "}]
[null,null,null,null,"Humidifier (Hydrobreeze)",{"$f":"'[1]030'!F35","v":"683"},"683 Humidifier (Hydrobreeze)"]
[null,null,null,null,"Kompartimenttür",{"$f":"'[1]030'!F43","v":"692"},"692 Kompartimenttür"]
[null,null,null,null,"CO2-Notkühlung",{"$f":"'[1]030'!F14","v":"693"},"693 CO2-Notkühlung"]
[null,null,null,null,"Cryo-Racks",{"$f":"'[1]030'!F16","v":"694"},"694 Cryo-Racks"]
[null,null,null,null,"Innenbehälter Kühlteil Edelstahlverkleidung",{"$f":"'[1]030'!F38","v":"699"},"699 Innenbehälter Kühlteil Edelstahlverkleidung"]
[null,null,null,null,"Innentür Kühlteil Edelstahlverkleidung",{"$f":"'[1]030'!F41","v":"700"},"700 Innentür Kühlteil Edelstahlverkleidung"]
[null,null,null,null,"Innenbehälter Kühlteil",{"$f":"'[1]030'!F37","v":"701"},"701 Innenbehälter Kühlteil"]
[null,null,null,null,"Innentür Kühlteil",{"$f":"'[1]030'!F40","v":"702"},"702 Innentür Kühlteil"]
[null,null,null,null,"Fehlerort nicht zuordenbar",{"$f":"'[1]030'!F27","v":"999"},"999 Fehlerort nicht zuordenbar"]
["kein Fehler","Einbau-/Aufstellfehler",{"$f":"'[1]080'!B7","v":"081"},{"$f":"C297&\" \"&B297","v":"081 Einbau-/Aufstellfehler"},"Ventil Kaeltekreislauf",{"$f":"'[1]080'!F31","v":"009"},"009 Ventil Kaeltekreislauf"]
[80,"Fehler tritt z. Zt. nicht auf",{"$f":"'[1]080'!B9","v":"082"},{"$f":"C298&\" \"&B298","v":"082 Fehler tritt z. Zt. nicht auf"},"Griff",{"$f":"'[1]080'!F11","v":"030"},{"$f":"F298&\" \"&E298","v":"030 Griff"}]
[null,"Geruch",{"$f":"'[1]080'!B11","v":"083"},"083 Geruch","Rueckseite",{"$f":"'[1]080'!F22","v":"034"},"034 Rueckseite"]
[null,"Umgebungstemperatur zu kalt",{"$f":"'[1]080'!B24","v":"085"},"085 Umgebungstemperatur zu kalt","Tuer Gefrierteil",{"$f":"'[1]080'!F28","v":"042"},"042 Tuer Gefrierteil"]
[null,"Umgebungstemperatur zu warm",{"$f":"'[1]080'!B25","v":"086"},"086 Umgebungstemperatur zu warm","Tuer Kuehlteil",{"$f":"'[1]080'!F29","v":"043"},"043 Tuer Kuehlteil"]
[null,"Verschmutzt",{"$f":"'[1]080'!B26","v":"148"},"148 Verschmutzt","Tauwasserablauf",{"$f":"'[1]080'!F25","v":"051"},"051 Tauwasserablauf"]
[null,"normale Betriebsgeraeusche",{"$f":"'[1]080'!B13","v":"304"},"304 normale Betriebsgeraeusche","Tauwasserschale",{"$f":"'[1]080'!F26","v":"052"},"052 Tauwasserschale"]
[null,"Teil nicht mehr vorhanden",{"$f":"'[1]080'!B22","v":"305"},"305 Teil nicht mehr vorhanden","Beleuchtung",{"$f":"'[1]080'!F5","v":"059"},"059 Beleuchtung"]
[null,"Demomode bei Inbetriebnahme",{"$f":"'[1]080'!B6","v":"339"},"339 Demomode bei Inbetriebnahme","Kompressor",{"$f":"'[1]080'!F18","v":"063"},"063 Kompressor"]
[null,"Spannungsversorgung fehlt",{"$f":"'[1]080'!B21","v":"340"},"340 Spannungsversorgung fehlt","Elektronikplatine",{"$f":"'[1]080'!F6","v":"172"},"172 Elektronikplatine"]
[null,"Tueranschlag wechsel",{"$f":"'[1]080'!B23","v":"341"},"341 Tueranschlag wechsel","Winterheizung",{"$f":"'[1]080'!F38","v":"199"},"199 Winterheizung"]
[null,"Prospektangaben nicht eindeutig",{"$f":"'[1]080'!B19","v":"342"},"342 Prospektangaben nicht eindeutig","Geraetemerkmale",{"$f":"'[1]080'!F10","v":"206"},"206 Geraetemerkmale"]
[null,"Bedienungsfehler/nicht Beachtung BDA",{"$f":"'[1]080'!B5","v":"343"},"343 Bedienungsfehler/nicht Beachtung BDA","Prospektangaben",{"$f":"'[1]080'!F21","v":"207"},"207 Prospektangaben"]
[null,"Oxidation",{"$f":"'[1]080'!B18","v":"344"},"344 Oxidation","Technische Klaerung (Funktionsbeschreibung)",{"$f":"'[1]080'!F27","v":"208"},"208 Technische Klaerung (Funktionsbeschreibung)"]
[null,"Normale Temperaturdifferenzen/ -schwankungen",{"$f":"'[1]080'!B15","v":"345"},"345 Normale Temperaturdifferenzen/ -schwankungen","Gehaeuse",{"$f":"'[1]080'!F8","v":"223"},"223 Gehaeuse"]
[null,"falsches Geraet",{"$f":"'[1]080'!B8","v":"346"},"346 falsches Geraet","Kaeltekreislauf",{"$f":"'[1]080'!F17","v":"245"},"245 Kaeltekreislauf"]
[null,"normaler Energieverbrauch",{"$f":"'[1]080'!B17","v":"406"},"406 normaler Energieverbrauch","Ventil Wasserzulauf",{"$f":"'[1]080'!F32","v":"252"},"252 Ventil Wasserzulauf"]
[null,"normale Laufzeit",{"$f":"'[1]080'!B14","v":"407"},"407 normale Laufzeit","Innenbehälter Gefrierteil",{"$f":"'[1]080'!F14","v":"364"},"364 Innenbehälter Gefrierteil"]
[null,"normale Vereisung, Bereifung",{"$f":"'[1]080'!B16","v":"408"},"408 normale Vereisung, Bereifung","Schliessdaempfung",{"$f":"'[1]080'!F23","v":"408"},"408 Schliessdaempfung"]
[null,"Inkompatibel (z.B. Tablet, Smartphone)",{"$f":"'[1]080'!B12","v":"410"},"410 Inkompatibel (z.B. Tablet, Smartphone)","Hausinstallation",{"$f":"'[1]080'!F12","v":"473"},"473 Hausinstallation"]
[null,"Signalstaerke",{"$f":"'[1]080'!B20","v":"412"},"412 Signalstaerke","Geraetebelueftung",{"$f":"'[1]080'!F9","v":"474"},"474 Geraetebelueftung"]
[null,"Fehlerart nicht zuordenbar",999,{"$f":"C318&\" \"&B318","v":"999 Fehlerart nicht zuordenbar"},"Loetstellen",{"$f":"'[1]080'!F19","v":"475"},"475 Loetstellen"]
[null,null,null,null,"Luft-, Kerntemperatur",{"$f":"'[1]080'!F20","v":"476"},"476 Luft-, Kerntemperatur"]
[null,null,null,null,"Ist/ Sollwertanzeige",{"$f":"'[1]080'!F16","v":"479"},"479 Ist/ Sollwertanzeige"]
[null,null,null,null,"Ventilator - Verfluessiger",{"$f":"'[1]080'!F35","v":"522"},"522 Ventilator - Verfluessiger"]
[null,null,null,null,"Ventilator - GT",{"$f":"'[1]080'!F33","v":"523"},"523 Ventilator - GT"]
[null,null,null,null,"Ventilator - KT/ Biofresh",{"$f":"'[1]080'!F34","v":"524"},"524 Ventilator - KT/ Biofresh"]
[null,null,null,null,"Wandabstandhalter",{"$f":"'[1]080'!F37","v":"529"},"529 Wandabstandhalter"]
[null,null,null,null,"Smart Device Box",{"$f":"'[1]080'!F24","v":"608"},"608 Smart Device Box"]
[null,null,null,null,"Türöffnungsmodul",{"$f":"'[1]080'!F30","v":"609"},"609 Türöffnungsmodul"]
[null,null,null,null,"Verbrauchsartikel (Filter, ..)",{"$f":"'[1]080'!F36","v":"610"},"610 Verbrauchsartikel (Filter, ..)"]
[null,null,null,null,"Humidifier (Hydrobreeze)",{"$f":"'[1]080'!F13","v":"683"},"683 Humidifier (Hydrobreeze)"]
[null,null,null,null,"Innenbehälter Kühlteil",{"$f":"'[1]080'!F15","v":"701"},"701 Innenbehälter Kühlteil"]
[null,null,null,null,"Fehlerort nicht zuordenbar",{"$f":"'[1]080'!F7","v":"999"},{"$f":"F330&\" \"&E330","v":"999 Fehlerort nicht zuordenbar"}]
["Fehler tritt zur","Zeitweises Geräusch",{"$f":"'[1]101'!B14","v":"483"},"483 Zeitweises Geräusch","Verdampfer Gefrierteil","017","017 Verdampfer Gefrierteil"]
["Zeit nicht auf","Zeitweise Temperaturabweichung",{"$f":"'[1]101'!B9","v":"484"},"484 Zeitweise Temperaturabweichung","Verdampfer Kuehlteil",{"$f":"'[1]101'!F30","v":"018"},"018 Verdampfer Kuehlteil"]
[101,"Zeitweise Alarmmeldung ",{"$f":"'[1]101'!B6","v":"485"},"485 Zeitweise Alarmmeldung ","Deckel (Truhe) / Schiebedeckel",{"$f":"'[1]101'!F7","v":"026"},"026 Deckel (Truhe) / Schiebedeckel"]
[null,"Zeitweises Auslösen der Sicherheitseinrichtung",{"$f":"'[1]101'!B13","v":"486"},"486 Zeitweises Auslösen der Sicherheitseinrichtung","Glasplatten, Absteller usw.",{"$f":"'[1]101'!F16","v":"029"},"029 Glasplatten, Absteller usw."]
[null,"Zeitweise zu niedrige / hohe  Luftfeuchtigkeit",{"$f":"'[1]101'!B10","v":"487"},"487 Zeitweise zu niedrige / hohe  Luftfeuchtigkeit","Seitenwand allgemein",{"$f":"'[1]101'!F23","v":"036"},"036 Seitenwand allgemein"]
[null,"Keine Verbindung",{"$f":"'[1]101'!B5","v":"488"},"488 Keine Verbindung","Geraetedecke/ Tischplatte",{"$f":"'[1]101'!F15","v":"040"},"040 Geraetedecke/ Tischplatte"]
[null,"Zeitweise Kondensat / Betauung",{"$f":"'[1]101'!B8","v":"489"},"489 Zeitweise Kondensat / Betauung","Tuer Gefrierteil",{"$f":"'[1]101'!F26","v":"042"},"042 Tuer Gefrierteil"]
[null,"Zeitweiser Totalausfall",{"$f":"'[1]101'!B12","v":"490"},"490 Zeitweiser Totalausfall","Tuer Kuehlteil",{"$f":"'[1]101'!F27","v":"043"},"043 Tuer Kuehlteil"]
[null,"Zeitweiser Fehler der Beleuchtung",{"$f":"'[1]101'!B11","v":"491"},"491 Zeitweiser Fehler der Beleuchtung","Tauwasserablauf",{"$f":"'[1]101'!F24","v":"051"},"051 Tauwasserablauf"]
[null,"Zeitweise Blockiert / Schwergängig",{"$f":"'[1]101'!B7","v":"492"},"492 Zeitweise Blockiert / Schwergängig","Beleuchtung",{"$f":"'[1]101'!F6","v":"059"},"059 Beleuchtung"]
[null,null,null,null,"Schublade",{"$f":"'[1]101'!F22","v":"102"},"102 Schublade"]
[null,null,null,null,"Dichtung Tuer Sterne-Fach",{"$f":"'[1]101'!F10","v":"159"},"159 Dichtung Tuer Sterne-Fach"]
[null,null,null,null,"Elektronikplatine",{"$f":"'[1]101'!F12","v":"172"},"172 Elektronikplatine"]
[null,null,null,null,"Eiswuerfelbereiter",{"$f":"'[1]101'!F11","v":"265"},"265 Eiswuerfelbereiter"]
[null,null,null,null,"Tauwasserablaufventil",{"$f":"'[1]101'!F25","v":"276"},"276 Tauwasserablaufventil"]
[null,null,null,null,"Innenbehälter Gefrierteil",{"$f":"'[1]101'!F17","v":"364"},"364 Innenbehälter Gefrierteil"]
[null,null,null,null,"Schliessdaempfung",{"$f":"'[1]101'!F20","v":"408"},"408 Schliessdaempfung"]
[null,null,null,null,"Scharnier/ Tuerlagerung",{"$f":"'[1]101'!F19","v":"418"},"418 Scharnier/ Tuerlagerung"]
[null,null,null,null,"Ausgabeeinheit Eis/ Wasser",{"$f":"'[1]101'!F5","v":"432"},"432 Ausgabeeinheit Eis/ Wasser"]
[null,null,null,null,"Wassertank",{"$f":"'[1]101'!F31","v":"436"},"436 Wassertank"]
[null,null,null,null,"Schliessmechanismus",{"$f":"'[1]101'!F21","v":"472"},"472 Schliessmechanismus"]
[null,null,null,null,"Dichtung Tuer Gefrierteil",{"$f":"'[1]101'!F8","v":"531"},"531 Dichtung Tuer Gefrierteil"]
[null,null,null,null,"Dichtung Tuer Kuehlteil",{"$f":"'[1]101'!F9","v":"532"},"532 Dichtung Tuer Kuehlteil"]
[null,null,null,null,"Fusspedaloeffner",{"$f":"'[1]101'!F14","v":"600"},"600 Fusspedaloeffner"]
[null,null,null,null,"Türöffnungsmodul",{"$f":"'[1]101'!F28","v":"609"},"609 Türöffnungsmodul"]
[null,null,null,null,"Innenbehälter Kühlteil",{"$f":"'[1]101'!F18","v":"701"},"701 Innenbehälter Kühlteil"]
[null,null,null,null,"Fehlerort nicht zuordenbar",{"$f":"'[1]101'!F13","v":"999"},"999 Fehlerort nicht zuordenbar"]
["Vernetzung/","Leitungen Verdrahtungsfehler",{"$f":"'[1]046'!B9","v":"297"},{"$f":"C358&\" \"&B358","v":"297 Leitungen Verdrahtungsfehler"},"Schnittstelle (RS 485, RS 232, CAN BUS, MOD BUS, Ethernet, IR-Schluessel, WLAN, BT, USB …)",{"$f":"'[1]046'!F13","v":"470"},{"$f":"F358&\" \"&E358","v":"470 Schnittstelle (RS 485, RS 232, CAN BUS, MOD BUS, Ethernet, IR-Schluessel, WLAN, BT, USB …)"}]
["Kommunikation","Inkompatibel (z.B. Tablet, Smartphone)",{"$f":"'[1]046'!B6","v":"410"},"410 Inkompatibel (z.B. Tablet, Smartphone)","Abschlusswiderstand",{"$f":"'[1]046'!F5","v":"595"},"595 Abschlusswiderstand"]
[46,"Konfigurationsfehler",{"$f":"'[1]046'!B8","v":"411"},"411 Konfigurationsfehler","APP / Software",{"$f":"'[1]046'!F6","v":"597"},"597 APP / Software"]
[null,"Signalstaerke",{"$f":"'[1]046'!B10","v":"412"},"412 Signalstaerke","Infrarot-Schluessel",{"$f":"'[1]046'!F7","v":"601"},"601 Infrarot-Schluessel"]
[null,"Keine Verbindung",{"$f":"'[1]046'!B7","v":"488"},"488 Keine Verbindung","Konverter für seriellen Anschluss (EVCO, Carel)",{"$f":"'[1]046'!F8","v":"602"},"602 Konverter für seriellen Anschluss (EVCO, Carel)"]
[null,"Softwarefehler (BUG)",{"$f":"'[1]046'!B11","v":"588"},"588 Softwarefehler (BUG)","LAN-Kabel",{"$f":"'[1]046'!F9","v":"603"},"603 LAN-Kabel"]
[null,null,null,{"$f":"C377&\" \"&B377","v":"999 Fehlerart nicht zuordenbar"},"Master / Slave Modul (Homedialog)",{"$f":"'[1]046'!F11","v":"605"},"605 Master / Slave Modul (Homedialog)"]
[null,null,null,null,"Smart Device Box",{"$f":"'[1]046'!F14","v":"608"},"608 Smart Device Box"]
[null,null,null,null,"NFC, RFID Chip",{"$f":"'[1]046'!F12","v":"685"},"685 NFC, RFID Chip"]
[null,null,null,null,"Smartsensoren",{"$f":"'[1]046'!F17","v":"686"},"686 Smartsensoren"]
[null,null,null,null,"Lizenzshop",{"$f":"'[1]046'!F10","v":"695"},"695 Lizenzshop"]
[null,null,null,null,"SmartMonitoring",{"$f":"'[1]046'!F16","v":"696"},"696 SmartMonitoring"]
[null,null,null,null,"SmartCoolingHub",{"$f":"'[1]046'!F15","v":"697"},"697 SmartCoolingHub"]
["Wasserverlust","Bruch",201,"201 Bruch","Wasserschlauch",210,"210 Wasserschlauch"]
[200,"Riss",207,"207 Riss","Wasserventil",211,"211 Wasserventil"]
[null,"Montagefehler",208,"208 Montagefehler","Dichtung",212,"212 Dichtung"]
[null,"Undicht",209,"209 Undicht","Ablaufpumpe",213,"213 Ablaufpumpe"]
[null,"Überfüllung",205,"205 Überfüllung","Niveausensor",214,"214 Niveausensor"]
[null,"Beschädigung",206,"206 Beschädigung",null,null," "]
[null,"Fehlerart nicht zuordenbar","999","999 Fehlerart nicht zuordenbar"]

{"sheet":"Fehlergruppe","index":2,"n_rows":32,"n_cols":4,"rows_kept":32,"cut":false,"hidden":false,"merged":[]}
["Fehlergruppe Nr","Fehlergruppe DE","Groupe d'erreur","gruppo di errore"]
[5,"Kältekreislauf (Leckage/ Verstopfung/ Füllmenge)","Circuit de refroidissement","Ciclo frigorigeno (Perdita/ Occlusione/ Capacità)"]
[40,"Elektrik","Electricité","Impianto elettrico"]
[45,"Elektronik (Fehler an elektronischen Baugruppen)","Electronique","Elettronica (Errore dei componenti elettronici)"]
[50,"Mechanik","Mécanique","Meccanica"]
[60,"Geräusch","Bruit","Rumore"]
[65,"Oberflächen (Gerät oder Einzelteile/ Innen oder außen / kein Transport-schaden erkennbar!)","Surfaces","Superfici Nessun danno di trasporto identificabile sull'apparecchio o sue parti / né all'interno né all'esterno!"]
[25,"Transportschaden - Verpackung beschädigt","Avarie de transport Emballage endommagé","Danni di trasporto Imballaggio danneggiato"]
[26,"Transportschaden - Verpackung nicht mehr vorhanden","Avarie de transport Plus d'emballage","Danni di trasporto Imballaggio non più presente"]
[27,"Schadensursache unklar - Verpackung nicht beschädigt","Cause de dommage indéterminée Emballage pas endommagé","Causa del danno non chiara Imballaggio non Danneggiato"]
[30,"Produktmangel (kein Transportschaden erkennbar)","Défaut produit","Difetto del prodotto (nessun danno di trasporto riconoscibile)"]
[46,"Vernetzung/Kommunikation","Système électronique / communication","Rete / comunicazione"]
[80,"kein Fehler","pas d'erreur","Nessun errore"]
[101,"Fehler tritt zur Zeit nicht auf","Erreur ne se produit actuellement pas","Guasto al momento non verificato"]
[200,"Wasserverlust","Fuite d'eau","Perdita d'acqua"]
[]
[]
[]
[null,{"$f":"A2&\" \"&B2","v":"5 Kältekreislauf (Leckage/ Verstopfung/ Füllmenge)"}]
[null,"40 Elektrik"]
[null,"45 Elektronik (Fehler an elektronischen Baugruppen)"]
[null,"50 Mechanik"]
[null,"60 Geräusch"]
[null,"65 Oberflächen (Gerät oder Einzelteile/ Innen oder außen / kein Transport-schaden erkennbar!)"]
[null,"25 Transportschaden - Verpackung beschädigt"]
[null,"26 Transportschaden - Verpackung nicht mehr vorhanden"]
[null,"27 Schadensursache unklar - Verpackung nicht beschädigt"]
[null,"30 Produktmangel (kein Transportschaden erkennbar)"]
[null,"46 Vernetzung/Kommunikation"]
[null,"80 kein Fehler"]
[null,"101 Fehler tritt zur Zeit nicht auf"]
[null,"200 Wasserverlust"]

{"sheet":"Fehlercode_fuer_formel","index":3,"n_rows":116,"n_cols":14,"rows_kept":116,"cut":false,"hidden":true,"merged":[[0,0,0,13]]}
["Fehlergruppe"]
[{"$f":"Fehlergruppe!B19","v":"5 Kältekreislauf (Leckage/ Verstopfung/ Füllmenge)"},{"$f":"Fehlergruppe!B20","v":"40 Elektrik"},{"$f":"Fehlergruppe!B21","v":"45 Elektronik (Fehler an elektronischen Baugruppen)"},{"$f":"Fehlergruppe!B22","v":"50 Mechanik"},{"$f":"Fehlergruppe!B23","v":"60 Geräusch"},{"$f":"Fehlergruppe!B24","v":"65 Oberflächen (Gerät oder Einzelteile/ Innen oder außen / kein Transport-schaden erkennbar!)"},{"$f":"Fehlergruppe!B25","v":"25 Transportschaden - Verpackung beschädigt"},{"$f":"Fehlergruppe!B26","v":"26 Transportschaden - Verpackung nicht mehr vorhanden"},{"$f":"Fehlergruppe!B27","v":"27 Schadensursache unklar - Verpackung nicht beschädigt"},{"$f":"Fehlergruppe!B28","v":"30 Produktmangel (kein Transportschaden erkennbar)"},{"$f":"Fehlergruppe!B30","v":"80 kein Fehler"},{"$f":"Fehlergruppe!B31","v":"101 Fehler tritt zur Zeit nicht auf"},{"$f":"Fehlergruppe!B29","v":"46 Vernetzung/Kommunikation"},{"$f":"Fehlergruppe!B32","v":"200 Wasserverlust"}]
[]
[{"$f":"Fehlercodes_fuer_formel!D1","v":"001 Loetverbindung undicht"},{"$f":"Fehlercodes_fuer_formel!D33","v":"031 ausser Toleranz (Fuehler etc.)"},{"$f":"Fehlercodes_fuer_formel!D73","v":"034 Kurzschluss"},{"$f":"Fehlercodes_fuer_formel!D94","v":"010 Bruch"},{"$f":"Fehlercodes_fuer_formel!D113","v":"064 Knackgeraeusch"},{"$f":"Fehlercodes_fuer_formel!D139","v":"013 Kratzer"},{"$f":"Fehlercodes_fuer_formel!D173","v":"010 Bruch"},{"$f":"Fehlercodes_fuer_formel!D173","v":"010 Bruch"},{"$f":"Fehlercodes_fuer_formel!D173","v":"010 Bruch"},{"$f":"Fehlercodes_fuer_formel!D212","v":"002 undicht"},{"$f":"Fehlercodes_fuer_formel!D297","v":"081 Einbau-/Aufstellfehler"},{"$f":"Fehlercodes_fuer_formel!D331","v":"483 Zeitweises Geräusch"},{"$f":"Fehlercodes_fuer_formel!D358","v":"297 Leitungen Verdrahtungsfehler"},{"$f":"Fehlercodes_fuer_formel!D371","v":"201 Bruch"}]
[{"$f":"Fehlercodes_fuer_formel!D2","v":"012 Knick"},{"$f":"Fehlercodes_fuer_formel!D34","v":"032 elektrische Unterbrechung"},{"$f":"Fehlercodes_fuer_formel!D74","v":"039 regelt falsch"},{"$f":"Fehlercodes_fuer_formel!D95","v":"023 schwergaengig"},{"$f":"Fehlercodes_fuer_formel!D114","v":"065 Knarr-/ Quietschgeräusch"},{"$f":"Fehlercodes_fuer_formel!D140","v":"030 Zu viel Lack"},{"$f":"Fehlercodes_fuer_formel!D174","v":"011 Delle"},{"$f":"Fehlercodes_fuer_formel!D174","v":"011 Delle"},{"$f":"Fehlercodes_fuer_formel!D174","v":"011 Delle"},{"$f":"Fehlercodes_fuer_formel!D213","v":"010 Bruch"},{"$f":"Fehlercodes_fuer_formel!D298","v":"082 Fehler tritt z. Zt. nicht auf"},{"$f":"Fehlercodes_fuer_formel!D332","v":"484 Zeitweise Temperaturabweichung"},{"$f":"Fehlercodes_fuer_formel!D359","v":"410 Inkompatibel (z.B. Tablet, Smartphone)"},{"$f":"Fehlercodes_fuer_formel!D372","v":"207 Riss"}]
[{"$f":"Fehlercodes_fuer_formel!D3","v":"023 schwergaengig"},{"$f":"Fehlercodes_fuer_formel!D35","v":"033 falsche Anzeige"},{"$f":"Fehlercodes_fuer_formel!D75","v":"040 verschmort"},{"$f":"Fehlercodes_fuer_formel!D96","v":"025 Verbogen/Verzogen"},{"$f":"Fehlercodes_fuer_formel!D115","v":"066 Laufgeraeusch"},{"$f":"Fehlercodes_fuer_formel!D141","v":"070 Abdruck"},{"$f":"Fehlercodes_fuer_formel!D175","v":"012 Knick"},{"$f":"Fehlercodes_fuer_formel!D175","v":"012 Knick"},{"$f":"Fehlercodes_fuer_formel!D175","v":"012 Knick"},{"$f":"Fehlercodes_fuer_formel!D214","v":"012 Knick"},{"$f":"Fehlercodes_fuer_formel!D299","v":"083 Geruch"},{"$f":"Fehlercodes_fuer_formel!D333","v":"485 Zeitweise Alarmmeldung "},{"$f":"Fehlercodes_fuer_formel!D360","v":"411 Konfigurationsfehler"},{"$f":"Fehlercodes_fuer_formel!D373","v":"208 Montagefehler"}]
[{"$f":"Fehlercodes_fuer_formel!D4","v":"028 verstopft"},{"$f":"Fehlercodes_fuer_formel!D36","v":"034 Kurzschluss"},{"$f":"Fehlercodes_fuer_formel!D76","v":"041 Wackelkontakt"},{"$f":"Fehlercodes_fuer_formel!D97","v":"027 verstellt/versetzt"},{"$f":"Fehlercodes_fuer_formel!D116","v":"069 Vibrationsgeraeusch"},{"$f":"Fehlercodes_fuer_formel!D142","v":"071 Korrosion"},{"$f":"Fehlercodes_fuer_formel!D176","v":"013 Kratzer"},{"$f":"Fehlercodes_fuer_formel!D176","v":"013 Kratzer"},{"$f":"Fehlercodes_fuer_formel!D176","v":"013 Kratzer"},{"$f":"Fehlercodes_fuer_formel!D215","v":"014 lose"},{"$f":"Fehlercodes_fuer_formel!D300","v":"085 Umgebungstemperatur zu kalt"},{"$f":"Fehlercodes_fuer_formel!D334","v":"486 Zeitweises Auslösen der Sicherheitseinrichtung"},{"$f":"Fehlercodes_fuer_formel!D361","v":"412 Signalstaerke"},{"$f":"Fehlercodes_fuer_formel!D374","v":"209 Undicht"}]
[{"$f":"Fehlercodes_fuer_formel!D5","v":"058 blockiert / klemmt"},{"$f":"Fehlercodes_fuer_formel!D37","v":"036 Leitungen beschaedigt"},{"$f":"Fehlercodes_fuer_formel!D77","v":"042 Beleuchtung wird nicht / teilweise / unzureichend angesteuert"},{"$f":"Fehlercodes_fuer_formel!D98","v":"033 falsche Anzeige"},{"$f":"Fehlercodes_fuer_formel!D117","v":"089 Klappergeräusch/Klopfgeräusch"},{"$f":"Fehlercodes_fuer_formel!D143","v":"072 zu wenig Lack"},{"$f":"Fehlercodes_fuer_formel!D177","v":"014 lose"},{"$f":"Fehlercodes_fuer_formel!D177","v":"014 lose"},{"$f":"Fehlercodes_fuer_formel!D177","v":"014 lose"},{"$f":"Fehlercodes_fuer_formel!D216","v":"015 Riss"},{"$f":"Fehlercodes_fuer_formel!D301","v":"086 Umgebungstemperatur zu warm"},{"$f":"Fehlercodes_fuer_formel!D335","v":"487 Zeitweise zu niedrige / hohe  Luftfeuchtigkeit"},{"$f":"Fehlercodes_fuer_formel!D362","v":"488 Keine Verbindung"},{"$f":"Fehlercodes_fuer_formel!D375","v":"205 Überfüllung"}]
[{"$f":"Fehlercodes_fuer_formel!D6","v":"060 keine Leistung"},{"$f":"Fehlercodes_fuer_formel!D38","v":"039 regelt falsch"},{"$f":"Fehlercodes_fuer_formel!D78","v":"043 fehlerhafte Anzeige / Display"},{"$f":"Fehlercodes_fuer_formel!D99","v":"057 abgenutzt"},{"$f":"Fehlercodes_fuer_formel!D118","v":"203 Schaltgeraeusch"},{"$f":"Fehlercodes_fuer_formel!D144","v":"087 blaettert ab"},{"$f":"Fehlercodes_fuer_formel!D178","v":"015 Riss"},{"$f":"Fehlercodes_fuer_formel!D178","v":"015 Riss"},{"$f":"Fehlercodes_fuer_formel!D178","v":"015 Riss"},{"$f":"Fehlercodes_fuer_formel!D217","v":"018 fehlt"},{"$f":"Fehlercodes_fuer_formel!D302","v":"148 Verschmutzt"},{"$f":"Fehlercodes_fuer_formel!D336","v":"488 Keine Verbindung"},{"$f":"Fehlercodes_fuer_formel!D363","v":"588 Softwarefehler (BUG)"},{"$f":"Fehlercodes_fuer_formel!D376","v":"206 Beschädigung"}]
[{"$f":"Fehlercodes_fuer_formel!D7","v":"291 Lokringverbindung undicht"},{"$f":"Fehlercodes_fuer_formel!D39","v":"040 verschmort"},{"$f":"Fehlercodes_fuer_formel!D79","v":"044 Fehlfunktion allgemein"},{"$f":"Fehlercodes_fuer_formel!D100","v":"058 blockiert / klemmt"},{"$f":"Fehlercodes_fuer_formel!D119","v":"300 Strömungs-/Einspritzgeräusch"},{"$f":"Fehlercodes_fuer_formel!D145","v":"088 Wölbung/Beule"},{"$f":"Fehlercodes_fuer_formel!D179","v":"016 Scheuerstelle"},{"$f":"Fehlercodes_fuer_formel!D179","v":"016 Scheuerstelle"},{"$f":"Fehlercodes_fuer_formel!D179","v":"016 Scheuerstelle"},{"$f":"Fehlercodes_fuer_formel!D218","v":"019 Kondenswasser"},{"$f":"Fehlercodes_fuer_formel!D303","v":"304 normale Betriebsgeraeusche"},{"$f":"Fehlercodes_fuer_formel!D337","v":"489 Zeitweise Kondensat / Betauung"},{"$f":"Fehlercodes_fuer_formel!D364","v":"999 Fehlerart nicht zuordenbar"}]
[{"$f":"Fehlercodes_fuer_formel!D8","v":"292 Material/Rohr undicht"},{"$f":"Fehlercodes_fuer_formel!D40","v":"041 Wackelkontakt"},{"$f":"Fehlercodes_fuer_formel!D80","v":"045 Heizung wird nicht angesteuert"},{"$f":"Fehlercodes_fuer_formel!D101","v":"999 Fehlerart nicht zuordenbar"},{"$f":"Fehlercodes_fuer_formel!D120","v":"687 Gluckern"},{"$f":"Fehlercodes_fuer_formel!D146","v":"165 Farbabweichung"},{"$f":"Fehlercodes_fuer_formel!D180","v":"017 Stauchung"},{"$f":"Fehlercodes_fuer_formel!D180","v":"017 Stauchung"},{"$f":"Fehlercodes_fuer_formel!D180","v":"017 Stauchung"},{"$f":"Fehlercodes_fuer_formel!D219","v":"020 laeuft ueber"},{"$f":"Fehlercodes_fuer_formel!D304","v":"305 Teil nicht mehr vorhanden"},{"$f":"Fehlercodes_fuer_formel!D338","v":"490 Zeitweiser Totalausfall"}]
[{"$f":"Fehlercodes_fuer_formel!D9","v":"293 Lötstelle zugelötet"},{"$f":"Fehlercodes_fuer_formel!D41","v":"202 schaltet nicht"},{"$f":"Fehlercodes_fuer_formel!D81","v":"046 Kompressor wird nicht angesteuert"},null,{"$f":"Fehlercodes_fuer_formel!D121","v":"999 Fehlerart nicht zuordenbar"},{"$f":"Fehlercodes_fuer_formel!D147","v":"301 Schliffbild Edelstahl"},null,null,null,{"$f":"Fehlercodes_fuer_formel!D220","v":"022 schief"},{"$f":"Fehlercodes_fuer_formel!D305","v":"339 Demomode bei Inbetriebnahme"},{"$f":"Fehlercodes_fuer_formel!D339","v":"491 Zeitweiser Fehler der Beleuchtung"}]
[{"$f":"Fehlercodes_fuer_formel!D10","v":"409 Bereifung der Saugleitung"},{"$f":"Fehlercodes_fuer_formel!D42","v":"297 Leitungen Verdrahtungsfehler"},{"$f":"Fehlercodes_fuer_formel!D82","v":"047 Kontrollleuchte defekt"},null,null,{"$f":"Fehlercodes_fuer_formel!D148","v":"302 Flecken"},null,null,null,{"$f":"Fehlercodes_fuer_formel!D221","v":"023 schwergaengig"},{"$f":"Fehlercodes_fuer_formel!D306","v":"340 Spannungsversorgung fehlt"},{"$f":"Fehlercodes_fuer_formel!D340","v":"492 Zeitweise Blockiert / Schwergängig"}]
[{"$f":"Fehlercodes_fuer_formel!D11","v":"999 Fehlerart nicht zuordenbar"},{"$f":"Fehlercodes_fuer_formel!D43","v":"999 Fehlerart nicht zuordenbar"},{"$f":"Fehlercodes_fuer_formel!D83","v":"048 Magnetventil wird nicht angesteuert"},null,null,{"$f":"Fehlercodes_fuer_formel!D149","v":"303 Folienrueckstaende"},null,null,null,{"$f":"Fehlercodes_fuer_formel!D222","v":"024 Vereisung"},{"$f":"Fehlercodes_fuer_formel!D307","v":"341 Tueranschlag wechsel"}]
[null,null,{"$f":"Fehlercodes_fuer_formel!D84","v":"049 Taster oder Schalter defekt"},null,null,{"$f":"Fehlercodes_fuer_formel!D150","v":"405 abgeloest"},null,null,null,{"$f":"Fehlercodes_fuer_formel!D223","v":"025 Verbogen/Verzogen"},{"$f":"Fehlercodes_fuer_formel!D308","v":"342 Prospektangaben nicht eindeutig"}]
[null,null,{"$f":"Fehlercodes_fuer_formel!D85","v":"050 Temperaturschwankungen"},null,null,{"$f":"Fehlercodes_fuer_formel!D151","v":"999 Fehlerart nicht zuordenbar"},null,null,null,{"$f":"Fehlercodes_fuer_formel!D224","v":"027 verstellt/versetzt"},{"$f":"Fehlercodes_fuer_formel!D309","v":"343 Bedienungsfehler/nicht Beachtung BDA"}]
[null,null,{"$f":"Fehlercodes_fuer_formel!D86","v":"051 Tonwarner ohne Funktion"},null,null,null,null,null,null,{"$f":"Fehlercodes_fuer_formel!D225","v":"028 verstopft"},{"$f":"Fehlercodes_fuer_formel!D310","v":"344 Oxidation"}]
[null,null,{"$f":"Fehlercodes_fuer_formel!D87","v":"054 unberechtigter Temperaturalarm"},null,null,null,null,null,null,{"$f":"Fehlercodes_fuer_formel!D226","v":"029 zu stark angezogen"},{"$f":"Fehlercodes_fuer_formel!D311","v":"345 Normale Temperaturdifferenzen/ -schwankungen"}]
[null,null,{"$f":"Fehlercodes_fuer_formel!D88","v":"055 Unterbrechung (Haarriss, Loetstelle usw.)"},null,null,null,null,null,null,{"$f":"Fehlercodes_fuer_formel!D227","v":"058 blockiert / klemmt"},{"$f":"Fehlercodes_fuer_formel!D312","v":"346 falsches Geraet"}]
[null,null,{"$f":"Fehlercodes_fuer_formel!D89","v":"056 Ventilator wird nicht angesteuert"},null,null,null,null,null,null,{"$f":"Fehlercodes_fuer_formel!D228","v":"079 Teil falsch"},{"$f":"Fehlercodes_fuer_formel!D313","v":"406 normaler Energieverbrauch"}]
[null,null,{"$f":"Fehlercodes_fuer_formel!D90","v":"298 Pumpe Wassertank wird nicht angesteuert"},null,null,null,null,null,null,{"$f":"Fehlercodes_fuer_formel!D229","v":"083 Geruch"},{"$f":"Fehlercodes_fuer_formel!D314","v":"407 normale Laufzeit"}]
[null,null,{"$f":"Fehlercodes_fuer_formel!D91","v":"299 Luftklappe wird nicht angesteuert"},null,null,null,null,null,null,{"$f":"Fehlercodes_fuer_formel!D230","v":"091 falsch montiert"},{"$f":"Fehlercodes_fuer_formel!D315","v":"408 normale Vereisung, Bereifung"}]
[null,null,{"$f":"Fehlercodes_fuer_formel!D92","v":"588 Softwarefehler (BUG)"},null,null,null,null,null,null,{"$f":"Fehlercodes_fuer_formel!D231","v":"103 Schaumaustritt"},{"$f":"Fehlercodes_fuer_formel!D316","v":"410 Inkompatibel (z.B. Tablet, Smartphone)"}]
[null,null,{"$f":"Fehlercodes_fuer_formel!D93","v":"999 Fehlerart nicht zuordenbar"},null,null,null,null,null,null,{"$f":"Fehlercodes_fuer_formel!D232","v":"148 Verschmutzt"},{"$f":"Fehlercodes_fuer_formel!D317","v":"412 Signalstaerke"}]
[null,null,null,null,null,null,null,null,null,{"$f":"Fehlercodes_fuer_formel!D233","v":"204 walkt"},{"$f":"Fehlercodes_fuer_formel!D318","v":"999 Fehlerart nicht zuordenbar"}]
[null,null,null,null,null,null,null,null,null,{"$f":"Fehlercodes_fuer_formel!D234","v":"296 Isolationsfehler"}]
[null,null,null,null,null,null,null,null,null,{"$f":"Fehlercodes_fuer_formel!D235","v":"999 Fehlerart nicht zuordenbar"}]
[]
[]
[{"$f":"A2","v":"5 Kältekreislauf (Leckage/ Verstopfung/ Füllmenge)"},{"$f":"B2","v":"40 Elektrik"},{"$f":"C2","v":"45 Elektronik (Fehler an elektronischen Baugruppen)"},"50 Mechanik","60 Geräusch","65 Oberflächen (Gerät oder Einzelteile/ Innen oder außen / kein Transport-schaden erkennbar!)",{"$f":"G2","v":"25 Transportschaden - Verpackung beschädigt"},{"$f":"H2","v":"26 Transportschaden - Verpackung nicht mehr vorhanden"},{"$f":"I2","v":"27 Schadensursache unklar - Verpackung nicht beschädigt"},{"$f":"J2","v":"30 Produktmangel (kein Transportschaden erkennbar)"},{"$f":"K2","v":"80 kein Fehler"},{"$f":"L2","v":"101 Fehler tritt zur Zeit nicht auf"},"46 Vernetzung/Kommunikation","200 Wasserverlust"]
[]
[{"$f":"Fehlercodes_fuer_formel!G1","v":"002 Kapillare"},{"$f":"Fehlercodes_fuer_formel!G33","v":"009 Ventil Kaeltekreislauf"},{"$f":"Fehlercodes_fuer_formel!G73","v":"072 Taster/ Schalter"},{"$f":"Fehlercodes_fuer_formel!G94","v":"028 Fuss/ Rolle"},{"$f":"Fehlercodes_fuer_formel!G113","v":"002 Kapillare"},{"$f":"Fehlercodes_fuer_formel!G139","v":"018 Verdampfer Kuehlteil"},{"$f":"Fehlercodes_fuer_formel!G173","v":"020 Verfluessiger"},{"$f":"Fehlercodes_fuer_formel!G173","v":"020 Verfluessiger"},{"$f":"Fehlercodes_fuer_formel!G173","v":"020 Verfluessiger"},{"$f":"Fehlercodes_fuer_formel!G212","v":"017 Verdampfer Gefrierteil"},{"$f":"Fehlercodes_fuer_formel!G297","v":"009 Ventil Kaeltekreislauf"},{"$f":"Fehlercodes_fuer_formel!G331","v":"017 Verdampfer Gefrierteil"},{"$f":"Fehlercodes_fuer_formel!G358","v":"470 Schnittstelle (RS 485, RS 232, CAN BUS, MOD BUS, Ethernet, IR-Schluessel, WLAN, BT, USB …)"}]
[{"$f":"Fehlercodes_fuer_formel!G2","v":"003 Kompressor-Fuellstutzen (Verbindung)"},{"$f":"Fehlercodes_fuer_formel!G34","v":"059 Beleuchtung"},{"$f":"Fehlercodes_fuer_formel!G74","v":"082 Platinenstecker"},{"$f":"Fehlercodes_fuer_formel!G95","v":"030 Griff"},{"$f":"Fehlercodes_fuer_formel!G114","v":"009 Ventil Kaeltekreislauf"},{"$f":"Fehlercodes_fuer_formel!G140","v":"026 Deckel (Truhe) / Schiebedeckel"},{"$f":"Fehlercodes_fuer_formel!G174","v":"028 Fuss/ Rolle"},{"$f":"Fehlercodes_fuer_formel!G174","v":"028 Fuss/ Rolle"},{"$f":"Fehlercodes_fuer_formel!G174","v":"028 Fuss/ Rolle"},{"$f":"Fehlercodes_fuer_formel!G213","v":"018 Verdampfer Kuehlteil"},{"$f":"Fehlercodes_fuer_formel!G298","v":"030 Griff"},{"$f":"Fehlercodes_fuer_formel!G332","v":"018 Verdampfer Kuehlteil"},{"$f":"Fehlercodes_fuer_formel!G359","v":"595 Abschlusswiderstand"},{"$f":"Fehlercodes_fuer_formel!G371","v":"210 Wasserschlauch"}]
[{"$f":"Fehlercodes_fuer_formel!G3","v":"005 Kompressor-Saugrohr (Verbindung)"},{"$f":"Fehlercodes_fuer_formel!G35","v":"060 Heizung"},{"$f":"Fehlercodes_fuer_formel!G75","v":"172 Elektronikplatine"},{"$f":"Fehlercodes_fuer_formel!G96","v":"072 Taster/ Schalter"},{"$f":"Fehlercodes_fuer_formel!G115","v":"017 Verdampfer Gefrierteil"},{"$f":"Fehlercodes_fuer_formel!G141","v":"030 Griff"},{"$f":"Fehlercodes_fuer_formel!G175","v":"029 Glasplatten, Absteller usw."},{"$f":"Fehlercodes_fuer_formel!G175","v":"029 Glasplatten, Absteller usw."},{"$f":"Fehlercodes_fuer_formel!G175","v":"029 Glasplatten, Absteller usw."},{"$f":"Fehlercodes_fuer_formel!G214","v":"020 Verfluessiger"},{"$f":"Fehlercodes_fuer_formel!G299","v":"034 Rueckseite"},{"$f":"Fehlercodes_fuer_formel!G333","v":"026 Deckel (Truhe) / Schiebedeckel"},{"$f":"Fehlercodes_fuer_formel!G360","v":"597 APP / Software"},{"$f":"Fehlercodes_fuer_formel!G372","v":"211 Wasserventil"}]
[{"$f":"Fehlercodes_fuer_formel!G4","v":"007 Kompressor-Verfluessiger (Verbindung)"},{"$f":"Fehlercodes_fuer_formel!G36","v":"061 Isolationsplatte"},{"$f":"Fehlercodes_fuer_formel!G76","v":"260 Inverterelektronik (VCC)"},{"$f":"Fehlercodes_fuer_formel!G97","v":"084 Schloss"},{"$f":"Fehlercodes_fuer_formel!G116","v":"018 Verdampfer Kuehlteil"},{"$f":"Fehlercodes_fuer_formel!G142","v":"034 Rueckseite"},{"$f":"Fehlercodes_fuer_formel!G176","v":"030 Griff"},{"$f":"Fehlercodes_fuer_formel!G176","v":"030 Griff"},{"$f":"Fehlercodes_fuer_formel!G176","v":"030 Griff"},{"$f":"Fehlercodes_fuer_formel!G215","v":"026 Deckel (Truhe) / Schiebedeckel"},{"$f":"Fehlercodes_fuer_formel!G300","v":"042 Tuer Gefrierteil"},{"$f":"Fehlercodes_fuer_formel!G334","v":"029 Glasplatten, Absteller usw."},{"$f":"Fehlercodes_fuer_formel!G361","v":"601 Infrarot-Schluessel"},{"$f":"Fehlercodes_fuer_formel!G373","v":"212 Dichtung"}]
[{"$f":"Fehlercodes_fuer_formel!G5","v":"009 Ventil Kaeltekreislauf"},{"$f":"Fehlercodes_fuer_formel!G37","v":"062 Kabelstrang/ Leitung"},{"$f":"Fehlercodes_fuer_formel!G77","v":"264 Elektronik Eiswuerfelbereiter"},{"$f":"Fehlercodes_fuer_formel!G98","v":"085 Thermometer"},{"$f":"Fehlercodes_fuer_formel!G117","v":"020 Verfluessiger"},{"$f":"Fehlercodes_fuer_formel!G143","v":"036 Seitenwand allgemein"},{"$f":"Fehlercodes_fuer_formel!G177","v":"033 Kompressorlagerung"},{"$f":"Fehlercodes_fuer_formel!G177","v":"033 Kompressorlagerung"},{"$f":"Fehlercodes_fuer_formel!G177","v":"033 Kompressorlagerung"},{"$f":"Fehlercodes_fuer_formel!G216","v":"030 Griff"},{"$f":"Fehlercodes_fuer_formel!G301","v":"043 Tuer Kuehlteil"},{"$f":"Fehlercodes_fuer_formel!G335","v":"036 Seitenwand allgemein"},{"$f":"Fehlercodes_fuer_formel!G362","v":"602 Konverter für seriellen Anschluss (EVCO, Carel)"},{"$f":"Fehlercodes_fuer_formel!G374","v":"213 Ablaufpumpe"}]
[{"$f":"Fehlercodes_fuer_formel!G6","v":"011 Rahmenheizung"},{"$f":"Fehlercodes_fuer_formel!G38","v":"063 Kompressor"},{"$f":"Fehlercodes_fuer_formel!G78","v":"441 Verbindungsmodul"},{"$f":"Fehlercodes_fuer_formel!G99","v":"259 Auszug-/ Teleskopschiene"},{"$f":"Fehlercodes_fuer_formel!G118","v":"052 Tauwasserschale"},{"$f":"Fehlercodes_fuer_formel!G144","v":"040 Geraetedecke/ Tischplatte"},{"$f":"Fehlercodes_fuer_formel!G178","v":"034 Rueckseite"},{"$f":"Fehlercodes_fuer_formel!G178","v":"034 Rueckseite"},{"$f":"Fehlercodes_fuer_formel!G178","v":"034 Rueckseite"},{"$f":"Fehlercodes_fuer_formel!G217","v":"034 Rueckseite"},{"$f":"Fehlercodes_fuer_formel!G302","v":"051 Tauwasserablauf"},{"$f":"Fehlercodes_fuer_formel!G336","v":"040 Geraetedecke/ Tischplatte"},{"$f":"Fehlercodes_fuer_formel!G363","v":"603 LAN-Kabel"},{"$f":"Fehlercodes_fuer_formel!G375","v":"214 Niveausensor"}]
[{"$f":"Fehlercodes_fuer_formel!G7","v":"012 Rahmenheizung-Verfluessiger (Verbindung)"},{"$f":"Fehlercodes_fuer_formel!G39","v":"064 Kompressor-Anlassvorrichtung"},{"$f":"Fehlercodes_fuer_formel!G79","v":"442 Netzteil LED-Beleuchtung / Trafo"},{"$f":"Fehlercodes_fuer_formel!G100","v":"265 Eiswuerfelbereiter"},{"$f":"Fehlercodes_fuer_formel!G119","v":"063 Kompressor"},{"$f":"Fehlercodes_fuer_formel!G145","v":"041 Truhenabdeckrahmen"},{"$f":"Fehlercodes_fuer_formel!G179","v":"038 Sockelblende"},{"$f":"Fehlercodes_fuer_formel!G179","v":"038 Sockelblende"},{"$f":"Fehlercodes_fuer_formel!G179","v":"038 Sockelblende"},{"$f":"Fehlercodes_fuer_formel!G218","v":"036 Seitenwand allgemein"},{"$f":"Fehlercodes_fuer_formel!G303","v":"052 Tauwasserschale"},{"$f":"Fehlercodes_fuer_formel!G337","v":"042 Tuer Gefrierteil"},{"$f":"Fehlercodes_fuer_formel!G364","v":"605 Master / Slave Modul (Homedialog)"}]
[{"$f":"Fehlercodes_fuer_formel!G8","v":"013 Saugrohr-Kapillare Eingang (Verbindung)"},{"$f":"Fehlercodes_fuer_formel!G40","v":"065 Kompressor-Motorschutzschalter"},{"$f":"Fehlercodes_fuer_formel!G80","v":"516 Temperaturwaechter"},{"$f":"Fehlercodes_fuer_formel!G101","v":"408 Schliessdaempfung"},{"$f":"Fehlercodes_fuer_formel!G120","v":"074 Regelthermostat"},{"$f":"Fehlercodes_fuer_formel!G146","v":"042 Tuer Gefrierteil"},{"$f":"Fehlercodes_fuer_formel!G180","v":"039 Teile der Innenausstattung"},{"$f":"Fehlercodes_fuer_formel!G180","v":"039 Teile der Innenausstattung"},{"$f":"Fehlercodes_fuer_formel!G180","v":"039 Teile der Innenausstattung"},{"$f":"Fehlercodes_fuer_formel!G219","v":"039 Teile der Innenausstattung"},{"$f":"Fehlercodes_fuer_formel!G304","v":"059 Beleuchtung"},{"$f":"Fehlercodes_fuer_formel!G338","v":"043 Tuer Kuehlteil"},{"$f":"Fehlercodes_fuer_formel!G365","v":"608 Smart Device Box"}]
[{"$f":"Fehlercodes_fuer_formel!G9","v":"014 Saugrohr-Verdampfer (Verbindung)"},{"$f":"Fehlercodes_fuer_formel!G41","v":"066 Kondensator"},{"$f":"Fehlercodes_fuer_formel!G81","v":"519 Dimmer"},{"$f":"Fehlercodes_fuer_formel!G102","v":"418 Scharnier/ Tuerlagerung"},{"$f":"Fehlercodes_fuer_formel!G121","v":"087 Rohre"},{"$f":"Fehlercodes_fuer_formel!G147","v":"043 Tuer Kuehlteil"},{"$f":"Fehlercodes_fuer_formel!G181","v":"040 Geraetedecke/ Tischplatte"},{"$f":"Fehlercodes_fuer_formel!G181","v":"040 Geraetedecke/ Tischplatte"},{"$f":"Fehlercodes_fuer_formel!G181","v":"040 Geraetedecke/ Tischplatte"},{"$f":"Fehlercodes_fuer_formel!G220","v":"040 Geraetedecke/ Tischplatte"},{"$f":"Fehlercodes_fuer_formel!G305","v":"063 Kompressor"},{"$f":"Fehlercodes_fuer_formel!G339","v":"051 Tauwasserablauf"},{"$f":"Fehlercodes_fuer_formel!G366","v":"685 NFC, RFID Chip"}]
[{"$f":"Fehlercodes_fuer_formel!G10","v":"015 Trockner"},{"$f":"Fehlercodes_fuer_formel!G42","v":"067 Kontrollleuchten"},{"$f":"Fehlercodes_fuer_formel!G82","v":"606 Netzanschlussplatine"},{"$f":"Fehlercodes_fuer_formel!G103","v":"432 Ausgabeeinheit Eis/ Wasser"},{"$f":"Fehlercodes_fuer_formel!G122","v":"252 Ventil Wasserzulauf"},{"$f":"Fehlercodes_fuer_formel!G148","v":"053 Thermostat-/ Lichtschaltergehaeuse"},{"$f":"Fehlercodes_fuer_formel!G182","v":"041 Truhenabdeckrahmen"},{"$f":"Fehlercodes_fuer_formel!G182","v":"041 Truhenabdeckrahmen"},{"$f":"Fehlercodes_fuer_formel!G182","v":"041 Truhenabdeckrahmen"},{"$f":"Fehlercodes_fuer_formel!G221","v":"041 Truhenabdeckrahmen"},{"$f":"Fehlercodes_fuer_formel!G306","v":"172 Elektronikplatine"},{"$f":"Fehlercodes_fuer_formel!G340","v":"059 Beleuchtung"},{"$f":"Fehlercodes_fuer_formel!G367","v":"686 Smartsensoren"}]
[{"$f":"Fehlercodes_fuer_formel!G11","v":"016 Trockner-Kapillare (Verbindung)"},{"$f":"Fehlercodes_fuer_formel!G43","v":"068 Reedkontakt (Tuererkennung, ...)"},{"$f":"Fehlercodes_fuer_formel!G83","v":"612 Bedienteil, -oberflaeche (User Interface)"},{"$f":"Fehlercodes_fuer_formel!G104","v":"439 Luftklappe"},{"$f":"Fehlercodes_fuer_formel!G123","v":"260 Inverterelektronik (VCC)"},{"$f":"Fehlercodes_fuer_formel!G149","v":"059 Beleuchtung"},{"$f":"Fehlercodes_fuer_formel!G183","v":"059 Beleuchtung"},{"$f":"Fehlercodes_fuer_formel!G183","v":"059 Beleuchtung"},{"$f":"Fehlercodes_fuer_formel!G183","v":"059 Beleuchtung"},{"$f":"Fehlercodes_fuer_formel!G222","v":"042 Tuer Gefrierteil"},{"$f":"Fehlercodes_fuer_formel!G307","v":"199 Winterheizung"},{"$f":"Fehlercodes_fuer_formel!G341","v":"102 Schublade"},{"$f":"Fehlercodes_fuer_formel!G368","v":"695 Lizenzshop"}]
[{"$f":"Fehlercodes_fuer_formel!G12","v":"017 Verdampfer Gefrierteil"},{"$f":"Fehlercodes_fuer_formel!G44","v":"071 Stecker/ Schraubverbindung"},{"$f":"Fehlercodes_fuer_formel!G84","v":"681 RS485-Modul"},{"$f":"Fehlercodes_fuer_formel!G105","v":"522 Ventilator - Verfluessiger"},{"$f":"Fehlercodes_fuer_formel!G124","v":"265 Eiswuerfelbereiter"},{"$f":"Fehlercodes_fuer_formel!G150","v":"099 Querverbindung"},{"$f":"Fehlercodes_fuer_formel!G184","v":"099 Querverbindung"},{"$f":"Fehlercodes_fuer_formel!G184","v":"099 Querverbindung"},{"$f":"Fehlercodes_fuer_formel!G184","v":"099 Querverbindung"},{"$f":"Fehlercodes_fuer_formel!G223","v":"043 Tuer Kuehlteil"},{"$f":"Fehlercodes_fuer_formel!G308","v":"206 Geraetemerkmale"},{"$f":"Fehlercodes_fuer_formel!G342","v":"159 Dichtung Tuer Sterne-Fach"},{"$f":"Fehlercodes_fuer_formel!G369","v":"696 SmartMonitoring"}]
[{"$f":"Fehlercodes_fuer_formel!G13","v":"018 Verdampfer Kuehlteil"},{"$f":"Fehlercodes_fuer_formel!G45","v":"072 Taster/ Schalter"},{"$f":"Fehlercodes_fuer_formel!G85","v":"684 Netzfilter"},{"$f":"Fehlercodes_fuer_formel!G106","v":"523 Ventilator - GT"},{"$f":"Fehlercodes_fuer_formel!G125","v":"266 Trennplatte vertikal"},{"$f":"Fehlercodes_fuer_formel!G151","v":"102 Schublade"},{"$f":"Fehlercodes_fuer_formel!G185","v":"309 Kompressortraeger"},{"$f":"Fehlercodes_fuer_formel!G185","v":"309 Kompressortraeger"},{"$f":"Fehlercodes_fuer_formel!G185","v":"309 Kompressortraeger"},{"$f":"Fehlercodes_fuer_formel!G224","v":"047 Gehaeusedurchfuehrung"},{"$f":"Fehlercodes_fuer_formel!G309","v":"207 Prospektangaben"},{"$f":"Fehlercodes_fuer_formel!G343","v":"172 Elektronikplatine"},{"$f":"Fehlercodes_fuer_formel!G370","v":"697 SmartCoolingHub"}]
[{"$f":"Fehlercodes_fuer_formel!G14","v":"019 Verdampfer-Einspritzstelle (Verbindung)"},{"$f":"Fehlercodes_fuer_formel!G46","v":"073 Temperaturfuehler"},{"$f":"Fehlercodes_fuer_formel!G86","v":"685 NFC, RFID Chip"},{"$f":"Fehlercodes_fuer_formel!G107","v":"524 Ventilator - KT/ Biofresh"},{"$f":"Fehlercodes_fuer_formel!G126","v":"274 Druckausgleichsventil"},{"$f":"Fehlercodes_fuer_formel!G152","v":"159 Dichtung Tuer Sterne-Fach"},{"$f":"Fehlercodes_fuer_formel!G186","v":"364 Innenbehälter Gefrierteil"},{"$f":"Fehlercodes_fuer_formel!G186","v":"364 Innenbehälter Gefrierteil"},{"$f":"Fehlercodes_fuer_formel!G186","v":"364 Innenbehälter Gefrierteil"},{"$f":"Fehlercodes_fuer_formel!G225","v":"049 Lichtschalter"},{"$f":"Fehlercodes_fuer_formel!G310","v":"208 Technische Klaerung (Funktionsbeschreibung)"},{"$f":"Fehlercodes_fuer_formel!G344","v":"265 Eiswuerfelbereiter"}]
[{"$f":"Fehlercodes_fuer_formel!G15","v":"020 Verfluessiger"},{"$f":"Fehlercodes_fuer_formel!G47","v":"074 Regelthermostat"},{"$f":"Fehlercodes_fuer_formel!G87","v":"686 Smartsensoren"},{"$f":"Fehlercodes_fuer_formel!G108","v":"527 Fernschloss"},{"$f":"Fehlercodes_fuer_formel!G127","v":"408 Schliessdaempfung"},{"$f":"Fehlercodes_fuer_formel!G153","v":"266 Trennplatte vertikal"},{"$f":"Fehlercodes_fuer_formel!G187","v":"374 Innentür Gefrierteil"},{"$f":"Fehlercodes_fuer_formel!G187","v":"374 Innentür Gefrierteil"},{"$f":"Fehlercodes_fuer_formel!G187","v":"374 Innentür Gefrierteil"},{"$f":"Fehlercodes_fuer_formel!G226","v":"050 Regelknopf"},{"$f":"Fehlercodes_fuer_formel!G311","v":"223 Gehaeuse"},{"$f":"Fehlercodes_fuer_formel!G345","v":"276 Tauwasserablaufventil"}]
[{"$f":"Fehlercodes_fuer_formel!G16","v":"021 Verfluessiger-Trockner (Verbindung)"},{"$f":"Fehlercodes_fuer_formel!G48","v":"075 Verteilerleiste"},{"$f":"Fehlercodes_fuer_formel!G88","v":"698 Halbleiterrelais"},{"$f":"Fehlercodes_fuer_formel!G109","v":"599 Crushmodul"},{"$f":"Fehlercodes_fuer_formel!G128","v":"418 Scharnier/ Tuerlagerung"},{"$f":"Fehlercodes_fuer_formel!G154","v":"309 Kompressortraeger"},{"$f":"Fehlercodes_fuer_formel!G188","v":"378 Seitenwand rechts, Oben"},{"$f":"Fehlercodes_fuer_formel!G188","v":"378 Seitenwand rechts, Oben"},{"$f":"Fehlercodes_fuer_formel!G188","v":"378 Seitenwand rechts, Oben"},{"$f":"Fehlercodes_fuer_formel!G227","v":"051 Tauwasserablauf"},{"$f":"Fehlercodes_fuer_formel!G312","v":"245 Kaeltekreislauf"},{"$f":"Fehlercodes_fuer_formel!G346","v":"364 Innenbehälter Gefrierteil"}]
[{"$f":"Fehlercodes_fuer_formel!G17","v":"063 Kompressor"},{"$f":"Fehlercodes_fuer_formel!G49","v":"085 Thermometer"},{"$f":"Fehlercodes_fuer_formel!G89","v":"999 Fehlerort nicht zuordenbar"},{"$f":"Fehlercodes_fuer_formel!G110","v":"600 Fusspedaloeffner"},{"$f":"Fehlercodes_fuer_formel!G129","v":"522 Ventilator - Verfluessiger"},{"$f":"Fehlercodes_fuer_formel!G155","v":"336 Draht-/ Holzrost"},{"$f":"Fehlercodes_fuer_formel!G189","v":"379 Seitenwand rechts, Mitte"},{"$f":"Fehlercodes_fuer_formel!G189","v":"379 Seitenwand rechts, Mitte"},{"$f":"Fehlercodes_fuer_formel!G189","v":"379 Seitenwand rechts, Mitte"},{"$f":"Fehlercodes_fuer_formel!G228","v":"052 Tauwasserschale"},{"$f":"Fehlercodes_fuer_formel!G313","v":"252 Ventil Wasserzulauf"},{"$f":"Fehlercodes_fuer_formel!G347","v":"408 Schliessdaempfung"}]
[{"$f":"Fehlercodes_fuer_formel!G18","v":"395 Wärmetauscher (Wasserführend)"},{"$f":"Fehlercodes_fuer_formel!G50","v":"103 Batterie/ Akku"},null,{"$f":"Fehlercodes_fuer_formel!G111","v":"683 Humidifier (Hydrobreeze)"},{"$f":"Fehlercodes_fuer_formel!G130","v":"523 Ventilator - GT"},{"$f":"Fehlercodes_fuer_formel!G156","v":"364 Innenbehälter Gefrierteil"},{"$f":"Fehlercodes_fuer_formel!G190","v":"380 Seitenwand rechts, Unten"},{"$f":"Fehlercodes_fuer_formel!G190","v":"380 Seitenwand rechts, Unten"},{"$f":"Fehlercodes_fuer_formel!G190","v":"380 Seitenwand rechts, Unten"},{"$f":"Fehlercodes_fuer_formel!G229","v":"053 Thermostat-/ Lichtschaltergehaeuse"},{"$f":"Fehlercodes_fuer_formel!G314","v":"364 Innenbehälter Gefrierteil"},{"$f":"Fehlercodes_fuer_formel!G348","v":"418 Scharnier/ Tuerlagerung"}]
[{"$f":"Fehlercodes_fuer_formel!G19","v":"412 Verdampfer Kuehlteil-Verdampfermodul Gefrierteil (Verbindung)"},{"$f":"Fehlercodes_fuer_formel!G51","v":"252 Ventil Wasserzulauf"},null,{"$f":"Fehlercodes_fuer_formel!G112","v":"999 Fehlerort nicht zuordenbar"},{"$f":"Fehlercodes_fuer_formel!G131","v":"524 Ventilator - KT/ Biofresh"},{"$f":"Fehlercodes_fuer_formel!G157","v":"374 Innentür Gefrierteil"},{"$f":"Fehlercodes_fuer_formel!G191","v":"381 Seitenwand links, Oben"},{"$f":"Fehlercodes_fuer_formel!G191","v":"381 Seitenwand links, Oben"},{"$f":"Fehlercodes_fuer_formel!G191","v":"381 Seitenwand links, Oben"},{"$f":"Fehlercodes_fuer_formel!G230","v":"056 Tuer Sterne-Fach"},{"$f":"Fehlercodes_fuer_formel!G315","v":"408 Schliessdaempfung"},{"$f":"Fehlercodes_fuer_formel!G349","v":"432 Ausgabeeinheit Eis/ Wasser"}]
[{"$f":"Fehlercodes_fuer_formel!G20","v":"413 Verdampfermodul-Saugleitung (Verbindung)"},{"$f":"Fehlercodes_fuer_formel!G52","v":"265 Eiswuerfelbereiter"},null,null,{"$f":"Fehlercodes_fuer_formel!G132","v":"525 Kuehlkassette"},{"$f":"Fehlercodes_fuer_formel!G158","v":"419 Bedienoberflaeche"},{"$f":"Fehlercodes_fuer_formel!G192","v":"382 Seitenwand links, Mitte"},{"$f":"Fehlercodes_fuer_formel!G192","v":"382 Seitenwand links, Mitte"},{"$f":"Fehlercodes_fuer_formel!G192","v":"382 Seitenwand links, Mitte"},{"$f":"Fehlercodes_fuer_formel!G231","v":"060 Heizung"},{"$f":"Fehlercodes_fuer_formel!G316","v":"473 Hausinstallation"},{"$f":"Fehlercodes_fuer_formel!G350","v":"436 Wassertank"}]
[{"$f":"Fehlercodes_fuer_formel!G21","v":"414 Heizung Verdunstungsschale - Kompressor (Verbindung)"},{"$f":"Fehlercodes_fuer_formel!G53","v":"274 Druckausgleichsventil"},null,null,{"$f":"Fehlercodes_fuer_formel!G133","v":"528 Abdeckung Verdampfer"},{"$f":"Fehlercodes_fuer_formel!G159","v":"438 Trennplatte Horizontal/ Zwischensteg"},{"$f":"Fehlercodes_fuer_formel!G193","v":"383 Seitenwand links, Unten"},{"$f":"Fehlercodes_fuer_formel!G193","v":"383 Seitenwand links, Unten"},{"$f":"Fehlercodes_fuer_formel!G193","v":"383 Seitenwand links, Unten"},{"$f":"Fehlercodes_fuer_formel!G232","v":"073 Temperaturfuehler"},{"$f":"Fehlercodes_fuer_formel!G317","v":"474 Geraetebelueftung"},{"$f":"Fehlercodes_fuer_formel!G351","v":"472 Schliessmechanismus"}]
[{"$f":"Fehlercodes_fuer_formel!G22","v":"415 Heizung Verdunstungsschale - Verfluessiger (Verbindung)"},{"$f":"Fehlercodes_fuer_formel!G54","v":"277 Sicherheitstemperaturbegrenzer"},null,null,{"$f":"Fehlercodes_fuer_formel!G134","v":"596 Absorber"},{"$f":"Fehlercodes_fuer_formel!G160","v":"528 Abdeckung Verdampfer"},{"$f":"Fehlercodes_fuer_formel!G194","v":"418 Scharnier/ Tuerlagerung"},{"$f":"Fehlercodes_fuer_formel!G194","v":"418 Scharnier/ Tuerlagerung"},{"$f":"Fehlercodes_fuer_formel!G194","v":"418 Scharnier/ Tuerlagerung"},{"$f":"Fehlercodes_fuer_formel!G233","v":"094 Dekorrahmen"},{"$f":"Fehlercodes_fuer_formel!G318","v":"475 Loetstellen"},{"$f":"Fehlercodes_fuer_formel!G352","v":"531 Dichtung Tuer Gefrierteil"}]
[{"$f":"Fehlercodes_fuer_formel!G23","v":"416 Heizung Verdampferwanne"},{"$f":"Fehlercodes_fuer_formel!G55","v":"439 Luftklappe"},null,null,{"$f":"Fehlercodes_fuer_formel!G135","v":"599 Crushmodul"},{"$f":"Fehlercodes_fuer_formel!G161","v":"530 Branding (Aufkleber, Logo, …)"},{"$f":"Fehlercodes_fuer_formel!G195","v":"419 Bedienoberflaeche"},{"$f":"Fehlercodes_fuer_formel!G195","v":"419 Bedienoberflaeche"},{"$f":"Fehlercodes_fuer_formel!G195","v":"419 Bedienoberflaeche"},{"$f":"Fehlercodes_fuer_formel!G234","v":"096 Tauwasserverschluss-Stopfen GT"},{"$f":"Fehlercodes_fuer_formel!G319","v":"476 Luft-, Kerntemperatur"},{"$f":"Fehlercodes_fuer_formel!G353","v":"532 Dichtung Tuer Kuehlteil"}]
[{"$f":"Fehlercodes_fuer_formel!G24","v":"518 Abzweigung - Saug-/ Druckleitung (Verbindung)"},{"$f":"Fehlercodes_fuer_formel!G56","v":"440 Pumpe Wassertank"},null,null,{"$f":"Fehlercodes_fuer_formel!G136","v":"609 Türöffnungsmodul"},{"$f":"Fehlercodes_fuer_formel!G162","v":"531 Dichtung Tuer Gefrierteil"},{"$f":"Fehlercodes_fuer_formel!G196","v":"420 Aussentuer, Oben"},{"$f":"Fehlercodes_fuer_formel!G196","v":"420 Aussentuer, Oben"},{"$f":"Fehlercodes_fuer_formel!G196","v":"420 Aussentuer, Oben"},{"$f":"Fehlercodes_fuer_formel!G235","v":"097 Tuerkoppelungssatz"},{"$f":"Fehlercodes_fuer_formel!G320","v":"479 Ist/ Sollwertanzeige"},{"$f":"Fehlercodes_fuer_formel!G354","v":"600 Fusspedaloeffner"}]
[{"$f":"Fehlercodes_fuer_formel!G25","v":"525 Kuehlkassette"},{"$f":"Fehlercodes_fuer_formel!G57","v":"467 Tuerheizung"},null,null,{"$f":"Fehlercodes_fuer_formel!G137","v":"688 Syphon"},{"$f":"Fehlercodes_fuer_formel!G163","v":"532 Dichtung Tuer Kuehlteil"},{"$f":"Fehlercodes_fuer_formel!G197","v":"421 Aussentuer, Mitte"},{"$f":"Fehlercodes_fuer_formel!G197","v":"421 Aussentuer, Mitte"},{"$f":"Fehlercodes_fuer_formel!G197","v":"421 Aussentuer, Mitte"},{"$f":"Fehlercodes_fuer_formel!G236","v":"099 Querverbindung"},{"$f":"Fehlercodes_fuer_formel!G321","v":"522 Ventilator - Verfluessiger"},{"$f":"Fehlercodes_fuer_formel!G355","v":"609 Türöffnungsmodul"}]
[{"$f":"Fehlercodes_fuer_formel!G26","v":"533 Sammler"},{"$f":"Fehlercodes_fuer_formel!G58","v":"468 Feuchtesensor"},null,null,{"$f":"Fehlercodes_fuer_formel!G138","v":"999 Fehlerort nicht zuordenbar"},{"$f":"Fehlercodes_fuer_formel!G164","v":"611 Wildgehaenge"},{"$f":"Fehlercodes_fuer_formel!G198","v":"422 Aussentuer, Unten"},{"$f":"Fehlercodes_fuer_formel!G198","v":"422 Aussentuer, Unten"},{"$f":"Fehlercodes_fuer_formel!G198","v":"422 Aussentuer, Unten"},{"$f":"Fehlercodes_fuer_formel!G237","v":"102 Schublade"},{"$f":"Fehlercodes_fuer_formel!G322","v":"523 Ventilator - GT"},{"$f":"Fehlercodes_fuer_formel!G356","v":"701 Innenbehälter Kühlteil"}]
[{"$f":"Fehlercodes_fuer_formel!G27","v":"675 Expansionsventil"},{"$f":"Fehlercodes_fuer_formel!G59","v":"469 Potentialfreier Kontakt"},null,null,null,{"$f":"Fehlercodes_fuer_formel!G165","v":"689 Seitenwand allgemein Dekorstreifen"},{"$f":"Fehlercodes_fuer_formel!G199","v":"423 untere Aussentuer, Oben"},{"$f":"Fehlercodes_fuer_formel!G199","v":"423 untere Aussentuer, Oben"},{"$f":"Fehlercodes_fuer_formel!G199","v":"423 untere Aussentuer, Oben"},{"$f":"Fehlercodes_fuer_formel!G238","v":"104 Schaltnocken/ Tuermagnet"},{"$f":"Fehlercodes_fuer_formel!G323","v":"524 Ventilator - KT/ Biofresh"},{"$f":"Fehlercodes_fuer_formel!G357","v":"999 Fehlerort nicht zuordenbar"}]
[{"$f":"Fehlercodes_fuer_formel!G28","v":"676 Ölabscheider"},{"$f":"Fehlercodes_fuer_formel!G60","v":"517 Sicherheitsthermostat"},null,null,null,{"$f":"Fehlercodes_fuer_formel!G166","v":"690 Tür Gefrierteil Dekorstreifen"},{"$f":"Fehlercodes_fuer_formel!G200","v":"424 untere Aussentuer, Unten"},{"$f":"Fehlercodes_fuer_formel!G200","v":"424 untere Aussentuer, Unten"},{"$f":"Fehlercodes_fuer_formel!G200","v":"424 untere Aussentuer, Unten"},{"$f":"Fehlercodes_fuer_formel!G239","v":"105 Abdeckung"},{"$f":"Fehlercodes_fuer_formel!G324","v":"529 Wandabstandhalter"}]
[{"$f":"Fehlercodes_fuer_formel!G29","v":"677 Ventil für externe Kühlung (Water loop, Wasserkühlung, ..)"},{"$f":"Fehlercodes_fuer_formel!G61","v":"522 Ventilator - Verfluessiger"},null,null,null,{"$f":"Fehlercodes_fuer_formel!G167","v":"691 Tür Kühlteil Dekorstreifen"},{"$f":"Fehlercodes_fuer_formel!G201","v":"425 Front Links (Truhe)"},{"$f":"Fehlercodes_fuer_formel!G201","v":"425 Front Links (Truhe)"},{"$f":"Fehlercodes_fuer_formel!G201","v":"425 Front Links (Truhe)"},{"$f":"Fehlercodes_fuer_formel!G240","v":"159 Dichtung Tuer Sterne-Fach"},{"$f":"Fehlercodes_fuer_formel!G325","v":"608 Smart Device Box"}]
[{"$f":"Fehlercodes_fuer_formel!G30","v":"678 Druckschalter"},{"$f":"Fehlercodes_fuer_formel!G62","v":"523 Ventilator - GT"},null,null,null,{"$f":"Fehlercodes_fuer_formel!G168","v":"699 Innenbehälter Kühlteil Edelstahlverkleidung"},{"$f":"Fehlercodes_fuer_formel!G202","v":"426 Front Mitte (Truhe)"},{"$f":"Fehlercodes_fuer_formel!G202","v":"426 Front Mitte (Truhe)"},{"$f":"Fehlercodes_fuer_formel!G202","v":"426 Front Mitte (Truhe)"},{"$f":"Fehlercodes_fuer_formel!G241","v":"232 Beipack"},{"$f":"Fehlercodes_fuer_formel!G326","v":"609 Türöffnungsmodul"}]
[{"$f":"Fehlercodes_fuer_formel!G31","v":"679 Kaskade"},{"$f":"Fehlercodes_fuer_formel!G63","v":"524 Ventilator - KT/ Biofresh"},null,null,null,{"$f":"Fehlercodes_fuer_formel!G169","v":"700 Innentür Kühlteil Edelstahlverkleidung"},{"$f":"Fehlercodes_fuer_formel!G203","v":"427 Front Rechts (Truhe)"},{"$f":"Fehlercodes_fuer_formel!G203","v":"427 Front Rechts (Truhe)"},{"$f":"Fehlercodes_fuer_formel!G203","v":"427 Front Rechts (Truhe)"},{"$f":"Fehlercodes_fuer_formel!G242","v":"252 Ventil Wasserzulauf"},{"$f":"Fehlercodes_fuer_formel!G327","v":"610 Verbrauchsartikel (Filter, ..)"}]
[{"$f":"Fehlercodes_fuer_formel!G32","v":"999 Fehlerort nicht zuordenbar"},{"$f":"Fehlercodes_fuer_formel!G64","v":"525 Kuehlkassette"},null,null,null,{"$f":"Fehlercodes_fuer_formel!G170","v":"701 Innenbehälter Kühlteil"},{"$f":"Fehlercodes_fuer_formel!G204","v":"428 Deckel (Truhe) Links "},{"$f":"Fehlercodes_fuer_formel!G204","v":"428 Deckel (Truhe) Links "},{"$f":"Fehlercodes_fuer_formel!G204","v":"428 Deckel (Truhe) Links "},{"$f":"Fehlercodes_fuer_formel!G243","v":"257 Verdampferwanne"},{"$f":"Fehlercodes_fuer_formel!G328","v":"683 Humidifier (Hydrobreeze)"}]
[null,{"$f":"Fehlercodes_fuer_formel!G65","v":"527 Fernschloss"},null,null,null,{"$f":"Fehlercodes_fuer_formel!G171","v":"702 Innentür Kühlteil"},{"$f":"Fehlercodes_fuer_formel!G205","v":"429 Deckel (Truhe) Mitte"},{"$f":"Fehlercodes_fuer_formel!G205","v":"429 Deckel (Truhe) Mitte"},{"$f":"Fehlercodes_fuer_formel!G205","v":"429 Deckel (Truhe) Mitte"},{"$f":"Fehlercodes_fuer_formel!G244","v":"259 Auszug-/ Teleskopschiene"},{"$f":"Fehlercodes_fuer_formel!G329","v":"701 Innenbehälter Kühlteil"}]
[null,{"$f":"Fehlercodes_fuer_formel!G66","v":"598 Batterielademodul"},null,null,null,{"$f":"Fehlercodes_fuer_formel!G172","v":"999 Fehlerort nicht zuordenbar"},{"$f":"Fehlercodes_fuer_formel!G206","v":"430 Deckel (Truhe) Rechts"},{"$f":"Fehlercodes_fuer_formel!G206","v":"430 Deckel (Truhe) Rechts"},{"$f":"Fehlercodes_fuer_formel!G206","v":"430 Deckel (Truhe) Rechts"},{"$f":"Fehlercodes_fuer_formel!G245","v":"265 Eiswuerfelbereiter"},{"$f":"Fehlercodes_fuer_formel!G330","v":"999 Fehlerort nicht zuordenbar"}]
[null,{"$f":"Fehlercodes_fuer_formel!G67","v":"599 Crushmodul"},null,null,null,null,{"$f":"Fehlercodes_fuer_formel!G207","v":"530 Branding (Aufkleber, Logo, …)"},{"$f":"Fehlercodes_fuer_formel!G207","v":"530 Branding (Aufkleber, Logo, …)"},{"$f":"Fehlercodes_fuer_formel!G207","v":"530 Branding (Aufkleber, Logo, …)"},{"$f":"Fehlercodes_fuer_formel!G246","v":"266 Trennplatte vertikal"}]
[null,{"$f":"Fehlercodes_fuer_formel!G68","v":"609 Türöffnungsmodul"},null,null,null,null,{"$f":"Fehlercodes_fuer_formel!G208","v":"692 Kompartimenttür"},{"$f":"Fehlercodes_fuer_formel!G208","v":"692 Kompartimenttür"},{"$f":"Fehlercodes_fuer_formel!G208","v":"692 Kompartimenttür"},{"$f":"Fehlercodes_fuer_formel!G247","v":"272 Kaelteakku"}]
[null,{"$f":"Fehlercodes_fuer_formel!G69","v":"678 Druckschalter"},null,null,null,null,{"$f":"Fehlercodes_fuer_formel!G209","v":"701 Innenbehälter Kühlteil"},{"$f":"Fehlercodes_fuer_formel!G209","v":"701 Innenbehälter Kühlteil"},{"$f":"Fehlercodes_fuer_formel!G209","v":"701 Innenbehälter Kühlteil"},{"$f":"Fehlercodes_fuer_formel!G248","v":"273 Verbindungsbausatz SBS"}]
[null,{"$f":"Fehlercodes_fuer_formel!G70","v":"680 Sicherung"},null,null,null,null,{"$f":"Fehlercodes_fuer_formel!G210","v":"702 Innentür Kühlteil"},{"$f":"Fehlercodes_fuer_formel!G210","v":"702 Innentür Kühlteil"},{"$f":"Fehlercodes_fuer_formel!G210","v":"702 Innentür Kühlteil"},{"$f":"Fehlercodes_fuer_formel!G249","v":"274 Druckausgleichsventil"}]
[null,{"$f":"Fehlercodes_fuer_formel!G71","v":"682 Helligkeitssensor"},null,null,null,null,{"$f":"Fehlercodes_fuer_formel!G211","v":"999 Fehlerort nicht zuordenbar"},{"$f":"Fehlercodes_fuer_formel!G211","v":"999 Fehlerort nicht zuordenbar"},{"$f":"Fehlercodes_fuer_formel!G211","v":"999 Fehlerort nicht zuordenbar"},{"$f":"Fehlercodes_fuer_formel!G250","v":"275 Wasserschlauch"}]
[null,{"$f":"Fehlercodes_fuer_formel!G72","v":"683 Humidifier (Hydrobreeze)"},null,null,null,null,null,null,null,{"$f":"Fehlercodes_fuer_formel!G251","v":"276 Tauwasserablaufventil"}]
[null,{"$f":"Fehlercodes_fuer_formel!G73","v":"072 Taster/ Schalter"},null,null,null,null,null,null,null,{"$f":"Fehlercodes_fuer_formel!G252","v":"295 Eiswuerfelschale"}]
[null,{"$f":"Fehlercodes_fuer_formel!G74","v":"082 Platinenstecker"},null,null,null,null,null,null,null,{"$f":"Fehlercodes_fuer_formel!G253","v":"309 Kompressortraeger"}]
[null,null,null,null,null,null,null,null,null,{"$f":"Fehlercodes_fuer_formel!G254","v":"336 Draht-/ Holzrost"}]
[null,null,null,null,null,null,null,null,null,{"$f":"Fehlercodes_fuer_formel!G255","v":"364 Innenbehälter Gefrierteil"}]
[null,null,null,null,null,null,null,null,null,{"$f":"Fehlercodes_fuer_formel!G256","v":"374 Innentür Gefrierteil"}]
[null,null,null,null,null,null,null,null,null,{"$f":"Fehlercodes_fuer_formel!G257","v":"408 Schliessdaempfung"}]
[null,null,null,null,null,null,null,null,null,{"$f":"Fehlercodes_fuer_formel!G258","v":"418 Scharnier/ Tuerlagerung"}]
[null,null,null,null,null,null,null,null,null,{"$f":"Fehlercodes_fuer_formel!G259","v":"419 Bedienoberflaeche"}]
[null,null,null,null,null,null,null,null,null,{"$f":"Fehlercodes_fuer_formel!G260","v":"431 Halter fuer Auszug-/ Teleskopschiene"}]
[null,null,null,null,null,null,null,null,null,{"$f":"Fehlercodes_fuer_formel!G261","v":"432 Ausgabeeinheit Eis/ Wasser"}]
[null,null,null,null,null,null,null,null,null,{"$f":"Fehlercodes_fuer_formel!G262","v":"434 Deckel Elektronikeinschub"}]
[null,null,null,null,null,null,null,null,null,{"$f":"Fehlercodes_fuer_formel!G263","v":"436 Wassertank"}]
[null,null,null,null,null,null,null,null,null,{"$f":"Fehlercodes_fuer_formel!G264","v":"437 Rollenplatte"}]
[null,null,null,null,null,null,null,null,null,{"$f":"Fehlercodes_fuer_formel!G265","v":"438 Trennplatte Horizontal/ Zwischensteg"}]
[null,null,null,null,null,null,null,null,null,{"$f":"Fehlercodes_fuer_formel!G266","v":"471 Wasserfilter"}]
[null,null,null,null,null,null,null,null,null,{"$f":"Fehlercodes_fuer_formel!G267","v":"472 Schliessmechanismus"}]
[null,null,null,null,null,null,null,null,null,{"$f":"Fehlercodes_fuer_formel!G268","v":"520 Luftfuehrung"}]
[null,null,null,null,null,null,null,null,null,{"$f":"Fehlercodes_fuer_formel!G269","v":"521 Wasserzulauf (Eiswuerfelbereiter)"}]
[null,null,null,null,null,null,null,null,null,{"$f":"Fehlercodes_fuer_formel!G270","v":"522 Ventilator - Verfluessiger"}]
[null,null,null,null,null,null,null,null,null,{"$f":"Fehlercodes_fuer_formel!G271","v":"523 Ventilator - GT"}]
[null,null,null,null,null,null,null,null,null,{"$f":"Fehlercodes_fuer_formel!G272","v":"524 Ventilator - KT/ Biofresh"}]
[null,null,null,null,null,null,null,null,null,{"$f":"Fehlercodes_fuer_formel!G273","v":"525 Kuehlkassette"}]
[null,null,null,null,null,null,null,null,null,{"$f":"Fehlercodes_fuer_formel!G274","v":"526 Griffbefestigung (Nietmutter, …)"}]
[null,null,null,null,null,null,null,null,null,{"$f":"Fehlercodes_fuer_formel!G275","v":"528 Abdeckung Verdampfer"}]
[null,null,null,null,null,null,null,null,null,{"$f":"Fehlercodes_fuer_formel!G276","v":"529 Wandabstandhalter"}]
[null,null,null,null,null,null,null,null,null,{"$f":"Fehlercodes_fuer_formel!G277","v":"530 Branding (Aufkleber, Logo, …)"}]
[null,null,null,null,null,null,null,null,null,{"$f":"Fehlercodes_fuer_formel!G278","v":"531 Dichtung Tuer Gefrierteil"}]
[null,null,null,null,null,null,null,null,null,{"$f":"Fehlercodes_fuer_formel!G279","v":"532 Dichtung Tuer Kuehlteil"}]
[null,null,null,null,null,null,null,null,null,{"$f":"Fehlercodes_fuer_formel!G280","v":"596 Absorber"}]
[null,null,null,null,null,null,null,null,null,{"$f":"Fehlercodes_fuer_formel!G281","v":"599 Crushmodul"}]
[null,null,null,null,null,null,null,null,null,{"$f":"Fehlercodes_fuer_formel!G282","v":"600 Fusspedaloeffner"}]
[null,null,null,null,null,null,null,null,null,{"$f":"Fehlercodes_fuer_formel!G283","v":"604 Luftfilter"}]
[null,null,null,null,null,null,null,null,null,{"$f":"Fehlercodes_fuer_formel!G284","v":"607 Profilleiste (Price-tag, Scannerschiene,..)"}]
[null,null,null,null,null,null,null,null,null,{"$f":"Fehlercodes_fuer_formel!G285","v":"609 Türöffnungsmodul"}]
[null,null,null,null,null,null,null,null,null,{"$f":"Fehlercodes_fuer_formel!G286","v":"611 Wildgehaenge"}]
[null,null,null,null,null,null,null,null,null,{"$f":"Fehlercodes_fuer_formel!G287","v":"613 Blende Bedienteil, -oberflaeche (User Interface) "}]
[null,null,null,null,null,null,null,null,null,{"$f":"Fehlercodes_fuer_formel!G288","v":"683 Humidifier (Hydrobreeze)"}]
[null,null,null,null,null,null,null,null,null,{"$f":"Fehlercodes_fuer_formel!G289","v":"692 Kompartimenttür"}]
[null,null,null,null,null,null,null,null,null,{"$f":"Fehlercodes_fuer_formel!G290","v":"693 CO2-Notkühlung"}]
[null,null,null,null,null,null,null,null,null,{"$f":"Fehlercodes_fuer_formel!G291","v":"694 Cryo-Racks"}]
[null,null,null,null,null,null,null,null,null,{"$f":"Fehlercodes_fuer_formel!G292","v":"699 Innenbehälter Kühlteil Edelstahlverkleidung"}]
[null,null,null,null,null,null,null,null,null,{"$f":"Fehlercodes_fuer_formel!G293","v":"700 Innentür Kühlteil Edelstahlverkleidung"}]
[null,null,null,null,null,null,null,null,null,{"$f":"Fehlercodes_fuer_formel!G294","v":"701 Innenbehälter Kühlteil"}]
[null,null,null,null,null,null,null,null,null,{"$f":"Fehlercodes_fuer_formel!G295","v":"702 Innentür Kühlteil"}]
[null,null,null,null,null,null,null,null,null,{"$f":"Fehlercodes_fuer_formel!G296","v":"999 Fehlerort nicht zuordenbar"}]

{"sheet":"Fehlercodes","index":4,"n_rows":218,"n_cols":7,"rows_kept":218,"cut":false,"hidden":false,"merged":[[91,0,104,0],[170,0,171,0],[230,1,230,6],[0,2,0,4],[2,0,2,6],[47,0,55,0],[9,0,15,0]]}
[null,null,"Fehlerschlüssel"]
[null,null,null,null,null,"Stand: 01.01.2025"]
[]
["|",null,"|",null,"|",null,"|"]
[]
["Fehlergruppe","Fehlerart",null,"Fehlerort"]
["Kältekreislauf","Loetverbindung undicht",{"$f":"'[1]005'!B10","v":"001"},"Kapillare",{"$f":"'[1]005'!F12","v":"002"},"Ventil Kaeltekreislauf",{"$f":"'[1]005'!F29","v":"009"}]
[5,"Knick",{"$f":"'[1]005'!B9","v":"012"},"Kompressor-Fuellstutzen (Verbindung)",{"$f":"'[1]005'!F15","v":"003"},"Rahmenheizung-Verfluessiger \n(Verbindung)",{"$f":"'[1]005'!F22","v":"012"}]
[null,"schwergaengig",{"$f":"'[1]005'!B14","v":"023"},null,null,"Saugrohr-Kapillare Eingang (Verbindung)",{"$f":"'[1]005'!F24","v":"013"}]
["(Leckage/ Verstopfung/ Füllmenge)","verstopft",{"$f":"'[1]005'!B15","v":"028"},"Kompressor-Saugrohr (Verbindung)",{"$f":"'[1]005'!F17","v":"005"},"Saugrohr-Verdampfer (Verbindung)",{"$f":"'[1]005'!F25","v":"014"}]
[null,"blockiert / klemmt",{"$f":"'[1]005'!B6","v":"058"},"Kompressor-Verfluessiger (Verbindung)",{"$f":"'[1]005'!F18","v":"007"},"Trockner",{"$f":"'[1]005'!F26","v":"015"}]
[null,"keine Leistung",{"$f":"'[1]005'!B8","v":"060"},"Rahmenheizung",{"$f":"'[1]005'!F21","v":"011"},"Trockner-Kapillare (Verbindung)",{"$f":"'[1]005'!F27","v":"016"}]
[null,"Lokringverbindung undicht",{"$f":"'[1]005'!B11","v":"291"},"Kompressor",{"$f":"'[1]005'!F14","v":"063"},"Verdampfer Gefrierteil",{"$f":"'[1]005'!F30","v":"017"}]
[null,"Material/Rohr undicht",{"$f":"'[1]005'!B13","v":"292"},"Heizung Verdunstungsschale - Kompressor (Verbindung)",{"$f":"'[1]005'!F10","v":"414"},"Verdampfer Kuehlteil",{"$f":"'[1]005'!F31","v":"018"}]
[null,"Lötstelle zugelötet",{"$f":"'[1]005'!B12","v":"293"},"Heizung Verdunstungsschale - Verfluessiger (Verbindung)",{"$f":"'[1]005'!F11","v":"415"},"Verdampfer-Einspritzstelle (Verbindung)",{"$f":"'[1]005'!F33","v":"019"}]
[null,"Bereifung der Saugleitung",{"$f":"'[1]005'!B5","v":"409"},"Heizung Verdampferwanne",{"$f":"'[1]005'!F9","v":"416"},"Verfluessiger",{"$f":"'[1]005'!F35","v":"020"}]
[null,"Fehlerart nicht zuordenbar",{"$f":"'[1]005'!B7","v":"999"},"Abzweigung - Saug-/ Druckleitung (Verbindung)",{"$f":"'[1]005'!F5","v":"518"},"Verfluessiger-Trockner (Verbindung)",{"$f":"'[1]005'!F36","v":"021"}]
[null,null,null,"Kuehlkassette",{"$f":"'[1]005'!F19","v":"525"},"Wärmetauscher (Wasserführend)",{"$f":"'[1]005'!F37","v":"395"}]
[null,null,null,"Expansionsventil",{"$f":"'[1]005'!F7","v":"675"},"Verdampfer Kuehlteil-Verdampfermodul Gefrierteil (Verbindung)",{"$f":"'[1]005'!F32","v":"412"}]
[null,null,null,"Ölabscheider",{"$f":"'[1]005'!F20","v":"676"},"Verdampfermodul-Saugleitung \n(Verbindung)",{"$f":"'[1]005'!F34","v":"413"}]
[null,null,null,"Druckschalter",{"$f":"'[1]005'!F6","v":"678"},"Sammler",{"$f":"'[1]005'!F23","v":"533"}]
[null,null,null,"Kaskade",{"$f":"'[1]005'!F13","v":"679"},"Ventil für externe Kühlung (Water loop, Wasserkühlung, ..)",{"$f":"'[1]005'!F28","v":"677"}]
[null,null,null,"Fehlerort nicht zuordenbar",{"$f":"'[1]005'!F8","v":"999"}]
["Elektrik","ausser Toleranz (Fuehler etc.)",{"$f":"'[1]040'!B5","v":"031"},"Beleuchtung",{"$f":"'[1]040'!F7","v":"059"},"Ventil Kaeltekreislauf",{"$f":"'[1]040'!F41","v":"009"}]
[40,"elektrische Unterbrechung",{"$f":"'[1]040'!B6","v":"032"},"Heizung",{"$f":"'[1]040'!F15","v":"060"},"Reedkontakt (Tuererkennung, ...)",{"$f":"'[1]040'!F29","v":"068"}]
[null,"falsche Anzeige",{"$f":"'[1]040'!B7","v":"033"},"Isolationsplatte",{"$f":"'[1]040'!F18","v":"061"},"Stecker/ Schraubverbindung",{"$f":"'[1]040'!F35","v":"071"}]
[null,"Kurzschluss",{"$f":"'[1]040'!B9","v":"034"},"Kabelstrang/ Leitung",{"$f":"'[1]040'!F19","v":"062"},"Taster/ Schalter",{"$f":"'[1]040'!F36","v":"072"}]
[null,"Leitungen beschaedigt",{"$f":"'[1]040'!B10","v":"036"},"Kompressor",{"$f":"'[1]040'!F20","v":"063"},"Temperaturfuehler",{"$f":"'[1]040'!F37","v":"073"}]
[null,"regelt falsch",{"$f":"'[1]040'!B12","v":"039"},"Kompressor-Anlassvorrichtung",{"$f":"'[1]040'!F21","v":"064"},"Regelthermostat",{"$f":"'[1]040'!F30","v":"074"}]
[null,"verschmort",{"$f":"'[1]040'!B14","v":"040"},"Kompressor-Motorschutzschalter",{"$f":"'[1]040'!F22","v":"065"},"Verteilerleiste",{"$f":"'[1]040'!F46","v":"075"}]
[null,"Wackelkontakt",{"$f":"'[1]040'!B15","v":"041"},"Kondensator",{"$f":"'[1]040'!F23","v":"066"},"Thermometer",{"$f":"'[1]040'!F38","v":"085"}]
[null,"schaltet nicht",{"$f":"'[1]040'!B13","v":"202"},"Kontrollleuchten",{"$f":"'[1]040'!F24","v":"067"},"Ventil Wasserzulauf",{"$f":"'[1]040'!F42","v":"252"}]
[null,"Leitungen Verdrahtungsfehler",{"$f":"'[1]040'!B11","v":"297"},"Batterie/ Akku",{"$f":"'[1]040'!F5","v":"103"},"Sicherheitstemperaturbegrenzer",{"$f":"'[1]040'!F32","v":"277"}]
[null,"Fehlerart nicht zuordenbar",{"$f":"'[1]040'!B8","v":"999"},"Eiswuerfelbereiter",{"$f":"'[1]040'!F11","v":"265"},"Luftklappe",{"$f":"'[1]040'!F26","v":"439"}]
[null,null,null,"Druckausgleichsventil",{"$f":"'[1]040'!F9","v":"274"},"Pumpe Wassertank",{"$f":"'[1]040'!F28","v":"440"}]
[null,null,null,"Feuchtesensor",{"$f":"'[1]040'!F14","v":"468"},"Tuerheizung",{"$f":"'[1]040'!F39","v":"467"}]
[null,null,null,"Kuehlkassette",{"$f":"'[1]040'!F25","v":"525"},"Potentialfreier Kontakt",{"$f":"'[1]040'!F27","v":"469"}]
[null,null,null,"Fernschloss",{"$f":"'[1]040'!F13","v":"527"},"Sicherheitsthermostat",{"$f":"'[1]040'!F33","v":"517"}]
[null,null,null,"Batterielademodul",{"$f":"'[1]040'!F6","v":"598"},"Ventilator - Verfluessiger",{"$f":"'[1]040'!F45","v":"522"}]
[null,null,null,"Crushmodul",{"$f":"'[1]040'!F8","v":"599"},"Ventilator - GT",{"$f":"'[1]040'!F43","v":"523"}]
[null,null,null,"Druckschalter",{"$f":"'[1]040'!F10","v":"678"},"Ventilator - KT/ Biofresh",{"$f":"'[1]040'!F44","v":"524"}]
[null,null,null,"Helligkeitssensor",{"$f":"'[1]040'!F16","v":"682"},"Türöffnungsmodul",{"$f":"'[1]040'!F40","v":"609"}]
[null,null,null,"Humidifier (Hydrobreeze)",{"$f":"'[1]040'!F17","v":"683"},"Sicherung",{"$f":"'[1]040'!F34","v":"680"}]
[null,null,null,"Fehlerort nicht zuordenbar",{"$f":"'[1]040'!F12","v":"999"},"RS485-Modul",{"$f":"'[1]040'!F31","v":"681"}]
["Elektronik","Kurzschluss",{"$f":"'[1]045'!B12","v":"034"},"Taster/ Schalter",{"$f":"'[1]045'!F19","v":"072"}]
[45,"regelt falsch",{"$f":"'[1]045'!B16","v":"039"},"Platinenstecker",{"$f":"'[1]045'!F16","v":"082"}]
[null,"verschmort",{"$f":"'[1]045'!B24","v":"040"},"Elektronikplatine",{"$f":"'[1]045'!F8","v":"172"}]
["(Fehler an elektronischen Baugruppen)","Wackelkontakt",{"$f":"'[1]045'!B25","v":"041"},"Inverterelektronik (VCC)",{"$f":"'[1]045'!F11","v":"260"}]
[null,"Beleuchtung wird nicht / teilweise / unzureichend angesteuert",{"$f":"'[1]045'!B5","v":"042"},"Elektronik Eiswuerfelbereiter",{"$f":"'[1]045'!F7","v":"264"}]
[null,"fehlerhafte Anzeige / Display",{"$f":"'[1]045'!B7","v":"043"},"Verbindungsmodul",{"$f":"'[1]045'!F21","v":"441"}]
[null,"Fehlfunktion allgemein",{"$f":"'[1]045'!B8","v":"044"},"Netzteil LED-Beleuchtung / Trafo",{"$f":"'[1]045'!F14","v":"442"}]
[null,"Heizung wird nicht angesteuert",{"$f":"'[1]045'!B9","v":"045"},"Temperaturwaechter",{"$f":"'[1]045'!F20","v":"516"}]
[null,"Kompressor wird nicht angesteuert",{"$f":"'[1]045'!B10","v":"046"},"Dimmer",{"$f":"'[1]045'!F6","v":"519"}]
[null,"Kontrollleuchte defekt",{"$f":"'[1]045'!B11","v":"047"},"Netzanschlussplatine",{"$f":"'[1]045'!F12","v":"606"}]
[null,"Magnetventil wird nicht angesteuert",{"$f":"'[1]045'!B14","v":"048"},"Bedienteil, -oberflaeche (User Interface)",{"$f":"'[1]045'!F5","v":"612"}]
[null,"Taster oder Schalter defekt",{"$f":"'[1]045'!B18","v":"049"},"RS485-Modul",{"$f":"'[1]045'!F17","v":"681"}]
[null,"Temperaturschwankungen",{"$f":"'[1]045'!B19","v":"050"},"Netzfilter",{"$f":"'[1]045'!F13","v":"684"}]
[null,"Tonwarner ohne Funktion",{"$f":"'[1]045'!B20","v":"051"},"NFC, RFID Chip",{"$f":"'[1]045'!F15","v":"685"}]
[null,"unberechtigter Temperaturalarm",{"$f":"'[1]045'!B21","v":"054"},"Smartsensoren",{"$f":"'[1]045'!F18","v":"686"}]
[null,"Unterbrechung (Haarriss, Loetstelle usw.)",{"$f":"'[1]045'!B22","v":"055"},"Halbleiterrelais",{"$f":"'[1]045'!F10","v":"698"}]
[null,"Ventilator wird nicht angesteuert",{"$f":"'[1]045'!B23","v":"056"},"Fehlerort nicht zuordenbar",{"$f":"'[1]045'!F9","v":"999"}]
[null,"Pumpe Wassertank wird nicht angesteuert",{"$f":"'[1]045'!B15","v":"298"}]
[null,"Luftklappe wird nicht angesteuert",{"$f":"'[1]045'!B13","v":"299"}]
[null,"Softwarefehler (BUG)",{"$f":"'[1]045'!B17","v":"588"}]
[null,"Fehlerart nicht zuordenbar",{"$f":"'[1]045'!B6","v":"999"}]
["Mechanik","Bruch",{"$f":"'[1]050'!B7","v":"010"},"Fuss/ Rolle",{"$f":"'[1]050'!F11","v":"028"},"Taster/ Schalter",{"$f":"'[1]050'!F19","v":"072"}]
[50,"schwergaengig",{"$f":"'[1]050'!B10","v":"023"},"Griff",{"$f":"'[1]050'!F13","v":"030"},"Schloss",{"$f":"'[1]050'!F18","v":"084"}]
[null,"Verbogen/Verzogen",{"$f":"'[1]050'!B11","v":"025"},"Auszug-/ Teleskopschiene",{"$f":"'[1]050'!F6","v":"259"},"Thermometer",{"$f":"'[1]050'!F20","v":"085"}]
[null,"verstellt/versetzt",{"$f":"'[1]050'!B12","v":"027"},"Eiswuerfelbereiter",{"$f":"'[1]050'!F8","v":"265"},"Schliessdaempfung",{"$f":"'[1]050'!F17","v":"408"}]
[null,"falsche Anzeige",{"$f":"'[1]050'!B8","v":"033"},"Ausgabeeinheit Eis/ Wasser",{"$f":"'[1]050'!F5","v":"432"},"Scharnier/ Tuerlagerung",{"$f":"'[1]050'!F16","v":"418"}]
[null,"abgenutzt",{"$f":"'[1]050'!B5","v":"057"},"Fernschloss",{"$f":"'[1]050'!F10","v":"527"},"Luftklappe",{"$f":"'[1]050'!F15","v":"439"}]
[null,"blockiert / klemmt",{"$f":"'[1]050'!B6","v":"058"},"Crushmodul",{"$f":"'[1]050'!F7","v":"599"},"Ventilator - Verfluessiger",{"$f":"'[1]050'!F24","v":"522"}]
[null,"Fehlerart nicht zuordenbar",{"$f":"'[1]050'!B9","v":"999"},"Fusspedaloeffner",{"$f":"'[1]050'!F12","v":"600"},"Ventilator - GT",{"$f":"'[1]050'!F22","v":"523"}]
[null,null,null,"Humidifier (Hydrobreeze)",{"$f":"'[1]050'!F14","v":"683"},"Ventilator - KT/ Biofresh",{"$f":"'[1]050'!F23","v":"524"}]
[null,null,null,"Fehlerort nicht zuordenbar",{"$f":"'[1]050'!F9","v":"999"},"Türöffnungsmodul",{"$f":"'[1]050'!F21","v":"609"}]
["Geräusch","Knackgeraeusch",{"$f":"'[1]060'!B8","v":"064"},"Kapillare",{"$f":"'[1]060'!F12","v":"002"},"Ventil Kaeltekreislauf",{"$f":"'[1]060'!F23","v":"009"}]
[60,"Knarr-/ Quietschgeräusch",{"$f":"'[1]060'!B9","v":"065"},"Kompressor",{"$f":"'[1]060'!F13","v":"063"},"Verdampfer Gefrierteil",{"$f":"'[1]060'!F28","v":"017"}]
[null,"Laufgeraeusch",{"$f":"'[1]060'!B10","v":"066"},"Regelthermostat",{"$f":"'[1]060'!F15","v":"074"},"Verdampfer Kuehlteil",{"$f":"'[1]060'!F29","v":"018"}]
[null,"Vibrationsgeraeusch",{"$f":"'[1]060'!B13","v":"069"},"Rohre",{"$f":"'[1]060'!F16","v":"087"},"Verfluessiger",{"$f":"'[1]060'!F30","v":"020"}]
[null,"Klappergeräusch/Klopfgeräusch",{"$f":"'[1]060'!B7","v":"089"},"Inverterelektronik (VCC)",{"$f":"'[1]060'!F11","v":"260"},"Tauwasserschale",{"$f":"'[1]060'!F20","v":"052"}]
[null,"Schaltgeraeusch",{"$f":"'[1]060'!B11","v":"203"},"Eiswuerfelbereiter",{"$f":"'[1]060'!F9","v":"265"},"Ventil Wasserzulauf",{"$f":"'[1]060'!F24","v":"252"}]
[null,"Strömungs-/Einspritzgeräusch",{"$f":"'[1]060'!B12","v":"300"},"Druckausgleichsventil",{"$f":"'[1]060'!F8","v":"274"},"Trennplatte vertikal",{"$f":"'[1]060'!F21","v":"266"}]
[null,"Gluckern",{"$f":"'[1]060'!B6","v":"687"},"Scharnier/ Tuerlagerung",{"$f":"'[1]060'!F17","v":"418"},"Schliessdaempfung",{"$f":"'[1]060'!F18","v":"408"}]
[null,"Fehlerart nicht zuordenbar",{"$f":"'[1]060'!B5","v":"999"},"Kuehlkassette",{"$f":"'[1]060'!F14","v":"525"},"Ventilator - Verfluessiger",{"$f":"'[1]060'!F27","v":"522"}]
[null,null,null,"Abdeckung Verdampfer",{"$f":"'[1]060'!F5","v":"528"},"Ventilator - GT",{"$f":"'[1]060'!F25","v":"523"}]
[null,null,null,"Absorber",{"$f":"'[1]060'!F6","v":"596"},"Ventilator - KT/ Biofresh",{"$f":"'[1]060'!F26","v":"524"}]
[null,null,null,"Crushmodul",{"$f":"'[1]060'!F7","v":"599"},"Türöffnungsmodul",{"$f":"'[1]060'!F22","v":"609"}]
[null,null,null,"Fehlerort nicht zuordenbar",{"$f":"'[1]060'!F10","v":"999"},"Syphon",{"$f":"'[1]060'!F19","v":"688"}]
["Oberflächen","Kratzer",{"$f":"'[1]065'!B13","v":"013"},"Deckel (Truhe) / Schiebedeckel",{"$f":"'[1]065'!F9","v":"026"},"Verdampfer Kuehlteil",{"$f":"'[1]065'!F37","v":"018"}]
[65,"Zu viel Lack",{"$f":"'[1]065'!B16","v":"030"},"Griff",{"$f":"'[1]065'!F16","v":"030"},"Rueckseite",{"$f":"'[1]065'!F25","v":"034"}]
[null,"Abdruck",{"$f":"'[1]065'!B5","v":"070"},"Geraetedecke/ Tischplatte",{"$f":"'[1]065'!F15","v":"040"},"Seitenwand allgemein",{"$f":"'[1]065'!F27","v":"036"}]
["(Gerät oder Einzelteile/ Innen oder außen - \nkein Transport-schaden erkennbar!)","Korrosion",{"$f":"'[1]065'!B12","v":"071"},"Beleuchtung",{"$f":"'[1]065'!F7","v":"059"},"Truhenabdeckrahmen",{"$f":"'[1]065'!F32","v":"041"}]
[null,"zu wenig Lack",{"$f":"'[1]065'!B17","v":"072"},"Dichtung Tuer Sterne-Fach",{"$f":"'[1]065'!F12","v":"159"},"Tuer Gefrierteil",{"$f":"'[1]065'!F33","v":"042"}]
[null,"blaettert ab",{"$f":"'[1]065'!B7","v":"087"},"Draht-/ Holzrost",{"$f":"'[1]065'!F13","v":"336"},"Tuer Kuehlteil",{"$f":"'[1]065'!F34","v":"043"}]
[null,"Wölbung/Beule",{"$f":"'[1]065'!B15","v":"088"},"Innenbehälter Gefrierteil",{"$f":"'[1]065'!F17","v":"364"},"Thermostat-/ Lichtschaltergehaeuse",{"$f":"'[1]065'!F29","v":"053"}]
[null,"Farbabweichung",{"$f":"'[1]065'!B8","v":"165"},"Innentür Gefrierteil",{"$f":"'[1]065'!F20","v":"374"},"Querverbindung",{"$f":"'[1]065'!F24","v":"099"}]
[null,"Schliffbild Edelstahl",{"$f":"'[1]065'!B14","v":"301"},"Bedienoberflaeche",{"$f":"'[1]065'!F6","v":"419"},"Schublade",{"$f":"'[1]065'!F26","v":"102"}]
[null,"Flecken",{"$f":"'[1]065'!B10","v":"302"},"Abdeckung Verdampfer",{"$f":"'[1]065'!F5","v":"528"},"Trennplatte vertikal",{"$f":"'[1]065'!F31","v":"266"}]
[null,"Folienrueckstaende",{"$f":"'[1]065'!B11","v":"303"},"Branding (Aufkleber, Logo, …)",{"$f":"'[1]065'!F8","v":"530"},"Kompressortraeger",{"$f":"'[1]065'!F23","v":"309"}]
[null,"abgeloest",{"$f":"'[1]065'!B6","v":"405"},"Dichtung Tuer Gefrierteil",{"$f":"'[1]065'!F10","v":"531"},"Trennplatte Horizontal/ Zwischensteg",{"$f":"'[1]065'!F30","v":"438"}]
[null,"Fehlerart nicht zuordenbar",{"$f":"'[1]065'!B9","v":"999"},"Dichtung Tuer Kuehlteil",{"$f":"'[1]065'!F11","v":"532"},"Wildgehaenge",{"$f":"'[1]065'!F38","v":"611"}]
[null,null,null,"Innenbehälter Kühlteil Edelstahlverkleidung",{"$f":"'[1]065'!F19","v":"699"},"Seitenwand allgemein Dekorstreifen",{"$f":"'[1]065'!F28","v":"689"}]
[null,null,null,"Innenbehälter Kühlteil",{"$f":"'[1]065'!F18","v":"701"},"Tür Gefrierteil Dekorstreifen",{"$f":"'[1]065'!F35","v":"690"}]
[null,null,null,"Innentür Kühlteil",{"$f":"'[1]065'!F21","v":"702"},"Tür Kühlteil Dekorstreifen",{"$f":"'[1]065'!F36","v":"691"}]
[null,null,null,"Fehlerort nicht zuordenbar",{"$f":"'[1]065'!F14","v":"999"},"Innentür Kühlteil Edelstahlverkleidung",{"$f":"'[1]065'!F22","v":"700"}]
["Transport-","Bruch",{"$f":"'[1]025'!B5","v":"010"},"Fuss/ Rolle",{"$f":"'[1]025'!F18","v":"028"},"Verfluessiger",{"$f":"'[1]025'!F43","v":"020"}]
["schaden","Delle",{"$f":"'[1]025'!B6","v":"011"},"Glasplatten, Absteller usw.",{"$f":"'[1]025'!F20","v":"029"},"Kompressorlagerung",{"$f":"'[1]025'!F27","v":"033"}]
["Verpackung","Knick",{"$f":"'[1]025'!B7","v":"012"},"Griff",{"$f":"'[1]025'!F21","v":"030"},"Rueckseite",{"$f":"'[1]025'!F30","v":"034"}]
["beschädigt","Kratzer",{"$f":"'[1]025'!B8","v":"013"},"Geraetedecke/ Tischplatte",{"$f":"'[1]025'!F19","v":"040"},"Sockelblende",{"$f":"'[1]025'!F38","v":"038"}]
[25,"lose",{"$f":"'[1]025'!B9","v":"014"},"Beleuchtung",{"$f":"'[1]025'!F9","v":"059"},"Teile der Innenausstattung",{"$f":"'[1]025'!F39","v":"039"}]
[null,"Riss",{"$f":"'[1]025'!B10","v":"015"},"Innenbehälter Gefrierteil",{"$f":"'[1]025'!F22","v":"364"},"Truhenabdeckrahmen",{"$f":"'[1]025'!F40","v":"041"}]
["Transport-","Scheuerstelle",{"$f":"'[1]025'!B11","v":"016"},"Innentür Gefrierteil",{"$f":"'[1]025'!F24","v":"374"},"Querverbindung",{"$f":"'[1]025'!F29","v":"099"}]
["schaden","Stauchung",{"$f":"'[1]025'!B12","v":"017"},"Bedienoberflaeche",{"$f":"'[1]025'!F8","v":"419"},"Kompressortraeger",{"$f":"'[1]025'!F28","v":"309"}]
["Verpackung",null,null,"Aussentuer, Oben",{"$f":"'[1]025'!F6","v":"420"},"Seitenwand rechts, Oben",{"$f":"'[1]025'!F36","v":"378"}]
["nicht mehr",null,null,"Aussentuer, Mitte",{"$f":"'[1]025'!F5","v":"421"},"Seitenwand rechts, Mitte",{"$f":"'[1]025'!F35","v":"379"}]
["vorhanden",null,null,"Aussentuer, Unten",{"$f":"'[1]025'!F7","v":"422"},"Seitenwand rechts, Unten",{"$f":"'[1]025'!F37","v":"380"}]
[26,null,null,"Front Links (Truhe)",{"$f":"'[1]025'!F15","v":"425"},"Seitenwand links, Oben",{"$f":"'[1]025'!F33","v":"381"}]
[null,null,null,"Front Mitte (Truhe)",{"$f":"'[1]025'!F16","v":"426"},"Seitenwand links, Mitte",{"$f":"'[1]025'!F32","v":"382"}]
["Schadensur-",null,null,"Front Rechts (Truhe)",{"$f":"'[1]025'!F17","v":"427"},"Seitenwand links, Unten",{"$f":"'[1]025'!F34","v":"383"}]
["sache unklar",null,null,"Deckel (Truhe) Links ",{"$f":"'[1]025'!F11","v":"428"},"Scharnier/ Tuerlagerung",{"$f":"'[1]025'!F31","v":"418"}]
["Verpackung",null,null,"Deckel (Truhe) Mitte",{"$f":"'[1]025'!F12","v":"429"},"untere Aussentuer, Oben",{"$f":"'[1]025'!F41","v":"423"}]
["nicht",null,null,"Deckel (Truhe) Rechts",{"$f":"'[1]025'!F13","v":"430"},"untere Aussentuer, Unten",{"$f":"'[1]025'!F42","v":"424"}]
[null,null,null,"Branding (Aufkleber, Logo, …)",{"$f":"'[1]025'!F10","v":"530"},"Kompartimenttür",{"$f":"'[1]025'!F26","v":"692"}]
["beschädigt",null,null,"Innenbehälter Kühlteil",{"$f":"'[1]025'!F23","v":"701"},"Innentür Kühlteil",{"$f":"'[1]025'!F25","v":"702"}]
[27,null,null,"Fehlerort nicht zuordenbar",{"$f":"'[1]025'!F14","v":"999"}]
["Produkt-","undicht",{"$f":"'[1]030'!B21","v":"002"},"Deckel (Truhe) / Schiebedeckel",{"$f":"'[1]030'!F17","v":"026"},"Verdampfer Gefrierteil",{"$f":"'[1]030'!F80","v":"017"}]
["mangel","Bruch",{"$f":"'[1]030'!B6","v":"010"},"Griff",{"$f":"'[1]030'!F31","v":"030"},"Verdampfer Kuehlteil",{"$f":"'[1]030'!F81","v":"018"}]
[30,"Knick",{"$f":"'[1]030'!B12","v":"012"},"Geraetedecke/ Tischplatte",{"$f":"'[1]030'!F30","v":"040"},"Verfluessiger",{"$f":"'[1]030'!F83","v":"020"}]
[null,"lose",{"$f":"'[1]030'!B15","v":"014"},"Gehaeusedurchfuehrung",{"$f":"'[1]030'!F29","v":"047"},"Rueckseite",{"$f":"'[1]030'!F53","v":"034"}]
[null,"Riss",{"$f":"'[1]030'!B16","v":"015"},"Lichtschalter",{"$f":"'[1]030'!F46","v":"049"},"Seitenwand allgemein",{"$f":"'[1]030'!F59","v":"036"}]
["(kein ","fehlt",{"$f":"'[1]030'!B9","v":"018"},"Heizung",{"$f":"'[1]030'!F34","v":"060"},"Teile der Innenausstattung",{"$f":"'[1]030'!F64","v":"039"}]
["Transport-","Kondenswasser",{"$f":"'[1]030'!B13","v":"019"},"Dekorrahmen",{"$f":"'[1]030'!F19","v":"094"},"Truhenabdeckrahmen",{"$f":"'[1]030'!F69","v":"041"}]
["schaden","laeuft ueber",{"$f":"'[1]030'!B14","v":"020"},"Abdeckung",{"$f":"'[1]030'!F5","v":"105"},"Tuer Gefrierteil",{"$f":"'[1]030'!F70","v":"042"}]
["erkennbar)","schief",{"$f":"'[1]030'!B18","v":"022"},"Dichtung Tuer Sterne-Fach",{"$f":"'[1]030'!F22","v":"159"},"Tuer Kuehlteil",{"$f":"'[1]030'!F71","v":"043"}]
[null,"schwergaengig",{"$f":"'[1]030'!B19","v":"023"},"Beipack",{"$f":"'[1]030'!F11","v":"232"},"Regelknopf",{"$f":"'[1]030'!F51","v":"050"}]
[null,"Vereisung",{"$f":"'[1]030'!B23","v":"024"},"Auszug-/ Teleskopschiene",{"$f":"'[1]030'!F9","v":"259"},"Tauwasserablauf",{"$f":"'[1]030'!F60","v":"051"}]
[null,"Verbogen/Verzogen",{"$f":"'[1]030'!B22","v":"025"},"Eiswuerfelbereiter",{"$f":"'[1]030'!F25","v":"265"},"Tauwasserschale",{"$f":"'[1]030'!F62","v":"052"}]
[null,"verstellt/versetzt",{"$f":"'[1]030'!B25","v":"027"},"Kaelteakku",{"$f":"'[1]030'!F42","v":"272"},"Thermostat-/ Lichtschaltergehaeuse",{"$f":"'[1]030'!F66","v":"053"}]
[null,"verstopft",{"$f":"'[1]030'!B26","v":"028"},"Druckausgleichsventil",{"$f":"'[1]030'!F24","v":"274"},"Tuer Sterne-Fach",{"$f":"'[1]030'!F72","v":"056"}]
[null,"zu stark angezogen",{"$f":"'[1]030'!B28","v":"029"},"Eiswuerfelschale",{"$f":"'[1]030'!F26","v":"295"},"Temperaturfuehler",{"$f":"'[1]030'!F65","v":"073"}]
[null,"blockiert / klemmt",{"$f":"'[1]030'!B5","v":"058"},"Kompressortraeger",{"$f":"'[1]030'!F44","v":"309"},"Tauwasserverschluss-Stopfen GT",{"$f":"'[1]030'!F63","v":"096"}]
[null,"Teil falsch",{"$f":"'[1]030'!B20","v":"079"},"Draht-/ Holzrost",{"$f":"'[1]030'!F23","v":"336"},"Tuerkoppelungssatz",{"$f":"'[1]030'!F73","v":"097"}]
[null,"Geruch",{"$f":"'[1]030'!B10","v":"083"},"Innenbehälter Gefrierteil",{"$f":"'[1]030'!F36","v":"364"},"Querverbindung",{"$f":"'[1]030'!F50","v":"099"}]
[null,"falsch montiert",{"$f":"'[1]030'!B7","v":"091"},"Innentür Gefrierteil",{"$f":"'[1]030'!F39","v":"374"},"Schublade",{"$f":"'[1]030'!F58","v":"102"}]
[null,"Schaumaustritt",{"$f":"'[1]030'!B17","v":"103"},"Bedienoberflaeche",{"$f":"'[1]030'!F10","v":"419"},"Schaltnocken/ Tuermagnet",{"$f":"'[1]030'!F54","v":"104"}]
[null,"Verschmutzt",{"$f":"'[1]030'!B24","v":"148"},"Halter fuer Auszug-/ Teleskopschiene",{"$f":"'[1]030'!F33","v":"431"},"Ventil Wasserzulauf",{"$f":"'[1]030'!F75","v":"252"}]
[null,"walkt",{"$f":"'[1]030'!B27","v":"204"},"Ausgabeeinheit Eis/ Wasser",{"$f":"'[1]030'!F8","v":"432"},"Verdampferwanne",{"$f":"'[1]030'!F82","v":"257"}]
[null,"Isolationsfehler",{"$f":"'[1]030'!B11","v":"296"},"Deckel Elektronikeinschub",{"$f":"'[1]030'!F18","v":"434"},"Trennplatte vertikal",{"$f":"'[1]030'!F68","v":"266"}]
[null,"Fehlerart nicht zuordenbar",{"$f":"'[1]030'!B8","v":"999"},"Kuehlkassette",{"$f":"'[1]030'!F45","v":"525"},"Verbindungsbausatz SBS",{"$f":"'[1]030'!F79","v":"273"}]
[null,null,null,"Griffbefestigung (Nietmutter, …)",{"$f":"'[1]030'!F32","v":"526"},"Wasserschlauch",{"$f":"'[1]030'!F86","v":"275"}]
[null,null,null,"Abdeckung Verdampfer",{"$f":"'[1]030'!F6","v":"528"},"Tauwasserablaufventil",{"$f":"'[1]030'!F61","v":"276"}]
[null,null,null,"Branding (Aufkleber, Logo, …)",{"$f":"'[1]030'!F13","v":"530"},"Schliessdaempfung",{"$f":"'[1]030'!F56","v":"408"}]
[null,null,null,"Dichtung Tuer Gefrierteil",{"$f":"'[1]030'!F20","v":"531"},"Scharnier/ Tuerlagerung",{"$f":"'[1]030'!F55","v":"418"}]
[null,null,null,"Dichtung Tuer Kuehlteil",{"$f":"'[1]030'!F21","v":"532"},"Wassertank",{"$f":"'[1]030'!F87","v":"436"}]
[null,null,null,"Absorber",{"$f":"'[1]030'!F7","v":"596"},"Rollenplatte",{"$f":"'[1]030'!F52","v":"437"}]
[null,null,null,"Crushmodul",{"$f":"'[1]030'!F15","v":"599"},"Trennplatte Horizontal/ Zwischensteg",{"$f":"'[1]030'!F67","v":"438"}]
[null,null,null,"Fusspedaloeffner",{"$f":"'[1]030'!F28","v":"600"},"Wasserfilter",{"$f":"'[1]030'!F85","v":"471"}]
[null,null,null,"Luftfilter",{"$f":"'[1]030'!F47","v":"604"},"Schliessmechanismus",{"$f":"'[1]030'!F57","v":"472"}]
[null,null,null,"Blende Bedienteil, -oberflaeche (User Interface) ",{"$f":"'[1]030'!F12","v":"613"},"Luftfuehrung",{"$f":"'[1]030'!F48","v":"520"}]
[null,null,null,"Humidifier (Hydrobreeze)",{"$f":"'[1]030'!F35","v":"683"},"Wasserzulauf (Eiswuerfelbereiter)",{"$f":"'[1]030'!F88","v":"521"}]
[null,null,null,"Kompartimenttür",{"$f":"'[1]030'!F43","v":"692"},"Ventilator - Verfluessiger",{"$f":"'[1]030'!F78","v":"522"}]
[null,null,null,"CO2-Notkühlung",{"$f":"'[1]030'!F14","v":"693"},"Ventilator - GT",{"$f":"'[1]030'!F76","v":"523"}]
[null,null,null,"Cryo-Racks",{"$f":"'[1]030'!F16","v":"694"},"Ventilator - KT/ Biofresh",{"$f":"'[1]030'!F77","v":"524"}]
[null,null,null,"Innenbehälter Kühlteil Edelstahlverkleidung",{"$f":"'[1]030'!F38","v":"699"},"Wandabstandhalter",{"$f":"'[1]030'!F84","v":"529"}]
[null,null,null,"Innentür Kühlteil Edelstahlverkleidung",{"$f":"'[1]030'!F41","v":"700"},"Profilleiste (Price-tag, Scannerschiene,..)",{"$f":"'[1]030'!F49","v":"607"}]
[null,null,null,"Innenbehälter Kühlteil",{"$f":"'[1]030'!F37","v":"701"},"Türöffnungsmodul",{"$f":"'[1]030'!F74","v":"609"}]
[null,null,null,"Innentür Kühlteil",{"$f":"'[1]030'!F40","v":"702"},"Wildgehaenge",{"$f":"'[1]030'!F89","v":"611"}]
[null,null,null,"Fehlerort nicht zuordenbar",{"$f":"'[1]030'!F27","v":"999"}]
["kein Fehler","Einbau-/Aufstellfehler",{"$f":"'[1]080'!B7","v":"081"},"Griff",{"$f":"'[1]080'!F11","v":"030"},"Ventil Kaeltekreislauf",{"$f":"'[1]080'!F31","v":"009"}]
[80,"Fehler tritt z. Zt. nicht auf",{"$f":"'[1]080'!B9","v":"082"},"Rueckseite",{"$f":"'[1]080'!F22","v":"034"},"Tuer Gefrierteil",{"$f":"'[1]080'!F28","v":"042"}]
[null,"Geruch",{"$f":"'[1]080'!B11","v":"083"},"Tauwasserablauf",{"$f":"'[1]080'!F25","v":"051"},"Tuer Kuehlteil",{"$f":"'[1]080'!F29","v":"043"}]
[null,"Umgebungstemperatur zu kalt",{"$f":"'[1]080'!B24","v":"085"},"Tauwasserschale",{"$f":"'[1]080'!F26","v":"052"},"Winterheizung",{"$f":"'[1]080'!F38","v":"199"}]
[null,"Umgebungstemperatur zu warm",{"$f":"'[1]080'!B25","v":"086"},"Beleuchtung",{"$f":"'[1]080'!F5","v":"059"},"Technische Klaerung (Funktionsbeschreibung)",{"$f":"'[1]080'!F27","v":"208"}]
[null,"Verschmutzt",{"$f":"'[1]080'!B26","v":"148"},"Kompressor",{"$f":"'[1]080'!F18","v":"063"},"Ventil Wasserzulauf",{"$f":"'[1]080'!F32","v":"252"}]
[null,"normale Betriebsgeraeusche",{"$f":"'[1]080'!B13","v":"304"},"Elektronikplatine",{"$f":"'[1]080'!F6","v":"172"},"Ventilator - Verfluessiger",{"$f":"'[1]080'!F35","v":"522"}]
[null,"Teil nicht mehr vorhanden",{"$f":"'[1]080'!B22","v":"305"},"Geraetemerkmale",{"$f":"'[1]080'!F10","v":"206"},"Ventilator - GT",{"$f":"'[1]080'!F33","v":"523"}]
[null,"Demomode bei Inbetriebnahme",{"$f":"'[1]080'!B6","v":"339"},"Prospektangaben",{"$f":"'[1]080'!F21","v":"207"},"Ventilator - KT/ Biofresh",{"$f":"'[1]080'!F34","v":"524"}]
[null,"Spannungsversorgung fehlt",{"$f":"'[1]080'!B21","v":"340"},"Gehaeuse",{"$f":"'[1]080'!F8","v":"223"},"Wandabstandhalter",{"$f":"'[1]080'!F37","v":"529"}]
[null,"Tueranschlag wechsel",{"$f":"'[1]080'!B23","v":"341"},"Kaeltekreislauf",{"$f":"'[1]080'!F17","v":"245"},"Türöffnungsmodul",{"$f":"'[1]080'!F30","v":"609"}]
[null,"Prospektangaben nicht eindeutig",{"$f":"'[1]080'!B19","v":"342"},"Innenbehälter Gefrierteil",{"$f":"'[1]080'!F14","v":"364"},"Verbrauchsartikel (Filter, ..)",{"$f":"'[1]080'!F36","v":"610"}]
[null,"Bedienungsfehler/nicht Beachtung BDA",{"$f":"'[1]080'!B5","v":"343"},"Schliessdaempfung",{"$f":"'[1]080'!F23","v":"408"}]
[null,"Oxidation",{"$f":"'[1]080'!B18","v":"344"},"Hausinstallation",{"$f":"'[1]080'!F12","v":"473"}]
[null,"Normale Temperaturdifferenzen/ -schwankungen",{"$f":"'[1]080'!B15","v":"345"},"Geraetebelueftung",{"$f":"'[1]080'!F9","v":"474"}]
[null,"falsches Geraet",{"$f":"'[1]080'!B8","v":"346"},"Loetstellen",{"$f":"'[1]080'!F19","v":"475"}]
[null,"normaler Energieverbrauch",{"$f":"'[1]080'!B17","v":"406"},"Luft-, Kerntemperatur",{"$f":"'[1]080'!F20","v":"476"}]
[null,"normale Laufzeit",{"$f":"'[1]080'!B14","v":"407"},"Ist/ Sollwertanzeige",{"$f":"'[1]080'!F16","v":"479"}]
[null,"normale Vereisung, Bereifung",{"$f":"'[1]080'!B16","v":"408"},"Smart Device Box",{"$f":"'[1]080'!F24","v":"608"}]
[null,"Inkompatibel (z.B. Tablet, Smartphone)",{"$f":"'[1]080'!B12","v":"410"},"Humidifier (Hydrobreeze)",{"$f":"'[1]080'!F13","v":"683"}]
[null,"Signalstaerke",{"$f":"'[1]080'!B20","v":"412"},"Innenbehälter Kühlteil",{"$f":"'[1]080'!F15","v":"701"}]
[null,"Fehlerart nicht zuordenbar",{"$f":"'[1]080'!B10","v":"999"},"Fehlerort nicht zuordenbar",{"$f":"'[1]080'!F7","v":"999"}]
["Fehler tritt zur","Zeitweises Geräusch",{"$f":"'[1]101'!B14","v":"483"},"Deckel (Truhe) / Schiebedeckel",{"$f":"'[1]101'!F7","v":"026"},"Verdampfer Gefrierteil",{"$f":"'[1]101'!F29","v":"017"}]
["Zeit nicht auf","Zeitweise Temperaturabweichung",{"$f":"'[1]101'!B9","v":"484"},"Glasplatten, Absteller usw.",{"$f":"'[1]101'!F16","v":"029"},"Verdampfer Kuehlteil",{"$f":"'[1]101'!F30","v":"018"}]
[101,"Zeitweise Alarmmeldung ",{"$f":"'[1]101'!B6","v":"485"},"Geraetedecke/ Tischplatte",{"$f":"'[1]101'!F15","v":"040"},"Seitenwand allgemein",{"$f":"'[1]101'!F23","v":"036"}]
[null,"Zeitweises Auslösen der Sicherheitseinrichtung",{"$f":"'[1]101'!B13","v":"486"},"Beleuchtung",{"$f":"'[1]101'!F6","v":"059"},"Tuer Gefrierteil",{"$f":"'[1]101'!F26","v":"042"}]
[null,"Zeitweise zu niedrige / hohe  Luftfeuchtigkeit",{"$f":"'[1]101'!B10","v":"487"},"Dichtung Tuer Sterne-Fach",{"$f":"'[1]101'!F10","v":"159"},"Tuer Kuehlteil",{"$f":"'[1]101'!F27","v":"043"}]
[null,"Keine Verbindung",{"$f":"'[1]101'!B5","v":"488"},"Elektronikplatine",{"$f":"'[1]101'!F12","v":"172"},"Tauwasserablauf",{"$f":"'[1]101'!F24","v":"051"}]
[null,"Zeitweise Kondensat / Betauung",{"$f":"'[1]101'!B8","v":"489"},"Eiswuerfelbereiter",{"$f":"'[1]101'!F11","v":"265"},"Schublade",{"$f":"'[1]101'!F22","v":"102"}]
[null,"Zeitweiser Totalausfall",{"$f":"'[1]101'!B12","v":"490"},"Innenbehälter Gefrierteil",{"$f":"'[1]101'!F17","v":"364"},"Tauwasserablaufventil",{"$f":"'[1]101'!F25","v":"276"}]
[null,"Zeitweiser Fehler der Beleuchtung",{"$f":"'[1]101'!B11","v":"491"},"Ausgabeeinheit Eis/ Wasser",{"$f":"'[1]101'!F5","v":"432"},"Schliessdaempfung",{"$f":"'[1]101'!F20","v":"408"}]
[null,"Zeitweise Blockiert / Schwergängig",{"$f":"'[1]101'!B7","v":"492"},"Dichtung Tuer Gefrierteil",{"$f":"'[1]101'!F8","v":"531"},"Scharnier/ Tuerlagerung",{"$f":"'[1]101'!F19","v":"418"}]
[null,null,null,"Dichtung Tuer Kuehlteil",{"$f":"'[1]101'!F9","v":"532"},"Wassertank",{"$f":"'[1]101'!F31","v":"436"}]
[null,null,null,"Fusspedaloeffner",{"$f":"'[1]101'!F14","v":"600"},"Schliessmechanismus",{"$f":"'[1]101'!F21","v":"472"}]
[null,null,null,"Innenbehälter Kühlteil",{"$f":"'[1]101'!F18","v":"701"},"Türöffnungsmodul",{"$f":"'[1]101'!F28","v":"609"}]
[null,null,null,"Fehlerort nicht zuordenbar",{"$f":"'[1]101'!F13","v":"999"}]
["Vernetzung/","Leitungen Verdrahtungsfehler",{"$f":"'[1]046'!B9","v":"297"},"Abschlusswiderstand",{"$f":"'[1]046'!F5","v":"595"},"Schnittstelle (RS 485, RS 232, CAN BUS, MOD BUS, Ethernet, IR-Schluessel, WLAN, BT, USB …)",{"$f":"'[1]046'!F13","v":"470"}]
["Kommunikation","Inkompatibel (z.B. Tablet, Smartphone)",{"$f":"'[1]046'!B6","v":"410"},"APP / Software",{"$f":"'[1]046'!F6","v":"597"},"Smart Device Box",{"$f":"'[1]046'!F14","v":"608"}]
[46,"Konfigurationsfehler",{"$f":"'[1]046'!B8","v":"411"},"Infrarot-Schluessel",{"$f":"'[1]046'!F7","v":"601"},"NFC, RFID Chip",{"$f":"'[1]046'!F12","v":"685"}]
[null,"Signalstaerke",{"$f":"'[1]046'!B10","v":"412"},"Konverter für seriellen Anschluss (EVCO, Carel)",{"$f":"'[1]046'!F8","v":"602"},"Smartsensoren",{"$f":"'[1]046'!F17","v":"686"}]
[null,"Keine Verbindung",{"$f":"'[1]046'!B7","v":"488"},"LAN-Kabel",{"$f":"'[1]046'!F9","v":"603"},"SmartMonitoring",{"$f":"'[1]046'!F16","v":"696"}]
[null,"Softwarefehler (BUG)",{"$f":"'[1]046'!B11","v":"588"},"Master / Slave Modul (Homedialog)",{"$f":"'[1]046'!F11","v":"605"},"SmartCoolingHub",{"$f":"'[1]046'!F15","v":"697"}]
[null,"Fehlerart nicht zuordenbar",{"$f":"'[1]046'!B5","v":"999"},"Lizenzshop",{"$f":"'[1]046'!F10","v":"695"}]
["Wasserverlust","Bruch",201,"Wasserschlauch",210]
[200,"Riss",207,"Wasserventil",211]
[null,"Montagefehler",208,"Dichtung",212]
[null,"Undicht",209,"Ablaufpumpe",213]
[null,"Überfüllung",205,"Niveausensor",214]
[null,"Beschädigung",206,null,215]
[null,"Fehlerart nicht zuordenbar","999"]

{"sheet":"Codes d'erreur","index":5,"n_rows":218,"n_cols":7,"rows_kept":218,"cut":false,"hidden":true,"merged":[[47,0,55,0],[91,0,104,0],[170,0,171,0],[224,1,224,6],[0,2,0,4],[2,0,2,6],[5,1,5,2],[5,3,5,6],[6,0,8,0]]}
[null,null,"Code d'erreur SAV"]
[null,null,null,null,null,"Etat : 01.01.2025"]
[]
["|",null,"|",null,"|",null,"|"]
[]
["Groupe d'erreur","Type d'erreur",null,"Lieu d'erreur"]
["Circuit de refroidissement","Bouché",28,"Cadre chauffant",11,"Entrée conduite d’aspiration–capillaires (liaison)",13]
[null,"Givrage de la conduite d’aspiration",409,"Cadre chauffant–condenseur (liaison)",12,"Évaporateur compartiment congélateur",17]
[null,"Grippé",23,"Capillaires",2,"Évaporateur compartiment réfrigérateur",18]
[5,"Matériau / tuyau non étanche",292,"Cascade",679,"Évaporateur compartiment réfrigérateur–Module d’évaporateur compartiment congélateur (liaison)",412]
[null,"Pas de puissance",60,"Cassette de refroidissement",525,"Lieu d’erreur non imputable",999]
[null,"Pli",12,"Chauffage bac d’évaporateur",416,"Module d’évaporateur–conduite d’aspiration\n(liaison)",413]
[null,"Raccord Lokring non étanche",291,"Chauffage bac d’évaporation – compresseur (liaison)",414,"Point d’injection évaporateur (liaison)",19]
[null,"Se bloque / coince",58,"Chauffage bac d’évaporation – condenseur (liaison)",415,"Pressostat",678]
[null,"Soudure bouchée",293,"Collecteur",533,"Raccord de dérivation – conduite d’aspiration et de refoulement (liaison)",518]
[null,"Soudure non étanche",1,"Compresseur",63,"Raccord de remplissage du compresseur (liaison)",3]
[null,"Type d’erreur non imputable",999,"Compresseur–cadre chauffant (liaison)",4,"Sécheur",15]
[null,0,0,"Compresseur–condenseur (liaison)",7,"Sécheur–capillaires (liaison)",16]
[null,null,null,"Compresseur–conduite d’aspiration (liaison)",5,"Séparateur d’huile",676]
[null,null,null,"Condenseur",20,"Soupape pour refroidissement externe (circuit fermé, refroidissement à l’eau, ..)",677]
[null,null,null,"Condenseur–sécheur (liaison)",21,"Vanne circuit réfrigérant",9]
[null,null,null,"Conduite d’aspiration–évaporateur (liaison)",14,"Vanne d'expansion",675]
[null,0,0,"Echangeur de chaleur ( à eau)",395]
["Electricité","Affichage incorrect",33,"Bande de distribution",75,"Lieu d’erreur non imputable",999]
[40,"Câbles endommagés",36,"Batterie/ accu",103,"Limiteur de température de sécurité",277]
[null,"Câbles erreur de câblage",297,"Capteur d’humidité",468,"Module crush",599]
[null,"Coupure électrique",32,"Capteur de luminosité",682,"Module de charge de la batterie",598]
[null,"Court-circuit",34,"Capteur de température",73,"Module d'ouverture de porte",609]
[null,"Faux-contact",41,"Cassette de refroidissement",525,"Module RS485",681]
[null,"Grillé",40,"Chauffage",60,"Panneau isolant",61]
[null,"Hors tolérance (capteur etc.)",31,"Chauffage de porte",467,"Pompe réservoir d’eau",440]
[null,"Ne commute pas",202,"Compresseur",63,"Pressostat",678]
[null,"Règle mal",39,"Compresseur–disjoncteur-protecteur",65,"Prise/ raccord à vis",71]
[null,"Type d’erreur non imputable",999,"Compresseur–dispositif de démarrage",64,"Thermomètre",85]
[null,null,null,"Condenseur",66,"Thermostat de réglage",74]
[null,null,null,"Contact Reed (reconnaissance de porte, ...)",68,"Thermostat de sécurité",517]
[null,null,null,"Contact sans potentiel",469,"Touche/interrupteur",72]
[null,null,null,"Distributeur de glaçons",265,"Valve de compensation de pression",274]
[null,null,null,"Éclairage",59,"Vanne arrivée d’eau",252]
[null,null,null,"Faisceau de câbles / cordon",62,"Vanne circuit réfrigérant",9]
[null,null,null,"Fermeture à distance",527,"Ventilateur – compartiment congélateur",523]
[null,null,null,"Fusible",680,"Ventilateur – compartiment réfrigérateur/ BioFresh",524]
[null,null,null,"Humidificateur (Hydrobreeze)",683,"Ventilateur – condenseur",522]
[null,null,null,"Lampes témoin",67,"Volet d’aération",439]
["Electronique","Affichage / écran défectueux",43,"Alimentation éclairage LED / transformateur",442]
[45,"Alarme de température injustifiée",54,"Bornier de platine",82]
[null,"Avertisseur sonore sans fonction",51,"Capteurs intelligents",686]
[null,"Chauffage ne démarre pas",45,"Filtre réseau",684]
[null,"Compresseur ne démarre pas",46,"Inverter",260]
[null,"Court-circuit",34,"Lieu d’erreur non imputable",999]
[null,"Défaillance générale",44,"Limiteur de température",516]
[null,"Éclairage ne démarre pas / partiellement / insuffisamment",42,"Module de liaison",441]
[null,"Électrovanne n’est pas activée",48,"Module RS485",681]
[null,"Erreur de logiciel (bug)",588,"NFC, puce RFID",685]
[null,"Faux-contact",41,"Platine de connexion réseau",606]
[null,"Grillé",40,"Platine électronique",172]
[null,"Interruption (fissure capillaire, joint soudé, etc.)",55,"Relais semi-conducteur",698]
[null,"Lampe témoin défectueuse",47,"Système électronique distributeur de glaçons",264]
[null,"Pompe réservoir à eau ne démarre pas",298,"Touche/interrupteur",72]
[null,"Règle mal",39,"Unité de commande, interface utilisateur (User Interface)",612]
[null,"Touche ou interrupteur défectueux",49,"Variateur d’intensité",519]
[null,"Type d’erreur non imputable",999]
[null,"Variations de température",50]
[null,"Ventilateur ne démarre pas",56]
[null,"Volet d’aération n’est pas activé",299]
["Mécanique","Affichage incorrect",33,"Amortisseur de fermeture",408,"Poignée",30]
[50,"Casse",10,"Charnière/ gond de porte",418,"Rail coulissant / télescopique",259]
[null,"Décalé / déplacé",27,"Distributeur de glaçons",265,"Serrure",84]
[null,"Grippé",23,"Fermeture à distance",527,"Thermomètre",85]
[null,"Se bloque / coince",58,"Humidificateur (Hydrobreeze)",683,"Touche/interrupteur",72]
[null,"Tordu / gondolé",25,"Lieu d’erreur non imputable",999,"Unité de sortie glace/ eau",432]
[null,"Type d’erreur non imputable",999,"Module crush",599,"Ventilateur – compartiment congélateur",523]
[null,"Usé",57,"Module d'ouverture de porte",609,"Ventilateur – compartiment réfrigérateur/ BioFresh",524]
[null,null,null,"Ouverture à pédale",600,"Ventilateur – condenseur",522]
[null,null,null,"Pied/ roulette",28,"Volet d’aération",439]
["Bruit","Bruit d’injection / de circulation",300,"Absorbeur",596,"Module crush",599]
[60,"Bruit de cliquetis / tapotement",89,"Amortisseur de fermeture",408,"Module d'ouverture de porte",609]
[null,"Bruit de commutation",203,"Cache évaporateur",528,"Récipient d’eau de dégivrage",52]
[null,"Bruit de couinement/ grincement",65,"Capillaires",2,"Siphon",688]
[null,"Bruit de craquement",64,"Cassette de refroidissement",525,"Tablette de séparation verticale",266]
[null,"Bruit de fonctionnement",66,"Charnière/ gond de porte",418,"Thermostat de réglage",74]
[null,"Bruit de vibration",69,"Compresseur",63,"Tuyaux",87]
[null,"Glouglou",687,"Condenseur",20,"Valve de compensation de pression",274]
[null,"Type d’erreur non imputable",999,"Distributeur de glaçons",265,"Vanne arrivée d’eau",252]
[null,null,null,"Évaporateur compartiment congélateur",17,"Vanne circuit réfrigérant",9]
[null,null,null,"Évaporateur compartiment réfrigérateur",18,"Ventilateur – compartiment congélateur",523]
[null,null,null,"Inverter",260,"Ventilateur – compartiment réfrigérateur/ BioFresh",524]
[null,null,null,"Lieu d’erreur non imputable",999,"Ventilateur – condenseur",522]
["Surfaces","Bombement / bosse",88,"\u0090Joint de porte compartiment congélateur",531,"Esse",611]
[65,"Corrosion",71,"\u0090Joint de porte compartiment étoiles",159,"Évaporateur compartiment réfrigérateur",18]
[null,"Décollé",405,"\u0090Joint de porte compartiment réfrigérateur",532,"Face arrière",34]
[null,"Empreinte",70,"Boîtier de thermostat / interrupteur d’éclairage",53,"Interface utilisateur",419]
[null,"Éraflure",13,"Branding (autocollant, logo, …)",530,"Liaison transversale",99]
[null,"Microsection acier inox",301,"Cache évaporateur",528,"Lieu d’erreur non imputable",999]
[null,"Pas assez de vernis",72,"Cadre de protection du coffre",41,"Paroi latérale général",36]
[null,"Résidus de film",303,"Clayette fil/en bois",336,"Paroi latérale général bandes décoratives",689]
[null,"S’écaille",87,"Contre-porte compartiment congélateur",374,"Poignée",30]
[null,"Taches",302,"Contre-porte compartiment réfrigérateur",702,"Porte compartiment congélateur",42]
[null,"Trop de vernis",30,"Contre-porte compartiment réfrigérateur revêtement inox",700,"Porte compartiment réfrigérateur",43]
[null,"Type d’erreur non imputable",999,"Couvercle (coffre) / couvercle coulissant",26,"Porte du compartiment congélateur bandes décoratives",690]
[null,"Variation de couleur",165,"Cuve intérieure compartiment congélateur",364,"Porte du compartiment réfrigérateur bandes décoratives",691]
[null,null,null,"Cuve intérieure compartiment réfrigérateur",701,"Support de compresseur",309]
[null,null,null,"Cuve intérieure compartiment réfrigérateur revêtement inox",699,"Tablette de séparation horizontale/ séparateur",438]
[null,null,null,"Dessus",40,"Tablette de séparation verticale",266]
[null,null,null,"Éclairage",59,"Tiroir",102]
["Avarie de ","Casse",10,"Avant droit (coffre)",427,"Lieu d’erreur non imputable",999]
["transport","Creux",11,"Avant gauche (coffre)",425,"Logement du compresseur",33]
["Emballage","Écrasement",17,"Avant milieu (coffre)",426,"Paroi latérale à droite, au milieu",379]
["endommagé","Éraflure",13,"Branding (autocollant, logo, …)",530,"Paroi latérale à droite, en bas",380]
[25,"Fissure",15,"Cache socle",38,"Paroi latérale à droite, en haut",378]
[null,"Lâche",14,"Cadre de protection du coffre",41,"Paroi latérale à gauche, au milieu",382]
["Avarie de ","Pli",12,"Charnière/ gond de porte",418,"Paroi latérale à gauche, en bas",383]
["transport","Trace de frottement",16,"Condenseur",20,"Paroi latérale à gauche, en haut",381]
["Plus d'",null,null,"Contre-porte compartiment congélateur",374,"Pièces de l’équipement intérieur",39]
["emballage",null,null,"Contre-porte compartiment réfrigérateur",702,"Pied/ roulette",28]
[null,null,null,"Couvercle (coffre) à droite",430,"Poignée",30]
[26,null,null,"Couvercle (coffre) à gauche ",428,"Porte du compartiment",692]
[null,null,null,"Couvercle (coffre) au milieu",429,"Porte extérieure inférieure, en bas",424]
["Cause de dommage indéterminée",null,null,"Cuve intérieure compartiment congélateur",364,"Porte extérieure inférieure, en haut",423]
[null,null,null,"Cuve intérieure compartiment réfrigérateur",701,"Porte extérieure, au milieu",421]
["Emballage",null,null,"Dessus",40,"Porte extérieure, en bas",422]
["pas",null,null,"Éclairage",59,"Porte extérieure, en haut",420]
[" endommagé",null,null,"Face arrière",34,"Support de compresseur",309]
[27,null,null,"Interface utilisateur",419,"Tablettes en verre, balconnets, etc.",29]
[null,null,null,"Liaison transversale",99]
["Défaut","Bouché",28,"\u0090Joint de porte compartiment congélateur",531,"Face arrière",34]
["produit","Casse",10,"\u0090Joint de porte compartiment étoiles",159,"Filtre à air",604]
[30,"Chute",204,"\u0090Joint de porte compartiment réfrigérateur",532,"Filtre à eau",471]
[null,"De travers",22,"Absorbeur",596,"Fixation de la poignée (écrou à sertir, ...)",526]
[null,"Déborde",20,"Accu de froid",272,"Humidificateur (Hydrobreeze)",683]
[null,"Décalé / déplacé",27,"Amortisseur de fermeture",408,"Interface utilisateur",419]
[null,"Eau de condensation",19,"Arrivée d’eau (distributeur de glaçons)",521,"Kit d’accessoires",232]
[null,"Encrassé",148,"Bac à glaçons",295,"Kit de liaison SBS",273]
[null,"Erreur d’isolation",296,"Bac d’évaporateur",257,"Liaison transversale",99]
[null,"Fissure",15,"Barre profilée (étiquette de prix, rail porte-étiquette,..)",607,"Lieu d’erreur non imputable",999]
[null,"Givrage",24,"Boîtier de thermostat / interrupteur d’éclairage",53,"Mécanisme de fermeture",472]
[null,"Grippé",23,"Bouchon de fermeture de l’eau de dégivrage du compartiment congélateur",96,"Module crush",599]
[null,"Lâche",14,"Bouton de réglage",50,"Module d'ouverture de porte",609]
[null,"Manquant",18,"Branding (autocollant, logo, …)",530,"Ouverture à pédale",600]
[null,"Mauvaise pièce",79,"Cache",105,"Paroi latérale général",36]
[null,"Montage incorrect",91,"Cache évaporateur",528,"Passage de boîtier",47]
[null,"Non étanche",2,"Cache unité de commande, interface utilisateur (User Interface) ",613,"Pièces de l’équipement intérieur",39]
[null,"Odeur",83,"Cadre de protection du coffre",41,"Plateau de roulettes",437]
[null,"Pli",12,"Cadre décoratif",94,"Poignée",30]
[null,"Se bloque / coince",58,"Capteur de température",73,"Porte compartiment congélateur",42]
[null,"Serré trop fort",29,"Cassette de refroidissement",525,"Porte compartiment congélation",56]
[null,"Sortie de mousse",103,"Charnière/ gond de porte",418,"Porte compartiment réfrigérateur",43]
[null,"Tordu / gondolé",25,"Chauffage",60,"Porte du compartiment",692]
[null,"Type d’erreur non imputable",999,"Clayette fil/en bois",336,"Racks de stockage cryogénique",694]
[null,null,null,"Commutateur à cames/ aimant de porte",104,"Rail coulissant / télescopique",259]
[null,null,null,"Commutateur d’éclairage",49,"Récipient d’eau de dégivrage",52]
[null,null,null,"Condenseur",20,"Refroidissement d’urgence CO2",693]
[null,null,null,"Conduit d’air",520,"Réservoir d’eau",436]
[null,null,null,"Contre-porte compartiment congélateur",374,"Set d’accouplement pour porte",97]
[null,null,null,"Contre-porte compartiment réfrigérateur",702,"Support de compresseur",309]
[null,null,null,"Contre-porte compartiment réfrigérateur revêtement inox",700,"Support pour rail coulissant / télescopique",431]
[null,null,null,"Couvercle (coffre) / couvercle coulissant",26,"Tablette de séparation horizontale/ séparateur",438]
[null,null,null,"Couvercle tiroir électronique",434,"Tablette de séparation verticale",266]
[null,null,null,"Cuve intérieure compartiment congélateur",364,"Tiroir",102]
[null,null,null,"Cuve intérieure compartiment réfrigérateur",701,"Tuyau d’eau",275]
[null,null,null,"Cuve intérieure compartiment réfrigérateur revêtement inox",699,"Unité de sortie glace/ eau",432]
[null,null,null,"Dessus",40,"Valve de compensation de pression",274]
[null,null,null,"Distributeur de glaçons",265,"Vanne arrivée d’eau",252]
[null,null,null,"Écoulement de l’eau de dégivrage",51,"Vanne de sortie de l’eau de dégivrage",276]
[null,null,null,"Entretoise murale",529,"Ventilateur – compartiment congélateur",523]
[null,null,null,"Esse",611,"Ventilateur – compartiment réfrigérateur/ BioFresh",524]
[null,null,null,"Évaporateur compartiment congélateur",17,"Ventilateur – condenseur",522]
[null,null,null,"Évaporateur compartiment réfrigérateur",18]
["pas d'erreur","Bruits de fonctionnement normaux",304,"Aération de l’appareil",474,"Points de soudure",475]
[80,"Congélation, givrage normal",408,"Affichage de la valeur réelle/ valeur de consigne",479,"Porte compartiment congélateur",42]
[null,"Consommation électrique normale",406,"Amortisseur de fermeture",408,"Porte compartiment réfrigérateur",43]
[null,"Différences / variations de températures normales",345,"Boîtier",223,"Précision technique (description du fonctionnement)",208]
[null,"Durée de fonctionnement normale",407,"Caractéristiques de l’appareil",206,"Récipient d’eau de dégivrage",52]
[null,"Encrassé",148,"Chauffage d’hiver",199,"Smart Device Box",608]
[null,"Erreur d’utilisation / non respect manuel d’utilisation",343,"Circuit réfrigérant",245,"Température de l’air, du noyau",476]
[null,"Erreur de montage/ de mise en place",81,"Compresseur",63,"Vanne arrivée d’eau",252]
[null,"Erreur ne se produit actuellement pas",82,"Consommable (filtre, ..)",610,"Vanne circuit réfrigérant",9]
[null,"Incompatible (p. ex. tablette, smartphone)",410,"Cuve intérieure compartiment congélateur",364,"Ventilateur – compartiment congélateur",523]
[null,"Informations non précises",342,"Cuve intérieure compartiment réfrigérateur",701,"Ventilateur – compartiment réfrigérateur/ BioFresh",524]
[null,"Inversion du sens d’ouverture de la porte",341,"Éclairage",59,"Ventilateur – condenseur",522]
[null,"Mauvais appareil",346,"Écoulement de l’eau de dégivrage",51]
[null,"Mode démo lors de mise en service",339,"Entretoise murale",529]
[null,"Odeur",83,"Face arrière",34]
[null,"Oxydation",344,"Humidificateur (Hydrobreeze)",683]
[null,"Pièce plus disponible",305,"Informations",207]
[null,"Puissance du signal",412,"Installation domestique",473]
[null,"Température ambiante trop chaude",86,"Lieu d’erreur non imputable",999]
[null,"Température ambiante trop froide",85,"Module d'ouverture de porte",609]
[null,"Tension d’alimentation manquante",340,"Platine électronique",172]
[null,"Type d’erreur non imputable",999,"Poignée",30]
["Erreur ne","Aucune connexion",488,"\u0090Joint de porte compartiment congélateur",531,"Lieu d’erreur non imputable",999]
["se produit","Bruit occasionnel",483,"\u0090Joint de porte compartiment étoiles",159,"Mécanisme de fermeture",472]
["actuellement","Condensation temporaire / rosée",489,"\u0090Joint de porte compartiment réfrigérateur",532,"Module d'ouverture de porte",609]
[" pas","Déclenchement temporaire du dispositif de sécurité",486,"Amortisseur de fermeture",408,"Ouverture à pédale",600]
[101,"Défaillance totale occasionnelle",490,"Charnière/ gond de porte",418,"Paroi latérale général",36]
[null,"Erreur d'éclairage occasionnelle",491,"Couvercle (coffre) / couvercle coulissant",26,"Platine électronique",172]
[null,"Message d'alarme occasionnel ",485,"Cuve intérieure compartiment congélateur",364,"Porte compartiment congélateur",42]
[null,"Occasionnellement bloqué/grippé",492,"Cuve intérieure compartiment réfrigérateur",701,"Porte compartiment réfrigérateur",43]
[null,"Taux d'humidité parfois trop élevé / trop faible",487,"Dessus",40,"Réservoir d’eau",436]
[null,"Variation occasionnelle de la température",484,"Distributeur de glaçons",265,"Tablettes en verre, balconnets, etc.",29]
[null,null,null,"Éclairage",59,"Tiroir",102]
[null,null,null,"Écoulement de l’eau de dégivrage",51,"Unité de sortie glace/ eau",432]
[null,null,null,"Évaporateur compartiment congélateur",17,"Vanne de sortie de l’eau de dégivrage",276]
[null,null,null,"Évaporateur compartiment réfrigérateur",18]
["Système ","Aucune connexion",488,"APP / logiciel",597,"Module maître / esclave (HomeDialog)",605]
["électronique","Câbles erreur de câblage",297,"Boutique de licences",695,"NFC, puce RFID",685]
[46,"Erreur de configuration",411,"Câble LAN",603,"Résistance de terminaison",595]
[null,"Erreur de logiciel (bug)",588,"Capteurs intelligents",686,"Smart Device Box",608]
[null,"Incompatible (p. ex. tablette, smartphone)",410,"Clé infrarouge",601,"SmartCoolingHub",697]
[null,"Puissance du signal",412,"Convertisseur pour port série (EVCO, Carel)",602,"SmartMonitoring",696]
[null,"Type d’erreur non imputable",999,"Interface (RS 485, RS 232, CAN BUS, MOD BUS, Ethernet, clé IR, Wi-Fi, BT, USB, …)",470]
["Fuite d'eau","Cassé",201,"Tuyau d'eau",210]
[200,"Fendu",207,"Vanne d'entrée d'eau",211]
[null,"Erreur de Montage",208,"Joint",212]
[null,"Pas étanche",209,"Pompe de vidange",213]
[null,"Déborde",205,"Sonde de niveau",214]
[null,"Dégât",206,null,215]
[null,"Type d’erreur non imputable",999]

{"sheet":"Codici di errore","index":6,"n_rows":218,"n_cols":7,"rows_kept":218,"cut":false,"hidden":false,"merged":[[23,0,24,0],[47,0,55,0],[91,0,104,0],[170,0,171,0],[224,1,224,6],[9,0,22,0],[0,2,0,4],[2,0,2,6],[5,1,5,2],[5,3,5,6],[6,0,7,0]]}
[null,null,"Codici di errore incarico servizio assistenza"]
[null,null,null,null,null,"Ultimo aggiornamento: 01.01.2025"]
[]
["|",null,"|",null,"|",null,"|"]
[]
["Categorie di errori","Tipo di errore",null,"Ubicazione dell'errore"]
["Ciclo frigorigeno","Bloccato / incastrato","058","Anticondensa /condensatore (collegamento)","012","Filtro essiccatore /capillare (connessione)","016"]
[null,"Brinatura del tubo di aspirazione","409","Cascata","679","Modulo evaporatore /tubo di aspirazione","413"]
[5,"Collegamento saldato non a tenuta stagna","001","cassetta di refrigerazione","525","Pressostato","678"]
["(Perdita/ Occlusione/ Capacità)","Giuntura saldata chiusa","293","Collettore","533","Riscaldatore , vaschetta evaporatore","416"]
[null,"Giunzione Lokring non a tenuta stagna","291","Compressore","063","Riscaldatore , vaschetta evaporatore/Compressore (connessione)","414"]
[null,"Materiale / tubo non a tenuta","292","Compressore /tubo di servizio (connessione)","003","Riscaldatore , vaschetta evaporatore/Condensatore (connessione)","415"]
[null,"Nessuna uscita","060","Compressore/condensatore (connessione)","007","Riscaldatore anticondensa","011"]
[null,"Ostruito","028","Compressore/tubo anticondensa (connessione)","004","Scambiatore di calore (ad acqua)","395"]
[null,"Piega","012","Compressore/tubo di aspirazione (connessione)","005","Separatore dell’olio","676"]
[null,"Rigido","023","Condensatore","020","Tubi capillari","002"]
[null,"Tipo di errore non classificabile","999","Condensatore/filtro essiccatore (connessione)","021","Tubo di aspirazione/evaporatore (connessione)","014"]
[null,0,0,"Diramazione – tubo di aspirazione / tubo di mandata (collegamento)","518","Tubo di aspirazione/ingresso tubi capillari (connessione)","013"]
[null,null,null,"Evaporatore vano congelatore","017","Ubicazione dell’errore non classificabile","999"]
[null,null,null,"Evaporatore vano frigorifero","018","Valvola circuito di raffreddamento","009"]
[null,null,null,"Evaporatore vano frigorifero/modulo evaporatore vano congelatore (connessione)","412","Valvola di espansione","675"]
[null,null,null,"Evaporatore/punto d’iniezione (connessione)","019","Valvola per raffreddamento esterno (circuito idrico, raffreddamento ad acqua ...)","677"]
[null,0,0,"Filtro essiccatore","015"]
["Impianto elettrico","Cavi danneggiati","036","Batteria/ batteria ricaricabile","103","Pompa tanica acqua","440"]
[null,"Contatto allentato","041","Blocchetto di distribuzione","075","Pressostato","678"]
[40,"Cortocircuito","034","Cablaggio/ cavo","062","Pulsante/ Interruttore","072"]
[null,"Difetto cavi/cablaggio","297","cassetta di refrigerazione","525","Riscaldamento porta","467"]
[null,"Fuori tolleranza (sonda etc.)","031","Chiusura remota","527","Riscaldatore","060"]
[null,"Fuso","040","Compressore","063","Salvamotore del compressore","065"]
[null,"Interruzione elettrica","032","Condensatore","066","Sensore di luminosità","682"]
[null,"Non commuta","202","Connettore / connettore a vite","071","Sensore umidità","468"]
[null,"Regola in modo non corretto","039","Contatto a potenziale zero","469","Sonda di temperatura","073"]
[null,"Tipo di errore non classificabile","999","Contatto reed (riconoscimento porta aperta, ...)","068","Spie luminose","067"]
[null,"Visualizzazione non corretta","033","Deflettore aria","439","Termometro","085"]
[null,null,null,"Dispositivo di avviamento del compressore","064","Termostato di regolazione","074"]
[null,null,null,"IceMaker","265","Termostato di sicurezza","517"]
[null,null,null,"Illuminazione","059","Ubicazione dell’errore non classificabile","999"]
[null,null,null,"Limitatore di temperatura di sicurezza","277","Umidificatore (hydrobreeze)","683"]
[null,null,null,"Meccanismo di arresto","680","Valvola afflusso acqua","252"]
[null,null,null,"Modulo apriporta ","609","Valvola circuito di raffreddamento","009"]
[null,null,null,"Modulo caricabatterie","598","Valvola di compensazione della pressione","274"]
[null,null,null,"Modulo RS485","681","Ventilatore – Condensatore","522"]
[null,null,null,"Modulo trita ghiaccio","599","Ventilatore – vano congelatore","523"]
[null,null,null,"Pannello isolante","061","Ventilatore – vano frigorifero/ BioFresh","524"]
["Elettronica","Allarme acustico non funziona","051","Alimentatore / trasformatore illuminazione a LED","442"]
[45,"Allarme temperatura ingiustificato","054","Chip NFC, RFID","685"]
[null,"Compressore non si attiva","046","Connettore scheda elettronica","082"]
["(Errore dei componenti elettronici)","Contatto allentato","041","Dimmer","519"]
[null,"Cortocircuito","034","Elettronica inverter (VCC)","260"]
[null,"Deflettore aria non si attiva","299","Elettronica, IceMaker","264"]
[null,"Difetto spia luminosa","047","Filtro di rete","684"]
[null,"Errore software (BUG)","588","Modulo di collegamento","441"]
[null,"Fuso","040","Modulo RS485","681"]
[null,"Indicazione errata / errore su display","043","Morsettiera di alimentazione elettrica","606"]
[null,"Interruzione (fessura capillare, punto saldato etc.)","055","Pannello di controllo, Interfaccia utente","612"]
[null,"L’illuminazione non si attiva / si attiva in parte / si attiva in modo insufficiente","042","Pulsante/ Interruttore","072"]
[null,"Malfunzionamento generale","044","Relè semiconduttore","698"]
[null,"Non si attiva il ventilatore","056","Scheda elettronica","172"]
[null,"Non si attiva la pompa del serbatoio dell’acqua","298","Sensori smart","686"]
[null,"Non si attiva la valvola magnetica","048","Termostato","516"]
[null,"Pulsante o interruttore difettoso","049","Ubicazione dell’errore non classificabile","999"]
[null,"Regola in modo non corretto","039"]
[null,"Riscaldatore non si attivata","045"]
[null,"Tipo di errore non classificabile","999"]
[null,"Variazioni della temperatura","050"]
["Meccanica","Bloccato / incastrato","058","Cerniera/ fissaggio porta","418","Pedale d’apertura","600"]
[50,"Curvo / deformato","025","Chiusura remota","527","Piedino/ rotella","028"]
[null,"Disallineato / sfalsato","027","Deflettore aria","439","Pulsante/ Interruttore","072"]
[null,"Logoro","057","Erogatore Ghiaccio/Acqua","432","Serratura","084"]
[null,"Rigido","023","Guida estraibile/telescopica","259","Termometro","085"]
[null,"Rottura","010","IceMaker","265","Ubicazione dell’errore non classificabile","999"]
[null,"Tipo di errore non classificabile","999","Maniglia","030","Umidificatore (hydrobreeze)","683"]
[null,"Visualizzazione non corretta","033","Meccanismo Soft System ","408","Ventilatore – Condensatore","522"]
[null,null,null,"Modulo apriporta ","609","Ventilatore – vano congelatore","523"]
[null,null,null,"Modulo trita ghiaccio","599","Ventilatore – vano frigorifero/ BioFresh","524"]
["Rumore","Gorgoglio","687","Assorbitore","596","Pannello di separazione verticale","266"]
[60,"Rumore di commutazione","203","cassetta di refrigerazione","525","Sifone","688"]
[null,"Rumore di funzionamento","066","Cerniera/ fissaggio porta","418","Termostato di regolazione","074"]
[null,"Rumore iniezione / flusso","300","Compressore","063","Tubi capillari","002"]
[null,"Rumore simile a un clic","064","Condensatore","020","Tubo","087"]
[null,"Rumore simile ad un fruscio/cigolio","065","Copertura evaporatore","528","Ubicazione dell’errore non classificabile","999"]
[null,"Rumore simile ad un ticchettio/crepitio","089","Elettronica inverter (VCC)","260","Valvola afflusso acqua","252"]
[null,"Tipo di errore non classificabile","999","Evaporatore vano congelatore","017","Valvola circuito di raffreddamento","009"]
[null,"Vibrazione","069","Evaporatore vano frigorifero","018","Valvola di compensazione della pressione","274"]
[null,null,null,"IceMaker","265","Vaschetta per la condensa","052"]
[null,null,null,"Meccanismo Soft System ","408","Ventilatore – Condensatore","522"]
[null,null,null,"Modulo apriporta ","609","Ventilatore – vano congelatore","523"]
[null,null,null,"Modulo trita ghiaccio","599","Ventilatore – vano frigorifero/ BioFresh","524"]
["Superfici","Corrosione","071","Alloggiamento termostato/interruttore luce","053","Illuminazione","059"]
[65,"Graffi","013","Branding (adesivi, logo, …)","530","Interfaccia utente","419"]
[null,"Impronta","070","Cassetto","102","Maniglia","030"]
["Nessun danno di trasporto identificabile sull'apparecchio o sue parti / né all'interno né all'esterno!","Macchie","302","Cielo apparecchiatura/ piano d'appoggio","040","Pannello di separazione verticale","266"]
[null,"Parte lucida / acciaio inox","301","Connettore incrociato","099","Pannello di separazione, orizzontale/intermedio","438"]
[null,"Protuberanza / ammaccatura","088","Controporta vano congelatore","374","Parete laterale in generale","036"]
[null,"Residui di pellicola","303","Controporta vano frigorifero","702","Parete posteriore","034"]
[null,"Scostamento cromatico","165","Controporta vano frigorifero rivestimento in acciaio inox","700","Porta vano congelatore","042"]
[null,"Sfaldatura","087","Coperchio (congelatore orizzontale) / coperchio scorrevole","026","Porta vano frigorifero","043"]
[null,"Staccato","405","Copertura evaporatore","528","Rivestimento interno vano congelatore","364"]
[null,"Tipo di errore non classificabile","999","Cornice congelatore orizzontale","041","Rivestimento interno vano frigorifero","701"]
[null,"Troppa vernice","030","Evaporatore vano frigorifero","018","Rivestimento interno vano frigorifero rivestimento in acciaio inox","699"]
[null,"Troppo poca vernice","072","Ganci per selvaggina","611","Strisce decorative parete laterale generale","689"]
[null,null,null,"Griglia in metallo/legno","336","Strisce decorative porta vano congelatore","690"]
[null,null,null,"Guarnizione porta vano congelatore","531","Strisce decorative porta vano frigorifero","691"]
[null,null,null,"Guarnizione porta vano freezer 4 stelle","159","Supporto del compressore","309"]
[null,null,null,"Guarnizione porta vano frigorifero","532","Ubicazione dell’errore non classificabile","999"]
["Danni di","Allentato","014","Branding (adesivi, logo, …)","530","Parete laterale destra, sotto","380"]
["trasporto","Ammaccatura","011","Cerniera/ fissaggio porta","418","Parete laterale sinistra, al centro","382"]
["Imballaggio","Compressione","017","Cielo apparecchiatura/ piano d'appoggio","040","Parete laterale sinistra, sopra","381"]
["danneggiato","Crepa","015","Condensatore","020","Parete laterale sinistra, sotto","383"]
[25,"Graffi","013","Connettore incrociato","099","Parete posteriore","034"]
[null,"Piega","012","Controporta vano congelatore","374","Parti delle dotazioni interne","039"]
["Danni di","Rottura","010","Controporta vano frigorifero","702","Piedino/ rotella","028"]
["trasporto","Superficie abrasa","016","Coperchio (congelatore orizzontale) , Destro","430","Porta compartimentata","692"]
["Imballaggio",null,null,"Coperchio (congelatore orizzontale), centrale","429","Porta esterna inferiore, sopra","423"]
["non più",null,null,"Cornice congelatore orizzontale","041","Porta esterna inferiore, sotto","424"]
["presente",null,null,"Fascia di compensazione per lo zoccolo","038","Porta esterna, al centro","421"]
[26,null,null,"Fissaggio compressore","033","Porta esterna, sopra","420"]
[null,null,null,"Frontale, a destra (congelatore orizzontale)","427","Porta esterna, sotto","422"]
["Causa del ",null,null,"Frontale, a sinistra (congelatore orizzontale)","425","Porzione sinistra del coperchio (congelatore orizzontale) ","428"]
["danno non",null,null,"Frontale, al centro (congelatore orizzontale)","426","Ripiani in vetro, mensole etc.","029"]
["chiara",null,null,"Illuminazione","059","Rivestimento interno vano congelatore","364"]
["Imballaggio ",null,null,"Interfaccia utente","419","Rivestimento interno vano frigorifero","701"]
["non",null,null,"Maniglia","030","Supporto del compressore","309"]
["danneggiato",null,null,"Parete laterale destra, al centro","379","Ubicazione dell’errore non classificabile","999"]
[27,null,null,"Parete laterale destra, sopra","378"]
["Difetto","Acqua di condensa","019","(connessione)","257","Meccanismo di chiusura","472"]
["del prodotto","Allentato","014","Accumulatore di freddo","272","Meccanismo Soft System ","408"]
[30,"Assemblato in modo non corretto","091","Alloggiamento termostato/interruttore luce","053","Modulo apriporta ","609"]
[null,"Bloccato / incastrato","058","Assorbitore","596","Modulo trita ghiaccio","599"]
[null,"Componente errato","079","Branding (adesivi, logo, …)","530","Pannello di controllo frontale/interfaccia utente","613"]
["(nessun ","Crepa","015","Carico acqua IiceMaker)","521","Pannello di separazione verticale","266"]
["danno di","Curvo / deformato","025","cassetta di refrigerazione","525","Pannello di separazione, orizzontale/intermedio","438"]
["trasporto","Difetto di isolamento","296","Cassetto","102","Parete laterale in generale","036"]
["riconoscibile)","Disallineato / sfalsato","027","Cerniera/ fissaggio porta","418","Parete posteriore","034"]
[null,"Flesso","204","Cielo apparecchiatura/ piano d'appoggio","040","Parti delle dotazioni interne","039"]
[null,"Fuoriuscita schiuma tura","103","Commutazione camme / magnete porta","104","Pedale d’apertura","600"]
[null,"Mancante","018","Condensatore","020","Porta compartimentata","692"]
[null,"Non a tenuta stagna","002","Connettore incrociato","099","Porta vano congelatore","042"]
[null,"Odore","083","Controporta vano congelatore","374","Porta vano freezer 4 stelle","056"]
[null,"Ostruito","028","Controporta vano frigorifero","702","Porta vano frigorifero","043"]
[null,"Piega","012","Controporta vano frigorifero rivestimento in acciaio inox","700","Pulsante di controllo","050"]
[null,"Rigido","023","Convogliatore aria","520","Rack per la conservazione criogenica","694"]
[null,"Rottura","010","Coperchio (congelatore orizzontale) / coperchio scorrevole","026","Raffreddamento di emergenza CO2","693"]
[null,"Sporco","148","Coperchio, inserto elettronica","434","Riscaldatore","060"]
[null,"Storto","022","Copertura","105","Rivestimento interno vano congelatore","364"]
[null,"Tipo di errore non classificabile","999","Copertura evaporatore","528","Rivestimento interno vano frigorifero","701"]
[null,"Traboccamento","020","Cornice congelatore orizzontale","041","Rivestimento interno vano frigorifero rivestimento in acciaio inox","699"]
[null,"Troppo stretto","029","Distanziale per parete","529","Scarico condensa","051"]
[null,"Vaschetta evaporazione","024","Elemento passante per alloggiamento","047","Sistema guida estraibile","437"]
[null,null,null,"Erogatore Ghiaccio/Acqua","432","Sonda di temperatura","073"]
[null,null,null,"Evaporatore vano congelatore","017","Supporto del compressore","309"]
[null,null,null,"Evaporatore vano frigorifero","018","Supporto per guida estraibile / telescopica","431"]
[null,null,null,"Filtro dell’acqua","471","Tanica acqua","436"]
[null,null,null,"Fissaggio maniglia (dado ,rivettato)","526","Tappo di chiusura condensa vano congelatore","096"]
[null,null,null,"Ganci per selvaggina","611","Telaio decorativo","094"]
[null,null,null,"Griglia in metallo/legno","336","Temperatura aria/temperatura al cuore","604"]
[null,null,null,"Guarnizione porta vano congelatore","531","Tubo dell’acqua","275"]
[null,null,null,"Guarnizione porta vano freezer 4 stelle","159","Ubicazione dell’errore non classificabile","999"]
[null,null,null,"Guarnizione porta vano frigorifero","532","Umidificatore (hydrobreeze)","683"]
[null,null,null,"Guida estraibile/telescopica","259","Valvola afflusso acqua","252"]
[null,null,null,"IceMaker","265","Valvola di compensazione della pressione","274"]
[null,null,null,"Interfaccia utente","419","Valvola di scarico condensa","276"]
[null,null,null,"Interruttore della luce","049","Vaschetta IceMaker","295"]
[null,null,null,"Kit accessori","232","Vaschetta per la condensa","052"]
[null,null,null,"Kit accoppiamento porta","097","Ventilatore – Condensatore","522"]
[null,null,null,"Kit di collegamento SBS","273","Ventilatore – vano congelatore","523"]
[null,null,null,"Listello profilato( cartellini prezzo, binario scanner,..)","607","Ventilatore – vano frigorifero/ BioFresh","524"]
[null,null,null,"Maniglia","030"]
["Nessun errore","Apparecchio errato","346","Alloggiamento","223","Smart Device Box","608"]
[80,"Consumo energetico normale","406","Articolo di consumo (filtro,...)","610","Temperatura dell’aria/interna","476"]
[null,"Errore di funzionamento / non-osservanza delle istruzioni per l'uso","343","Caratteristiche apparecchiature","206","Ubicazione dell’errore non classificabile","999"]
[null,"Errore di montaggio / installazione","081","Chiarimento tecnico (descrizione della funzione)","208","Umidificatore (hydrobreeze)","683"]
[null,"Forza del segnale","412","Circuito frigorifero","245","Valvola afflusso acqua","252"]
[null,"Guasto al momento non verificato","082","Compressore","063","Valvola circuito di raffreddamento","009"]
[null,"Il componente non c’è più","305","Distanziale per parete","529","Vaschetta per la condensa","052"]
[null,"Incompatibile (ad es. tablet, smartphone)","410","Illuminazione","059","Ventilatore – Condensatore","522"]
[null,"Informazioni catalogo non chiare","342","Impianto elettrico luogo di installazione","473","Ventilatore – vano congelatore","523"]
[null,"Inversione apertura porte","341","Informazioni catalogo","207","Ventilatore – vano frigorifero/ BioFresh","524"]
[null,"Mancanza di alimentazione","340","Maniglia","030","Ventilazione apparecchiatura","474"]
[null,"Modalità demo durante la messa in servizio","339","Meccanismo Soft System ","408","Visualizzazione valore reale/richiesto","479"]
[null,"Normale formazione di ghiaccio/brina tura","408","Modulo apriporta ","609"]
[null,"Normali differenze / fluttuazioni di temperatura","345","Parete posteriore","034"]
[null,"Normali rumori di funzionamento","304","Porta vano congelatore","042"]
[null,"Normali tempi di funzionamento","407","Porta vano frigorifero","043"]
[null,"Odore","083","Punti saldati","475"]
[null,"Ossidazione","344","Riscaldatore inverno","199"]
[null,"Sporco","148","Rivestimento interno vano congelatore","364"]
[null,"Temperatura ambiente troppo alta","086","Rivestimento interno vano frigorifero","701"]
[null,"Temperatura ambiente troppo bassa","085","Scarico condensa","051"]
[null,"Tipo di errore non classificabile","999","Scheda elettronica","172"]
["Guasto","A volte attivazione del dispositivo di sicurezza","486","Cassetto","102","Modulo apriporta ","609"]
["al momento","A volte blackout totale","490","Cerniera/ fissaggio porta","418","Parete laterale in generale","036"]
["non verificato","A volte bloccato / duro da muovere","492","Cielo apparecchiatura/ piano d'appoggio","040","Pedale d’apertura","600"]
[101,"A volte condensa","489","Coperchio (congelatore orizzontale) / coperchio scorrevole","026","Porta vano congelatore","042"]
[null,"A volte guasto dell’illuminazione","491","Erogatore Ghiaccio/Acqua","432","Porta vano frigorifero","043"]
[null,"A volte messaggio di allarme ","485","Evaporatore vano congelatore","017","Ripiani in vetro, mensole etc.","029"]
[null,"A volte rumore","483","Evaporatore vano frigorifero","018","Rivestimento interno vano congelatore","364"]
[null,"A volte scostamento di temperatura","484","Guarnizione porta vano congelatore","531","Rivestimento interno vano frigorifero","701"]
[null,"A volte umidità dell’aria troppo bassa/alta","487","Guarnizione porta vano freezer 4 stelle","159","Scarico condensa","051"]
[null,"Nessun collegamento","488","Guarnizione porta vano frigorifero","532","Scheda elettronica","172"]
[null,null,null,"IceMaker","265","Tanica acqua","436"]
[null,null,null,"Illuminazione","059","Ubicazione dell’errore non classificabile","999"]
[null,null,null,"Meccanismo di chiusura","472","Valvola di scarico condensa","276"]
[null,null,null,"Meccanismo Soft System ","408"]
["Rete / ","Difetto cavi/cablaggio","297","APP / software","597","Resistenza alla chiusura","595"]
["comunicazione","Errore di configurazione","411","Cavo LAN","603","Sensori smart","686"]
[46,"Errore software (BUG)","588","Chiave a infrarossi","601","Shop di licenze","695"]
[null,"Forza del segnale","412","Chip NFC, RFID","685","Smart Device Box","608"]
[null,"Incompatibile (ad es. tablet, smartphone)","410","Convertitore per il collegamento standard (EVCO, Carel)","602","SmartCoolingHub","697"]
[null,"Nessun collegamento","488","Interfaccia (RS 485, RS 232, CAN BUS, MOD BUS, Ethernet, chiave IR, WLAN, BT, USB, …)","470","SmartMonitoring","696"]
[null,"Tipo di errore non classificabile","999","Modulo Master / Slave (HomeDialog)","605"]
["Perdita d'acqua","Rottura",201,"Tubo dell'acqua",210]
[200,"Crepa",207,"Valvola di ingresso dell'acqua",211]
[null,"Errore di montaggio",208,"Guarnizione",212]
[null,"Perdita",209,"Pompa di drenaggio",213]
[null,"Riempimento eccessivo",205,"Sensore di livello",214]
[null,"Danno",206,null,215]
[null,"Tipo di errore non classificabile","999"]

{"sheet":"Fehleraktivitäten","index":7,"n_rows":27,"n_cols":8,"rows_kept":27,"cut":false,"hidden":false,"merged":[[4,1,4,2],[4,4,4,5],[4,6,4,7]]}
["Fehleraktivität - Serviceeinsätze, Reparaturauftrag"]
[]
[]
[]
[null,"DEUTSCH",null,null,"Französisch",null,"Italienisch"]
["Aktivitätscode","Beschreibung der Aktivität 1","Beschreibung der Aktivität 2",null,"Beschreibung der Aktivität 1","Beschreibung der Aktivität 2","Beschreibung der Aktivität 1","Beschreibung der Aktivität 2"]
[]
["0.0","Erstreparatur","repariert - ohne Teiletausch - (nachgearbeitet, gerichtet, z.B. Leckage/Verstopfung)",{"$f":"A8&\" \"&B8","v":"0.0 Erstreparatur"},"première reparation","réparé - sans remplacement de pièces - (retravaillé, ajusté, p.ex. fuite/engorgement)","prima riparazione","riparato - senza cambio parti - (ripassato, aggiustato, p.e. perdita/ostruzione)"]
["0.1","Erstreparatur","repariert - mit Teiletausch",{"$f":"A9&\" \"&B9","v":"0.1 Erstreparatur"},"première reparation","réparé - avec remplacement de pièces","prima riparazione","riparato - con combio parti"]
["0.2","Erstreparatur","Überprüfung (Kunde lehnt Reparatur ab, ohne Fehlerbeseitigung- / erkennung)","0.2 Erstreparatur","première reparation","controle (client refuse réparation, sans réparation/détection d'erreur)","prima riparazione","verifica (il cliente rifiuta la riparazione, senza eliminazione/identificazione del guasto)"]
["0.3","Erstreparatur","Austausch des ganzen Geraetes/Leihgeräteabwicklung","0.3 Erstreparatur","première reparation","remplacement de tout l'appareil/déroulement appareil de pret","prima riparazione","sostituzione di tutto l'apparecchio/gestione apparecchi in noleggio"]
["0.4","Erstreparatur","Kundenberatung/Händlerunterstuetzung (wegen Bedienungsanleitung-/fehler)","0.4 Erstreparatur","première reparation","information service clientèle/support distributeurs (suite erreur sur notice/erreur d'utilisation)","prima riparazione","consulenza al cliente/assistenza al rivenditore (per via delle istruzioni per l'uso/di un errore nelle istruzioni per l'uso)"]
["0.5","Erstreparatur","fehlt","0.5 Erstreparatur","première reparation","fehlt","prima riparazione",""]
["0.6","Erstreparatur","Preisnachlass","0.6 Erstreparatur","première reparation","ristourne","prima riparazione","sconto"]
["0.7","Erstreparatur","fehlendes Teil montiert","0.7 Erstreparatur","première reparation","pièce manquante montée","prima riparazione","montata parte mancante"]
["0.8","Erstreparatur","fehlendes Teil bestellt zur direkten Lieferung an Kunden oder Haendler","0.8 Erstreparatur","première reparation","pièce manquante commandée pour livraison directe au client ou au distributeur","prima riparazione","parte mancante ordinata, sarà fornita direttamente al cliente o al rivenditore"]
["0.9","Erstreparatur","Zusatzmaterial montiert","0.9 Erstreparatur","première reparation","matériel supplémentaire monté","prima riparazione","materiale aggiuntivo montato"]
["1.0","Mehrfachreparatur / -fahrt","repariert - ohne Teiletausch - (nachgearbeitet, gerichtet, z.B. Leckage/Verstopfung)","1.0 Mehrfachreparatur / -fahrt","plusieurs réparations/courses","réparé - sans remplacement de pièces - (retravaillé, ajusté, p.ex. fuite/engorgement)","diverese riparazioni / diversi viaggi","riparato - senza cambio parti - (ripassato, aggiustato, p.e. perdita/ostruzione)"]
["1.1","Mehrfachreparatur / -fahrt","repariert - mit Teiletausch","1.1 Mehrfachreparatur / -fahrt","plusieurs réparations/courses","réparé - avec remplacement de pièces","diverese riparazioni / diversi viaggi","riparato - con combio parti"]
["1.2","Mehrfachreparatur / -fahrt","Überprüfung (Kunde lehnt Reparatur ab, ohne Fehlerbeseitigung- / erkennung)","1.2 Mehrfachreparatur / -fahrt","plusieurs réparations/courses","controle (client refuse réparation, sans réparation/détection d'erreur)","diverese riparazioni / diversi viaggi","verifica (il cliente rifiuta la riparazione, senza eliminazione/identificazione del guasto)"]
["1.3","Mehrfachreparatur / -fahrt","Austausch des ganzen Geraetes/Leihgeräteabwicklung","1.3 Mehrfachreparatur / -fahrt","plusieurs réparations/courses","remplacement de tout l'appareil/déroulement appareil de pret","diverese riparazioni / diversi viaggi","sostituzione di tutto l'apparecchio/gestione apparecchi in noleggio"]
["1.4","Mehrfachreparatur / -fahrt","Kundenberatung/Händlerunterstuetzung (wegen Bedienungsanleitung-/fehler)","1.4 Mehrfachreparatur / -fahrt","plusieurs réparations/courses","information service clientèle/support distributeurs (suite erreur sur notice/erreur d'utilisation)","diverese riparazioni / diversi viaggi","consulenza al cliente/assistenza al rivenditore (per via delle istruzioni per l'uso/di un errore nelle istruzioni per l'uso)"]
["1.5","Mehrfachreparatur / -fahrt","fehlt","1.5 Mehrfachreparatur / -fahrt","plusieurs réparations/courses","fehlt","diverese riparazioni / diversi viaggi",""]
["1.6","Mehrfachreparatur / -fahrt","Preisnachlass","1.6 Mehrfachreparatur / -fahrt","plusieurs réparations/courses","ristourne","diverese riparazioni / diversi viaggi","sconto"]
["1.7","Mehrfachreparatur / -fahrt","fehlendes Teil montiert","1.7 Mehrfachreparatur / -fahrt","plusieurs réparations/courses","pièce manquante montée","diverese riparazioni / diversi viaggi","montata parte mancante"]
["1.8","Mehrfachreparatur / -fahrt","fehlendes Teil bestellt zur direkten Lieferung an Kunden oder Haendler","1.8 Mehrfachreparatur / -fahrt","plusieurs réparations/courses","pièce manquante commandée pour livraison directe au client ou au distributeur","diverese riparazioni / diversi viaggi","parte mancante ordinata, sarà fornita direttamente al cliente o al rivenditore"]
["1.9","Mehrfachreparatur / -fahrt","Zusatzmaterial montiert","1.9 Mehrfachreparatur / -fahrt","plusieurs réparations/courses","matériel supplémentaire monté","diverese riparazioni / diversi viaggi","materiale aggiuntivo montato"]